{"text_format":"1","workbook":"xlsx","n_sheets":21,"sheets":["<INSTRUCTIONS>","White Page Final","White Page Builder","Stock Comparison (SC)","SC - MSN Money Quotes","SC - Sector and Industry1","SC - Sector and Industry2","SC - Sector and Industry3","SC - FinViz Profile1","SC - FinViz Profile2","SC - FinViz Profile3","Stock Indices and References","Major US Stock Indices Data","Stock - MSN Money Quote","Stock - Price Chart","Stock - Key Metrics","Stock - Competitors Data","Stock - Historical Financials","Stock - Sector and Industry","Stock - Yahoo Profile","Stock - FinViz Profile"],"not_rendered":{"charts":15,"images":2,"macros":1,"external_links":0,"defined_names":29,"comments":1,"pivot_tables":0},"unopened":[],"bounds":{"document_bytes":16777216,"sheet_cells":100000,"rows_first":2000,"rows_last":500,"rows_between":2000,"halvings":0,"cell_chars":16384,"cell_head_chars":4096},"cells_cut":0,"cells_raw":0,"read":"whole","date_system":"1900"}

{"sheet":"<INSTRUCTIONS>","index":0,"n_rows":21,"n_cols":1,"rows_kept":21,"cut":false,"hidden":false,"merged":[]}
["White Page Template Instructions"]
[]
["1. [If \"Security Warning: Data connections have been disabled\" message appears, click on \"Enable Content\"] Click on \"White Page Builder\" sheet"]
["2. Go to cell D1 and input desired stock ticker symbol in all caps; then fill out full name and date in cells D2 and D3, respectively"]
["3. Click on \"Refresh\" button to the right of cell D1; a macro will now refresh the web queries on each of the remaining workbook sheets, updating the information in the workbook"]
["4. Verify that the information provided in cells B2:B9 on the \"White Page Builder\" sheet is complete and sensible, then select appropriate stock exchange abbreviation from the drop down menu in cell B6"]
["5. Copy and paste \"Business Summary\" section found on \"Stock - Yahoo Profile\" sheet and/or company description paragraph (underneath news headlines) found on \"Stock - FinViz Profile\" sheet to create a company overview paragraph in cell B10 (adjust font size or increase paragraph's conciseness, if necessary)"]
["6. Select \"5y\" option from the drop down menu in cell B11 for \"Historical Price Chart\" (or follow directions of the comment message presented when you move your cursor over B11)"]
["7. Click on \"Stock - Price Chart\" sheet and follow directions provided in the message boxes in cells G18:L18 and G19:L19; retrieve an appropriate price chart using the appropriate weblink and size the chart in the space provided"]
["8. After sizing price chart, copy chart, click on \"White Page Final\" sheet, and paste chart in box below \"Historical Price Chart\" (and recenter it if necessary); make any additional comments in \"Price Chart Comments\" box in cells B12:B15, as necessary, or type \"N/A\" if 5y price chart used"]
["9. Return to \"White Page Builder\" sheet and select \"YES - COMPLETE\" option from the drop down menu in cell B16 for \"Key Metrics\" (or follow directions of the comment message presented when you move your cursor over B16)"]
["10. Type up a brief \"Company Evaluation\" paragraph in cell B17, highlighting some of the stock's potential strengths and weaknesses (adjust font size for more room, if necessary); use \"Zacks Equity Research\" hyperlink to access an analyst report (with reasons to buy/reasons to sell) by typing in the stock's ticker in the \"Look Up Report\" box"]
["11. Select \"YES - COMPLETE\" option from the drop down menu in cell B18 for \"Direct Competitors Comparison\" (or follow directions of the comment message presented when you move your cursor over B18)"]
["12. Follow directions of \"Initial Screening Message\" posted in cell B19"]
["13. Review \"Informal Valuation Screen for Stock Prospect\" in cells B23:B40"]
["14. Review all information provided on \"White Page Builder\" sheet (or other sheets in this workbook); then click on \"White Page Final\" sheet, connect to a printer, and click on \"Print White Page\" button on right side of the screen; the final one-page white page should begin printing"]
["15. Click \"Save As\" and save a copy of the document for yourself with the stock ticker in the document's name"]
[]
["If you want to use this same workbook for another stock, return to \"White Page Builder\" sheet and click on \"Clear Upper Contents of White Page Builder\" button just below the \"Refresh\" button. Then repeat this process again from step 2."]
["If web references are required, click on \"Stock Indices and References\" sheet, scroll right to the \"Web References\" section, and replace any \"[TICKER]\" entries in web links with the appropriate ticker letters. Add additional references as needed, and then click on the \"Print Refs\" button to print out a page of references. "]
["If you want to use the \"Stock Comparison (SC)\" worksheet, simply type a stock's ticker symble into one (or each) of the three ticker boxes on the upper part of the page, and click the refresh macros adjacent to these boxes."]

{"sheet":"White Page Final","index":1,"n_rows":58,"n_cols":9,"rows_kept":58,"cut":false,"hidden":false,"merged":[[57,6,57,7],[4,2,4,4],[7,0,11,8],[31,0,41,8],[3,7,3,8],[6,1,6,4],[3,2,3,4]]}
[]
[]
[]
[{"$f":"'White Page Builder'!B2","v":"Google Inc "},null,{"$f":"'White Page Builder'!B3","v":0},null,null,null,"Recommendation",{"$f":"'White Page Builder'!D5","v":0}]
[{"$f":"'White Page Builder'!B4","v":"Technology"},"|",{"$f":"'White Page Builder'!B5","v":"Internet Information Providers"},null,null,"|",{"$f":"'White Page Builder'!B6","v":"NYSE"},"Price:",{"$f":"'White Page Builder'!B7","v":882.79}]
[]
["Company Overview","Order Details (Shares/Type):",null,null,null,{"$f":"'White Page Builder'!D6","v":0},{"$f":"'White Page Builder'!D7","v":0},"Class:",{"$f":"'White Page Builder'!B9","v":"Large Cap"}]
[{"$f":"'White Page Builder'!B10","v":0}]
[]
[]
[]
[]
[]
["Histoical Price Chart",{"$f":"'White Page Builder'!B11","v":0},null,null,null,null,"Key Metrics"]
[]
["Paste Price Chart Here",null,null,null,null,null,"Market Cap",{"$f":"'Stock - Key Metrics'!C102","v":"292.88B"}]
[null,null,null,null,null,null,"P/E",{"$f":"'Stock - Key Metrics'!C103","v":26.28}]
[null,null,null,null,null,null,"PEG",{"$f":"'Stock - Key Metrics'!C104","v":1.69}]
[null,null,null,null,null,null,"P/B",{"$f":"'Stock - Key Metrics'!C105","v":3.87}]
[null,null,null,null,null,null,"Dividend Yield",{"$f":"'Stock - Key Metrics'!C106","v":"-"}]
[null,null,null,null,null,null,"Payout Ratio",{"$f":"'Stock - Key Metrics'!C107","v":0}]
[null,null,null,null,null,null,"EPS (ttm) ",{"$f":"'Stock - Key Metrics'!C108","v":33.590000000000003}]
[null,null,null,null,null,null,"Return on Assets",{"$f":"'Stock - Key Metrics'!C109","v":0.12909999999999999}]
[null,null,null,null,null,null,"Return on Equity",{"$f":"'Stock - Key Metrics'!C110","v":0.1636}]
[null,null,null,null,null,null,"Return on Investment",{"$f":"'Stock - Key Metrics'!C111","v":0.14879999999999999}]
[null,null,null,null,null,null,"Beta",{"$f":"'Stock - Key Metrics'!C112","v":0.95}]
[null,null,null,null,null,null,"Operating Margin",{"$f":"'Stock - Key Metrics'!C113","v":0.2402}]
[null,null,null,null,null,null,"Profit Margin",{"$f":"'Stock - Key Metrics'!C114","v":0.20979999999999999}]
[null,null,null,null,null,null,"Current Ratio",{"$f":"'Stock - Key Metrics'!C115","v":4.74}]
[]
["Company Evaluation (Strengths/Weaknesses)"]
[{"$f":"'White Page Builder'!B17","v":0}]
[]
[]
[]
[]
[]
[]
[]
[]
[]
[]
[]
["Direct Competitor Comparison"]
[null,null,{"$f":"'Stock - Competitors Data'!B11","v":"GOOG"},{"$f":"'Stock - Competitors Data'!C11","v":"FB"},{"$f":"'Stock - Competitors Data'!D11","v":"PVT1"},{"$f":"'Stock - Competitors Data'!E11","v":"YHOO"},{"$f":"'Stock - Competitors Data'!F11","v":"Industry"}]
["Market Cap:",null,{"$f":"VLOOKUP(\"Market Cap:\",'Stock - Competitors Data'!A9:I110,2,FALSE)","v":"292.88B"},{"$f":"VLOOKUP(\"Market Cap:\",'Stock - Competitors Data'!A9:I110,3,FALSE)","v":"60.59B"},{"$f":"VLOOKUP(\"Market Cap:\",'Stock - Competitors Data'!A9:I110,4,FALSE)","v":"N/A"},{"$f":"VLOOKUP(\"Market Cap:\",'Stock - Competitors Data'!A9:I110,5,FALSE)","v":"28.17B"},{"$f":"VLOOKUP(\"Market Cap:\",'Stock - Competitors Data'!A9:I110,6,FALSE)","v":"2.07B"},{"$f":"I7","v":"Large Cap"}]
["Revenue (ttm):",null,{"$f":"VLOOKUP(\"Revenue (ttm):\",'Stock - Competitors Data'!A9:I110,2,FALSE)","v":"53.50B"},{"$f":"VLOOKUP(\"Revenue (ttm):\",'Stock - Competitors Data'!A9:I110,3,FALSE)","v":"5.49B"},{"$f":"VLOOKUP(\"Revenue (ttm):\",'Stock - Competitors Data'!A9:I110,4,FALSE)","v":"N/A"},{"$f":"VLOOKUP(\"Revenue (ttm):\",'Stock - Competitors Data'!A9:I110,5,FALSE)","v":"4.91B"},{"$f":"VLOOKUP(\"Revenue (ttm):\",'Stock - Competitors Data'!A9:I110,6,FALSE)","v":"420.42M"},{"$f":"IF(C47>G47,\"+\",\"–\")","v":"+"}]
["Gross Margin (ttm):",null,{"$f":"VLOOKUP(\"Gross Margin (ttm):\",'Stock - Competitors Data'!A9:I110,2,FALSE)","v":0.57999999999999996},{"$f":"VLOOKUP(\"Gross Margin (ttm):\",'Stock - Competitors Data'!A9:I110,3,FALSE)","v":0.73},{"$f":"VLOOKUP(\"Gross Margin (ttm):\",'Stock - Competitors Data'!A9:I110,4,FALSE)","v":"N/A"},{"$f":"VLOOKUP(\"Gross Margin (ttm):\",'Stock - Competitors Data'!A9:I110,5,FALSE)","v":0.68},{"$f":"VLOOKUP(\"Gross Margin (ttm):\",'Stock - Competitors Data'!A9:I110,6,FALSE)","v":0.72},{"$f":"IF(C48>G48,\"+\",\"–\")","v":"–"}]
["EBITDA (ttm):",null,{"$f":"VLOOKUP(\"EBITDA (ttm):\",'Stock - Competitors Data'!A9:I110,2,FALSE)","v":"16.81B"},{"$f":"VLOOKUP(\"EBITDA (ttm):\",'Stock - Competitors Data'!A9:I110,3,FALSE)","v":"1.31B"},{"$f":"VLOOKUP(\"EBITDA (ttm):\",'Stock - Competitors Data'!A9:I110,4,FALSE)","v":"N/A"},{"$f":"VLOOKUP(\"EBITDA (ttm):\",'Stock - Competitors Data'!A9:I110,5,FALSE)","v":"1.33B"},{"$f":"VLOOKUP(\"EBITDA (ttm):\",'Stock - Competitors Data'!A9:I110,6,FALSE)","v":"32.31M"},{"$f":"IF(C49>G49,\"+\",\"–\")","v":"–"}]
["Net Income (ttm):",null,{"$f":"VLOOKUP(\"Net Income (ttm):\",'Stock - Competitors Data'!A9:I110,2,FALSE)","v":"11.22B"},{"$f":"VLOOKUP(\"Net Income (ttm):\",'Stock - Competitors Data'!A9:I110,3,FALSE)","v":"112.00M"},{"$f":"VLOOKUP(\"Net Income (ttm):\",'Stock - Competitors Data'!A9:I110,4,FALSE)","v":"N/A"},{"$f":"VLOOKUP(\"Net Income (ttm):\",'Stock - Competitors Data'!A9:I110,5,FALSE)","v":"4.05B"},{"$f":"VLOOKUP(\"Net Income (ttm):\",'Stock - Competitors Data'!A9:I110,6,FALSE)","v":"N/A"},{"$f":"IF(C50>G50,\"+\",\"–\")","v":"–"}]
["EPS (ttm):",null,{"$f":"VLOOKUP(\"EPS (ttm):\",'Stock - Competitors Data'!A9:I110,2,FALSE)","v":33.42},{"$f":"VLOOKUP(\"EPS (ttm):\",'Stock - Competitors Data'!A9:I110,3,FALSE)","v":0.05},{"$f":"VLOOKUP(\"EPS (ttm):\",'Stock - Competitors Data'!A9:I110,4,FALSE)","v":"N/A"},{"$f":"VLOOKUP(\"EPS (ttm):\",'Stock - Competitors Data'!A9:I110,5,FALSE)","v":3.45},{"$f":"VLOOKUP(\"EPS (ttm):\",'Stock - Competitors Data'!A9:I110,6,FALSE)","v":0.37},{"$f":"IF(C51>G51,\"+\",\"–\")","v":"+"}]
["P/E (ttm):",null,{"$f":"VLOOKUP(\"P/E (ttm):\",'Stock - Competitors Data'!A9:I110,2,FALSE)","v":26.41},{"$f":"VLOOKUP(\"P/E (ttm):\",'Stock - Competitors Data'!A9:I110,3,FALSE)","v":544.78},{"$f":"VLOOKUP(\"P/E (ttm):\",'Stock - Competitors Data'!A9:I110,4,FALSE)","v":"N/A"},{"$f":"VLOOKUP(\"P/E (ttm):\",'Stock - Competitors Data'!A9:I110,5,FALSE)","v":7.55},{"$f":"VLOOKUP(\"P/E (ttm):\",'Stock - Competitors Data'!A9:I110,6,FALSE)","v":21.79},{"$f":"IF(C52<G52,\"+\",\"–\")","v":"–"}]
["PEG (5 yr expected):",null,{"$f":"VLOOKUP(\"PEG (5 yr expected):\",'Stock - Competitors Data'!A9:I110,2,FALSE)","v":1.32},{"$f":"VLOOKUP(\"PEG (5 yr expected):\",'Stock - Competitors Data'!A9:I110,3,FALSE)","v":1.57},{"$f":"VLOOKUP(\"PEG (5 yr expected):\",'Stock - Competitors Data'!A9:I110,4,FALSE)","v":"N/A"},{"$f":"VLOOKUP(\"PEG (5 yr expected):\",'Stock - Competitors Data'!A9:I110,5,FALSE)","v":1.46},{"$f":"VLOOKUP(\"PEG (5 yr expected):\",'Stock - Competitors Data'!A9:I110,6,FALSE)","v":0.68},{"$f":"IF(C53<G53,\"+\",\"–\")","v":"–"}]
["P/S (ttm):",null,{"$f":"VLOOKUP(\"P/S (ttm):\",'Stock - Competitors Data'!A9:I110,2,FALSE)","v":5.52},{"$f":"VLOOKUP(\"P/S (ttm):\",'Stock - Competitors Data'!A9:I110,3,FALSE)","v":11.08},{"$f":"VLOOKUP(\"P/S (ttm):\",'Stock - Competitors Data'!A9:I110,4,FALSE)","v":"N/A"},{"$f":"VLOOKUP(\"P/S (ttm):\",'Stock - Competitors Data'!A9:I110,5,FALSE)","v":5.86},{"$f":"VLOOKUP(\"P/S (ttm):\",'Stock - Competitors Data'!A9:I110,6,FALSE)","v":4.8099999999999996},{"$f":"IF(C54<G54,\"+\",\"–\")","v":"–"}]
[]
[]
[]
[{"$f":"'White Page Builder'!D2","v":0},null,{"$f":"'White Page Builder'!D3","v":"00:00:00"},null,null,null,"SPU Student Investment Fund"]

{"sheet":"White Page Builder","index":2,"n_rows":42,"n_cols":4,"rows_kept":42,"cut":false,"hidden":false,"merged":[[0,5,0,16380],[22,0,39,0],[41,0,43,0],[41,1,43,1],[11,0,14,0],[11,1,14,1],[0,0,0,1]]}
["White Page Builder",null,"Stock Ticker:"]
["COMPANY NAME",{"$f":"'Stock - MSN Money Quote'!A4","v":"Google Inc "},"FULL NAME"]
["TICKER SYMBOL",{"$f":"D1","v":0},"DATE (MM/DD/YY)"]
["SECTOR",{"$f":"VLOOKUP(\"Sector:\",'Stock - Sector and Industry'!A1:L79,2,FALSE)","v":"Technology"},null,"RECOMMENDATION"]
["INDUSTRY",{"$f":"VLOOKUP(\"Industry:\",'Stock - Sector and Industry'!A1:L79,2,FALSE)","v":"Internet Information Providers"},"Buy/Sell Decision"]
["STOCK EXCHANGE","NYSE","Number of Shares"]
["CURRENT STOCK PRICE",{"$f":"VLOOKUP(\"News\",'Stock - MSN Money Quote'!C3:P5,2,FALSE)","v":882.79},"Type of Order"]
["MARKET CAP > $300M?",{"$f":"IF('Stock - MSN Money Quote'!M4>300000000,\"YES\",\"NO\")","v":"YES"}]
["MARKET CAP CLASSIFICATION",{"$f":"IF('Stock - MSN Money Quote'!M4<300000000,\"Small Cap\",IF('Stock - MSN Money Quote'!M4>10000000000,\"Large Cap\",\"Mid Cap\"))","v":"Large Cap"}]
["COMPANY OVERVIEW"]
["HISTORICAL PRICE CHART"]
["PRICE CHART COMMENTS                      "]
[]
[]
[]
["KEY METRICS"]
["COMPANY EVALUATION (STRENGTHS/WEAKNESSES)",null,"Zacks Equity Research"]
["DIRECT COMPETITORS COMPARISON"]
["INITIAL SCREENING MESSAGE",{"$f":"IF(B8=\"NO\",\"DO NOT PROCEED WITH WHITE PAGE - PROSPECT FALLS OUTSIDE OF REQUIRED MARKET CAP RANGE\",IF(AND(B16=\"YES - COMPLETE\",B18=\"YES - COMPLETE\",B8=\"YES\"),\"PROCEED WITH WHITE PAGE\",\"COLLECT MORE INFORMATION BEFORE PROCEEDING WITH WHITE PAGE\"))","v":"COLLECT MORE INFORMATION BEFORE PROCEEDING WITH WHITE PAGE"}]
[]
[]
[null,{"$f":"HYPERLINK(\"#'Stock Indices and References'!J1\",\"Desirability Guide Key\")","v":"Desirability Guide Key"}]
["INFORMAL VALUATION SCREEN FOR STOCK PROSPECT",{"$f":"'Stock - Key Metrics'!C103","v":26.28},{"$f":"_ftn1","v":26.28},"Seek low/mid"]
[null,"P/E"]
[null,{"$f":"'Stock - Key Metrics'!C104","v":1.69},{"$f":"B25","v":1.69},"Seek low/mid"]
[null,"PEG"]
[null,{"$f":"'Stock - Key Metrics'!C105","v":3.87},{"$f":"B27","v":3.87},"Seek mid"]
[null,"P/B"]
[null,{"$f":"'Stock - Key Metrics'!C106","v":"-"},{"$f":"B29","v":"-"},"Seek mid/high"]
[null,"DIV YIELD"]
[null,{"$f":"'Stock - Key Metrics'!C108","v":33.590000000000003},{"$f":"B31","v":33.590000000000003},"Seek mid/high"]
[null,"EPS"]
[null,{"$f":"'Stock - Key Metrics'!C109","v":0.12909999999999999},{"$f":"B33","v":0.12909999999999999},"Seek high"]
[null,"ROA"]
[null,{"$f":"'Stock - Key Metrics'!C110","v":0.1636},{"$f":"B35","v":0.1636},"Seek high"]
[null,"ROE"]
[null,{"$f":"'Stock - Key Metrics'!C111","v":0.14879999999999999},{"$f":"B37","v":0.14879999999999999},"Seek high"]
[null,"ROI"]
[null,{"$f":"'Stock - Key Metrics'!C112","v":0.95},{"$f":"B39","v":0.95},"Seek low/mid"]
[null,"BETA"]
[]
["INFORMAL VALUATION SCREEN CONCLUSION",{"$f":"IF(OR(AND(_ftn1<15,B27<1.5,B29>0.02,B25<1),AND(_ftn1<15,B27<1.5,B29=0,B25<1),AND(_ftn1<15,B27<1.5,B29=\"N/A\",B25<1),AND(_ftn1<15,B25<1)),\"POTENTIALLY UNDERVALUED\",\"POTENTIALLY OVERVALUED\")","v":"POTENTIALLY OVERVALUED"}]

{"sheet":"Stock Comparison (SC)","index":3,"n_rows":61,"n_cols":8,"rows_kept":61,"cut":false,"hidden":false,"merged":[]}
["Stock Ticker 1:","IBM",null,"Stock Ticker 2:","MSFT",null,"Stock Ticker 3:","HPQ"]
["COMPANY NAME",{"$f":"'SC - MSN Money Quotes'!A4","v":"International Business Machines Corp "},null,"COMPANY NAME",{"$f":"'SC - MSN Money Quotes'!A33","v":"Microsoft Corp "},null,"COMPANY NAME",{"$f":"'SC - MSN Money Quotes'!A63","v":"Hewlett-Packard Co "}]
["TICKER SYMBOL",{"$f":"B1","v":"IBM"},null,"TICKER SYMBOL",{"$f":"E1","v":"MSFT"},null,"TICKER SYMBOL",{"$f":"H1","v":"HPQ"}]
["SECTOR",{"$f":"VLOOKUP(\"Sector:\",'SC - Sector and Industry1'!A1:L79,2,FALSE)","v":"Technology"},null,"SECTOR",{"$f":"VLOOKUP(\"Sector:\",'SC - Sector and Industry2'!A1:L79,2,FALSE)","v":"Technology"},null,"SECTOR",{"$f":"VLOOKUP(\"Sector:\",'SC - Sector and Industry3'!A1:L79,2,FALSE)","v":"Technology"}]
["INDUSTRY",{"$f":"VLOOKUP(\"Industry:\",'SC - Sector and Industry1'!A1:L79,2,FALSE)","v":"Information Technology Services"},null,"INDUSTRY",{"$f":"VLOOKUP(\"Industry:\",'SC - Sector and Industry2'!A1:L79,2,FALSE)","v":"Application Software"},null,"INDUSTRY",{"$f":"VLOOKUP(\"Industry:\",'SC - Sector and Industry3'!A1:L79,2,FALSE)","v":"Diversified Computer Systems"}]
["STOCK EXCHANGE","NYSE",null,"STOCK EXCHANGE","NYSE",null,"STOCK EXCHANGE","NYSE"]
["CURRENT STOCK PRICE",{"$f":"VLOOKUP(\"News\",'SC - MSN Money Quotes'!C4:P4,2,FALSE)","v":207.78},null,"CURRENT STOCK PRICE",{"$f":"VLOOKUP(\"News\",'SC - MSN Money Quotes'!C33:P33,2,FALSE)","v":35.020000000000003},null,"CURRENT STOCK PRICE",{"$f":"VLOOKUP(\"News\",'SC - MSN Money Quotes'!C63:P63,2,FALSE)","v":24.65}]
["MARKET CAP > $300M?",{"$f":"IF('SC - MSN Money Quotes'!M4>300000000,\"YES\",\"NO\")","v":"YES"},null,"MARKET CAP > $300M?",{"$f":"IF('SC - MSN Money Quotes'!M33>300000000,\"YES\",\"NO\")","v":"YES"},null,"MARKET CAP > $300M?",{"$f":"IF('SC - MSN Money Quotes'!M63>300000000,\"YES\",\"NO\")","v":"YES"}]
["MARKET CAP CLASSIFICATION",{"$f":"IF('SC - MSN Money Quotes'!M4<300000000,\"Small Cap\",IF('SC - MSN Money Quotes'!M4>10000000000,\"Large Cap\",\"Mid Cap\"))","v":"Large Cap"},null,"MARKET CAP CLASSIFICATION",{"$f":"IF('SC - MSN Money Quotes'!M33<300000000,\"Small Cap\",IF('SC - MSN Money Quotes'!M33>10000000000,\"Large Cap\",\"Mid Cap\"))","v":"Large Cap"},null,"MARKET CAP CLASSIFICATION",{"$f":"IF('SC - MSN Money Quotes'!M63<300000000,\"Small Cap\",IF('SC - MSN Money Quotes'!M63>10000000000,\"Large Cap\",\"Mid Cap\"))","v":"Large Cap"}]
[]
[]
[{"$f":"B1","v":"IBM"},"Key Metrics",null,{"$f":"E1","v":"MSFT"},"Key Metrics",null,{"$f":"H1","v":"HPQ"},"Key Metrics"]
["Income",{"$f":"VLOOKUP(\"Income\",'SC - FinViz Profile1'!A1:M30,3,FALSE)","v":"16.57B"},null,"Income",{"$f":"VLOOKUP(\"Income\",'SC - FinViz Profile2'!A1:M30,3,FALSE)","v":"16.41B"},null,"Income",{"$f":"VLOOKUP(\"Income\",'SC - FinViz Profile3'!A1:M30,3,FALSE)","v":"-12886.00M"}]
["Sales",{"$f":"VLOOKUP(\"Sales\",'SC - FinViz Profile1'!A1:M30,3,FALSE)","v":"103.24B"},null,"Sales",{"$f":"VLOOKUP(\"Sales\",'SC - FinViz Profile2'!A1:M30,3,FALSE)","v":"76.01B"},null,"Sales",{"$f":"VLOOKUP(\"Sales\",'SC - FinViz Profile3'!A1:M30,3,FALSE)","v":"118.68B"}]
["BV/S",{"$f":"VLOOKUP(\"Book/sh\",'SC - FinViz Profile1'!A1:M30,3,FALSE)","v":17.21},null,"BV/S",{"$f":"VLOOKUP(\"Book/sh\",'SC - FinViz Profile2'!A1:M30,3,FALSE)","v":9.18},null,"BV/S",{"$f":"VLOOKUP(\"Book/sh\",'SC - FinViz Profile3'!A1:M30,3,FALSE)","v":11.72}]
["C/S",{"$f":"VLOOKUP(\"Cash/sh\",'SC - FinViz Profile1'!A1:M30,3,FALSE)","v":10.82},null,"C/S",{"$f":"VLOOKUP(\"Book/sh\",'SC - FinViz Profile2'!A1:M30,3,FALSE)","v":9.18},null,"C/S",{"$f":"VLOOKUP(\"Book/sh\",'SC - FinViz Profile2'!A1:M30,3,FALSE)","v":9.18}]
["Dividend",{"$f":"VLOOKUP(\"Dividend\",'SC - FinViz Profile1'!A1:M30,3,FALSE)","v":3.8},null,"Dividend",{"$f":"VLOOKUP(\"Dividend\",'SC - FinViz Profile2'!A1:M30,3,FALSE)","v":0.92},null,"Dividend",{"$f":"VLOOKUP(\"Dividend\",'SC - FinViz Profile3'!A1:M30,3,FALSE)","v":0.53}]
["Dividend Yield",{"$f":"VLOOKUP(\"Dividend %\",'SC - FinViz Profile1'!A1:M30,3,FALSE)","v":1.83E-2},null,"Dividend Yield",{"$f":"VLOOKUP(\"Dividend %\",'SC - FinViz Profile2'!A1:M30,3,FALSE)","v":2.63E-2},null,"Dividend Yield",{"$f":"VLOOKUP(\"Dividend %\",'SC - FinViz Profile3'!A1:M30,3,FALSE)","v":2.1499999999999998E-2}]
["Analyst Recom.",{"$f":"VLOOKUP(\"Recom\",'SC - FinViz Profile1'!A1:M30,3,FALSE)","v":2.4},null,"Analyst Recom.",{"$f":"VLOOKUP(\"Recom\",'SC - FinViz Profile2'!A1:M30,3,FALSE)","v":2.4},null,"Analyst Recom.",{"$f":"VLOOKUP(\"Recom\",'SC - FinViz Profile3'!A1:M30,3,FALSE)","v":3.1}]
["P/E",{"$f":"VLOOKUP(\"P/E\",'SC - FinViz Profile1'!D1:M30,2,FALSE)","v":14.33},null,"P/E",{"$f":"VLOOKUP(\"P/E\",'SC - FinViz Profile2'!D1:M30,2,FALSE)","v":18.05},null,"P/E",{"$f":"VLOOKUP(\"P/E\",'SC - FinViz Profile3'!D1:M30,2,FALSE)","v":"-"}]
["FWD P/E",{"$f":"VLOOKUP(\"Forward P/E\",'SC - FinViz Profile1'!D1:M30,2,FALSE)","v":11.32},null,"FWD P/E",{"$f":"VLOOKUP(\"Forward P/E\",'SC - FinViz Profile2'!D1:M30,2,FALSE)","v":11.44},null,"FWD P/E",{"$f":"VLOOKUP(\"Forward P/E\",'SC - FinViz Profile3'!D1:M30,2,FALSE)","v":6.75}]
["PEG",{"$f":"VLOOKUP(\"PEG\",'SC - FinViz Profile1'!D1:M30,2,FALSE)","v":1.37},null,"PEG",{"$f":"VLOOKUP(\"PEG\",'SC - FinViz Profile2'!D1:M30,2,FALSE)","v":2.12},null,"PEG",{"$f":"VLOOKUP(\"Forward P/E\",'SC - FinViz Profile3'!D1:M30,2,FALSE)","v":6.75}]
["P/S",{"$f":"VLOOKUP(\"P/S\",'SC - FinViz Profile1'!D1:M30,2,FALSE)","v":2.23},null,"P/S",{"$f":"VLOOKUP(\"P/S\",'SC - FinViz Profile2'!D1:M30,2,FALSE)","v":3.85},null,"P/S",{"$f":"VLOOKUP(\"P/S\",'SC - FinViz Profile3'!D1:M30,2,FALSE)","v":0.4}]
["P/B",{"$f":"VLOOKUP(\"P/B\",'SC - FinViz Profile1'!D1:M30,2,FALSE)","v":12.07},null,"P/B",{"$f":"VLOOKUP(\"P/B\",'SC - FinViz Profile2'!D1:M30,2,FALSE)","v":3.81},null,"P/B",{"$f":"VLOOKUP(\"P/B\",'SC - FinViz Profile3'!D1:M30,2,FALSE)","v":2.1}]
["P/C",{"$f":"VLOOKUP(\"P/C\",'SC - FinViz Profile1'!D1:M30,2,FALSE)","v":19.21},null,"P/C",{"$f":"VLOOKUP(\"P/C\",'SC - FinViz Profile2'!D1:M30,2,FALSE)","v":3.93},null,"P/C",{"$f":"VLOOKUP(\"P/C\",'SC - FinViz Profile3'!D1:M30,2,FALSE)","v":3.81}]
["P/FCF",{"$f":"VLOOKUP(\"P/FCF\",'SC - FinViz Profile1'!D1:M30,2,FALSE)","v":20.96},null,"P/FCF",{"$f":"VLOOKUP(\"P/FCF\",'SC - FinViz Profile2'!D1:M30,2,FALSE)","v":14.4},null,"P/FCF",{"$f":"VLOOKUP(\"P/FCF\",'SC - FinViz Profile3'!D1:M30,2,FALSE)","v":6.43}]
["Quick Ratio",{"$f":"VLOOKUP(\"Quick Ratio\",'SC - FinViz Profile1'!D1:M30,2,FALSE)","v":1.1000000000000001},null,"Quick Ratio",{"$f":"VLOOKUP(\"Quick Ratio\",'SC - FinViz Profile2'!D1:M30,2,FALSE)","v":2.86},null,"Quick Ratio",{"$f":"VLOOKUP(\"Quick Ratio\",'SC - FinViz Profile3'!D1:M30,2,FALSE)","v":0.97}]
["Current Ratio",{"$f":"VLOOKUP(\"Current Ratio\",'SC - FinViz Profile1'!D1:M30,2,FALSE)","v":1.1599999999999999},null,"Current Ratio",{"$f":"VLOOKUP(\"Current Ratio\",'SC - FinViz Profile2'!D1:M30,2,FALSE)","v":2.93},null,"Current Ratio",{"$f":"VLOOKUP(\"Current Ratio\",'SC - FinViz Profile3'!D1:M30,2,FALSE)","v":1.1200000000000001}]
["Debt/Equity",{"$f":"VLOOKUP(\"Debt/Eq\",'SC - FinViz Profile1'!D1:M30,2,FALSE)","v":1.75},null,"Debt/Equity",{"$f":"VLOOKUP(\"Debt/Eq\",'SC - FinViz Profile2'!D1:M30,2,FALSE)","v":0.19},null,"Debt/Equity",{"$f":"VLOOKUP(\"Debt/Eq\",'SC - FinViz Profile3'!D1:M30,2,FALSE)","v":1.23}]
["LT Debt/Equity",{"$f":"VLOOKUP(\"LT Debt/Eq\",'SC - FinViz Profile1'!D1:M30,2,FALSE)","v":1.29},null,"LT Debt/Equity",{"$f":"VLOOKUP(\"LT Debt/Eq\",'SC - FinViz Profile2'!D1:M30,2,FALSE)","v":0.16},null,"LT Debt/Equity",{"$f":"VLOOKUP(\"LT Debt/Eq\",'SC - FinViz Profile3'!D1:M30,2,FALSE)","v":0.95}]
["EPS (ttm)",{"$f":"VLOOKUP(\"EPS (ttm)\",'SC - FinViz Profile1'!F1:M30,2,FALSE)","v":14.5},null,"EPS (ttm)",{"$f":"VLOOKUP(\"EPS (ttm)\",'SC - FinViz Profile2'!F1:M30,2,FALSE)","v":1.94},null,"EPS (ttm)",{"$f":"VLOOKUP(\"EPS (ttm)\",'SC - FinViz Profile3'!F1:M30,2,FALSE)","v":-6.55}]
["EPS next Y",{"$f":"VLOOKUP(\"EPS next Y\",'SC - FinViz Profile1'!F20:G20,2,FALSE)","v":18.350000000000001},null,"EPS next Y",{"$f":"VLOOKUP(\"EPS next Y\",'SC - FinViz Profile2'!F20:G20,2,FALSE)","v":3.06},null,"EPS next Y",{"$f":"VLOOKUP(\"EPS next Y\",'SC - FinViz Profile3'!F20:G20,2,FALSE)","v":3.65}]
["EPS next Q",{"$f":"VLOOKUP(\"EPS next Q\",'SC - FinViz Profile1'!F1:M30,2,FALSE)","v":3.78},null,"EPS next Q",{"$f":"VLOOKUP(\"EPS next Q\",'SC - FinViz Profile2'!F1:M30,2,FALSE)","v":0.75},null,"EPS next Q",{"$f":"VLOOKUP(\"EPS next Q\",'SC - FinViz Profile3'!F1:M30,2,FALSE)","v":0.86}]
["EPS growth this Y",{"$f":"VLOOKUP(\"EPS this Y\",'SC - FinViz Profile1'!F1:M30,2,FALSE)","v":0.1},null,"EPS growth this Y",{"$f":"VLOOKUP(\"EPS this Y\",'SC - FinViz Profile2'!F1:M30,2,FALSE)","v":-0.2591},null,"EPS growth this Y",{"$f":"VLOOKUP(\"EPS this Y\",'SC - FinViz Profile3'!F1:M30,2,FALSE)","v":-2.9277000000000002}]
["EPS growth next Y",{"$f":"VLOOKUP(\"EPS next Y\",'SC - FinViz Profile1'!F23:G23,2,FALSE)","v":0.1008},null,"EPS growth next Y",{"$f":"VLOOKUP(\"EPS next Y\",'SC - FinViz Profile2'!F23:G23,2,FALSE)","v":0.1087},null,"EPS growth next Y",{"$f":"VLOOKUP(\"EPS next Y\",'SC - FinViz Profile3'!F23:G23,2,FALSE)","v":2.53E-2}]
["EPS growth next 5Y",{"$f":"VLOOKUP(\"EPS next 5Y\",'SC - FinViz Profile1'!F1:M30,2,FALSE)","v":0.10489999999999999},null,"EPS growth next 5Y",{"$f":"VLOOKUP(\"EPS next 5Y\",'SC - FinViz Profile2'!F1:M30,2,FALSE)","v":8.5300000000000001E-2},null,"EPS growth next 5Y",{"$f":"VLOOKUP(\"EPS next 5Y\",'SC - FinViz Profile3'!F1:M30,2,FALSE)","v":0}]
["EPS growth past 5Y",{"$f":"VLOOKUP(\"EPS past 5Y\",'SC - FinViz Profile1'!F1:M30,2,FALSE)","v":0.14979999999999999},null,"EPS growth past 5Y",{"$f":"VLOOKUP(\"EPS past 5Y\",'SC - FinViz Profile2'!F1:M30,2,FALSE)","v":7.0099999999999996E-2},null,"EPS growth past 5Y",{"$f":"VLOOKUP(\"EPS past 5Y\",'SC - FinViz Profile3'!F1:M30,2,FALSE)","v":3.2099999999999997E-2}]
["Sales growth past 5Y",{"$f":"VLOOKUP(\"Sales past 5Y\",'SC - FinViz Profile1'!F1:M30,2,FALSE)","v":1.1299999999999999E-2},null,"Sales growth past 5Y",{"$f":"VLOOKUP(\"Sales past 5Y\",'SC - FinViz Profile2'!F1:M30,2,FALSE)","v":7.5999999999999998E-2},null,"Sales growth past 5Y",{"$f":"VLOOKUP(\"Sales past 5Y\",'SC - FinViz Profile3'!F1:M30,2,FALSE)","v":2.9100000000000001E-2}]
["Sales growth Q/Q",{"$f":"VLOOKUP(\"Sales Q/Q\",'SC - FinViz Profile1'!F1:M30,2,FALSE)","v":-5.1299999999999998E-2},null,"Sales growth Q/Q",{"$f":"VLOOKUP(\"Sales Q/Q\",'SC - FinViz Profile2'!F1:M30,2,FALSE)","v":0.17710000000000001},null,"Sales growth Q/Q",{"$f":"VLOOKUP(\"Sales Q/Q\",'SC - FinViz Profile3'!F1:M30,2,FALSE)","v":-5.5800000000000002E-2}]
["EPS growth Q/Q",{"$f":"VLOOKUP(\"EPS Q/Q\",'SC - FinViz Profile1'!F1:M30,2,FALSE)","v":3.3099999999999997E-2},null,"EPS growth Q/Q",{"$f":"VLOOKUP(\"EPS Q/Q\",'SC - FinViz Profile2'!F1:M30,2,FALSE)","v":0.1951},null,"EPS growth Q/Q",{"$f":"VLOOKUP(\"EPS Q/Q\",'SC - FinViz Profile3'!F1:M30,2,FALSE)","v":-0.14269999999999999}]
["Earnings Date",{"$f":"VLOOKUP(\"Earnings\",'SC - FinViz Profile1'!F1:M30,2,FALSE)","v":"Apr 18 AMC"},null,"Earnings Date",{"$f":"VLOOKUP(\"Earnings\",'SC - FinViz Profile2'!F1:M30,2,FALSE)","v":"Apr 18 AMC"},null,"Earnings Date",{"$f":"VLOOKUP(\"Earnings\",'SC - FinViz Profile3'!F1:M30,2,FALSE)","v":"May 22 AMC"}]
["Insider Ownership",{"$f":"VLOOKUP(\"Insider Own\",'SC - FinViz Profile1'!H1:M30,2,FALSE)","v":5.9999999999999995E-4},null,"Insider Ownership",{"$f":"VLOOKUP(\"Insider Own\",'SC - FinViz Profile2'!H1:M30,2,FALSE)","v":4.82E-2},null,"Insider Ownership",{"$f":"VLOOKUP(\"Insider Own\",'SC - FinViz Profile3'!H1:M30,2,FALSE)","v":5.0000000000000001E-4}]
["Insider Trans.",{"$f":"VLOOKUP(\"Insider Trans\",'SC - FinViz Profile1'!H1:M30,2,FALSE)","v":0.15640000000000001},null,"Insider Trans.",{"$f":"VLOOKUP(\"Insider Trans\",'SC - FinViz Profile2'!H1:M30,2,FALSE)","v":-9.1499999999999998E-2},null,"Insider Trans.",{"$f":"VLOOKUP(\"Insider Trans\",'SC - FinViz Profile3'!H1:M30,2,FALSE)","v":0.51400000000000001}]
["Institutional Ownership",{"$f":"VLOOKUP(\"Inst Own\",'SC - FinViz Profile1'!H1:M30,2,FALSE)","v":0.60019999999999996},null,"Institutional Ownership",{"$f":"VLOOKUP(\"Inst Own\",'SC - FinViz Profile2'!H1:M30,2,FALSE)","v":0.68240000000000001},null,"Institutional Ownership",{"$f":"VLOOKUP(\"Inst Own\",'SC - FinViz Profile3'!H1:M30,2,FALSE)","v":0.77529999999999999}]
["Institutional Trans.",{"$f":"VLOOKUP(\"Inst Trans\",'SC - FinViz Profile1'!H1:M30,2,FALSE)","v":-4.4999999999999997E-3},null,"Institutional Trans.",{"$f":"VLOOKUP(\"Inst Trans\",'SC - FinViz Profile2'!H1:M30,2,FALSE)","v":1.11E-2},null,"Institutional Trans.",{"$f":"VLOOKUP(\"Inst Trans\",'SC - FinViz Profile3'!H1:M30,2,FALSE)","v":-2.3800000000000002E-2}]
["ROA",{"$f":"VLOOKUP(\"ROA\",'SC - FinViz Profile1'!H1:M30,2,FALSE)","v":0.14249999999999999},null,"ROA",{"$f":"VLOOKUP(\"ROA\",'SC - FinViz Profile2'!H1:M30,2,FALSE)","v":0.13009999999999999},null,"ROA",{"$f":"VLOOKUP(\"ROA\",'SC - FinViz Profile3'!H1:M30,2,FALSE)","v":-0.1105}]
["ROE",{"$f":"VLOOKUP(\"ROE\",'SC - FinViz Profile1'!H1:M30,2,FALSE)","v":0.83279999999999998},null,"ROE",{"$f":"VLOOKUP(\"ROE\",'SC - FinViz Profile2'!H1:M30,2,FALSE)","v":0.22570000000000001},null,"ROE",{"$f":"VLOOKUP(\"ROE\",'SC - FinViz Profile3'!H1:M30,2,FALSE)","v":-0.4153}]
["ROI",{"$f":"VLOOKUP(\"ROI\",'SC - FinViz Profile1'!H1:M30,2,FALSE)","v":0.21790000000000001},null,"ROI",{"$f":"VLOOKUP(\"ROI\",'SC - FinViz Profile2'!H1:M30,2,FALSE)","v":0.1691},null,"ROI",{"$f":"VLOOKUP(\"ROI\",'SC - FinViz Profile3'!H1:M30,2,FALSE)","v":-0.1792}]
["Gross Margin",{"$f":"VLOOKUP(\"Gross Margin\",'SC - FinViz Profile1'!H1:M30,2,FALSE)","v":0.4829},null,"Gross Margin",{"$f":"VLOOKUP(\"Gross Margin\",'SC - FinViz Profile2'!H1:M30,2,FALSE)","v":0.75249999999999995},null,"Gross Margin",{"$f":"VLOOKUP(\"Gross Margin\",'SC - FinViz Profile3'!H1:M30,2,FALSE)","v":0.22939999999999999}]
["Operating Margin",{"$f":"VLOOKUP(\"Oper. Margin\",'SC - FinViz Profile1'!H1:M30,2,FALSE)","v":0.2099},null,"Operating Margin",{"$f":"VLOOKUP(\"Oper. Margin\",'SC - FinViz Profile2'!H1:M30,2,FALSE)","v":0.2727},null,"Operating Margin",{"$f":"VLOOKUP(\"Oper. Margin\",'SC - FinViz Profile3'!H1:M30,2,FALSE)","v":-9.5600000000000004E-2}]
["Profit Margin",{"$f":"VLOOKUP(\"Profit Margin\",'SC - FinViz Profile1'!H1:M30,2,FALSE)","v":0.1605},null,"Profit Margin",{"$f":"VLOOKUP(\"Profit Margin\",'SC - FinViz Profile2'!H1:M30,2,FALSE)","v":0.21579999999999999},null,"Profit Margin",{"$f":"VLOOKUP(\"Profit Margin\",'SC - FinViz Profile3'!H1:M30,2,FALSE)","v":-0.1086}]
["Payout Ratio",{"$f":"VLOOKUP(\"Payout\",'SC - FinViz Profile1'!H1:M30,2,FALSE)","v":0.2324},null,"Payout Ratio",{"$f":"VLOOKUP(\"Payout\",'SC - FinViz Profile2'!H1:M30,2,FALSE)","v":0.45440000000000003},null,"Payout Ratio",{"$f":"VLOOKUP(\"Payout\",'SC - FinViz Profile3'!H1:M30,2,FALSE)","v":"-"}]
["Target Price",{"$f":"VLOOKUP(\"Target Price\",'SC - FinViz Profile1'!J1:M30,2,FALSE)","v":221.9},null,"Target Price",{"$f":"VLOOKUP(\"Target Price\",'SC - FinViz Profile2'!J1:M30,2,FALSE)","v":33.64},null,"Target Price",{"$f":"VLOOKUP(\"Target Price\",'SC - FinViz Profile3'!J1:M30,2,FALSE)","v":22.56}]
["RSI (14)",{"$f":"VLOOKUP(\"RSI (14)\",'SC - FinViz Profile1'!J1:M30,2,FALSE)","v":56.22},null,"RSI (14)",{"$f":"VLOOKUP(\"RSI (14)\",'SC - FinViz Profile2'!J1:M30,2,FALSE)","v":70.31},null,"RSI (14)",{"$f":"VLOOKUP(\"RSI (14)\",'SC - FinViz Profile3'!J1:M30,2,FALSE)","v":70.23}]
["Performance Week",{"$f":"VLOOKUP(\"Perf Week\",'SC - FinViz Profile1'!L1:M30,2,FALSE)","v":8.9999999999999998E-4},null,"Performance Week",{"$f":"VLOOKUP(\"Perf Week\",'SC - FinViz Profile2'!L1:M30,2,FALSE)","v":-1.6999999999999999E-3},null,"Performance Week",{"$f":"VLOOKUP(\"Perf Week\",'SC - FinViz Profile3'!L1:M30,2,FALSE)","v":0.1638}]
["Performance Month",{"$f":"VLOOKUP(\"Perf Month\",'SC - FinViz Profile1'!L1:M30,2,FALSE)","v":7.4399999999999994E-2},null,"Performance Month",{"$f":"VLOOKUP(\"Perf Month\",'SC - FinViz Profile2'!L1:M30,2,FALSE)","v":0.10929999999999999},null,"Performance Month",{"$f":"VLOOKUP(\"Perf Month\",'SC - FinViz Profile3'!L1:M30,2,FALSE)","v":0.2344}]
["Performance Quarter",{"$f":"VLOOKUP(\"Perf Quarter\",'SC - FinViz Profile1'!L1:M30,2,FALSE)","v":4.8300000000000003E-2},null,"Performance Quarter",{"$f":"VLOOKUP(\"Perf Quarter\",'SC - FinViz Profile2'!L1:M30,2,FALSE)","v":0.28839999999999999},null,"Performance Quarter",{"$f":"VLOOKUP(\"Perf Quarter\",'SC - FinViz Profile3'!L1:M30,2,FALSE)","v":0.25319999999999998}]
["Performance Half Year",{"$f":"VLOOKUP(\"Perf Half Y\",'SC - FinViz Profile1'!L1:M30,2,FALSE)","v":8.3400000000000002E-2},null,"Performance Half Year",{"$f":"VLOOKUP(\"Perf Half Y\",'SC - FinViz Profile2'!L1:M30,2,FALSE)","v":0.28370000000000001},null,"Performance Half Year",{"$f":"VLOOKUP(\"Perf Half Y\",'SC - FinViz Profile3'!L1:M30,2,FALSE)","v":1.0139}]
["Performance Year",{"$f":"VLOOKUP(\"Perf Year\",'SC - FinViz Profile1'!L1:M30,2,FALSE)","v":7.8100000000000003E-2},null,"Performance Year",{"$f":"VLOOKUP(\"Perf Year\",'SC - FinViz Profile2'!L1:M30,2,FALSE)","v":0.23960000000000001},null,"Performance Year",{"$f":"VLOOKUP(\"Perf Year\",'SC - FinViz Profile3'!L1:M30,2,FALSE)","v":0.20419999999999999}]
["Performance YTD",{"$f":"VLOOKUP(\"Perf YTD\",'SC - FinViz Profile1'!L1:M30,2,FALSE)","v":9.4399999999999998E-2},null,"Performance YTD",{"$f":"VLOOKUP(\"Perf YTD\",'SC - FinViz Profile2'!L1:M30,2,FALSE)","v":0.33110000000000001},null,"Performance YTD",{"$f":"VLOOKUP(\"Perf YTD\",'SC - FinViz Profile3'!L1:M30,2,FALSE)","v":0.74080000000000001}]
["Beta",{"$f":"VLOOKUP(\"Beta\",'SC - FinViz Profile1'!L1:M30,2,FALSE)","v":0.69},null,"Beta",{"$f":"VLOOKUP(\"Beta\",'SC - FinViz Profile2'!L1:M30,2,FALSE)","v":0.96},null,"Beta",{"$f":"VLOOKUP(\"Beta\",'SC - FinViz Profile3'!L1:M30,2,FALSE)","v":1.18}]

{"sheet":"SC - MSN Money Quotes","index":4,"n_rows":77,"n_cols":16,"rows_kept":77,"cut":false,"hidden":false,"merged":[[75,0,75,15],[76,0,76,15],[77,0,77,15],[69,0,69,15],[70,0,70,15],[71,0,71,15],[72,0,72,15],[73,0,73,15],[74,0,74,15],[68,0,68,15],[44,0,44,15],[45,0,45,15],[46,0,46,15],[47,0,47,15],[59,0,59,15],[60,0,60,15],[64,2,64,4],[64,6,64,8],[65,2,65,4],[65,6,65,8],[67,0,67,15],[43,0,43,15],[30,0,30,15],[34,2,34,4],[34,6,34,8],[35,2,35,4],[35,6,35,8],[37,0,37,15],[38,0,38,15],[39,0,39,15],[40,0,40,15],[41,0,41,15],[42,0,42,15],[29,0,29,15],[8,0,8,15],[9,0,9,15],[10,0,10,15],[11,0,11,15],[12,0,12,15],[13,0,13,15],[14,0,14,15],[15,0,15,15],[16,0,16,15],[17,0,17,15],[18,0,18,15],[0,0,0,15],[1,0,1,15],[5,2,5,4],[5,6,5,8],[6,2,6,4],[6,6,6,8]]}
["Stock Quotes Provided by MSN Money"]
["Click here to visit MSN Money"]
[null,null,null,"Last","Previous Close","High","Low","Volume","Change","% Change","52 Wk High","52 Wk Low","Market Cap","EPS","P/E Ratio","# Shares Out"]
["International Business Machines Corp ","Chart","News",207.78,205.72,208.59,207.16,4011444,2.06,0.01,215.9,181.85,230385215966,14.5,14.2,1108794000]
[]
["Symbol Lookup",null,"MSN Money Home",null,null,null,"Microsoft Office Tools on the Web"]
["Find stocks, mutual funds, options, indices, and currencies.",null,"Discover MSN Money's tools, columns, and more!",null,null,null,"Get the latest from Microsoft Office"]
[]
["Terms of Use. © 2013 Microsoft Corporation and/or its suppliers. All rights reserved."]
["DATA PROVIDERS"]
[]
["Copyright © 2013 Microsoft. All rights reserved."]
[]
["Quotes are real-time for NASDAQ, NYSE and AMEX. See delay times for other exchanges."]
[]
["Fundamental company data and historical chart data provided by Thomson Reuters (click for restrictions). Real-time quotes provided by BATS Exchange. Real-time index quotes and delayed quotes supplied by Interactive Data Real-Time Services. Fund summary, fund performance and dividend data provided by Morningstar Inc. Analyst recommendations provided by Zacks Investment Research. StockScouter data provided by Verus Analytics. IPO data provided by Hoover's Inc. Index membership data provided by SIX Telekurs."]
[]
["Japanese stock price data provided by Nomura Research Institute Ltd.; quotes delayed 20 minutes. Canadian fund data provided by CANNEX Financial Exchanges Ltd."]
[]
[]
[]
[]
[]
[]
[]
[]
[]
[]
[]
["Stock Quotes Provided by MSN Money"]
["Click here to visit MSN Money"]
[null,null,null,"Last","Previous Close","High","Low","Volume","Change","% Change","52 Wk High","52 Wk Low","Market Cap","EPS","P/E Ratio","# Shares Out"]
["Microsoft Corp ","Chart","News",35.020000000000003,34.270000000000003,35.18,34.409999999999997,48214433,0.75,2.1899999999999999E-2,35.270000000000003,26.26,292455735943,1.94,17.7,8351106000]
[]
["Symbol Lookup",null,"MSN Money Home",null,null,null,"Microsoft Office Tools on the Web"]
["Find stocks, mutual funds, options, indices, and currencies.",null,"Discover MSN Money's tools, columns, and more!",null,null,null,"Get the latest from Microsoft Office"]
[]
["Terms of Use. © 2013 Microsoft Corporation and/or its suppliers. All rights reserved."]
["DATA PROVIDERS"]
[]
["Copyright © 2013 Microsoft. All rights reserved."]
[]
["Quotes are real-time for NASDAQ, NYSE and AMEX. See delay times for other exchanges."]
[]
["Fundamental company data and historical chart data provided by Thomson Reuters (click for restrictions). Real-time quotes provided by BATS Exchange. Real-time index quotes and delayed quotes supplied by Interactive Data Real-Time Services. Fund summary, fund performance and dividend data provided by Morningstar Inc. Analyst recommendations provided by Zacks Investment Research. StockScouter data provided by Verus Analytics. IPO data provided by Hoover's Inc. Index membership data provided by SIX Telekurs."]
[]
["Japanese stock price data provided by Nomura Research Institute Ltd.; quotes delayed 20 minutes. Canadian fund data provided by CANNEX Financial Exchanges Ltd."]
[]
[]
[]
[]
[]
[]
[]
[]
[]
[]
[]
[]
["Stock Quotes Provided by MSN Money"]
["Click here to visit MSN Money"]
[null,null,null,"Last","Previous Close","High","Low","Volume","Change","% Change","52 Wk High","52 Wk Low","Market Cap","EPS","P/E Ratio","# Shares Out"]
["Hewlett-Packard Co ","Chart","News",24.65,24.21,24.7,24.21,19652027,0.44,1.8200000000000001E-2,24.95,11.35,47920092258,-6.8,null,1944020000]
[]
["Symbol Lookup",null,"MSN Money Home",null,null,null,"Microsoft Office Tools on the Web"]
["Find stocks, mutual funds, options, indices, and currencies.",null,"Discover MSN Money's tools, columns, and more!",null,null,null,"Get the latest from Microsoft Office"]
[]
["Terms of Use. © 2013 Microsoft Corporation and/or its suppliers. All rights reserved."]
["DATA PROVIDERS"]
[]
["Copyright © 2013 Microsoft. All rights reserved."]
[]
["Quotes are real-time for NASDAQ, NYSE and AMEX. See delay times for other exchanges."]
[]
["Fundamental company data and historical chart data provided by Thomson Reuters (click for restrictions). Real-time quotes provided by BATS Exchange. Real-time index quotes and delayed quotes supplied by Interactive Data Real-Time Services. Fund summary, fund performance and dividend data provided by Morningstar Inc. Analyst recommendations provided by Zacks Investment Research. StockScouter data provided by Verus Analytics. IPO data provided by Hoover's Inc. Index membership data provided by SIX Telekurs."]
[]
["Japanese stock price data provided by Nomura Research Institute Ltd.; quotes delayed 20 minutes. Canadian fund data provided by CANNEX Financial Exchanges Ltd."]

{"sheet":"SC - Sector and Industry1","index":5,"n_rows":76,"n_cols":10,"rows_kept":76,"cut":false,"hidden":false,"merged":[[69,0,69,11],[70,0,70,11],[9,12,70,12],[62,0,62,5],[63,0,63,5],[67,0,67,5],[68,0,68,7],[17,0,17,11],[28,0,28,11],[53,0,53,11],[54,0,54,11],[55,0,55,11],[42,0,42,5],[43,1,43,2],[56,0,56,5],[57,0,57,5],[60,6,60,7],[61,0,61,5],[27,0,27,8],[29,0,29,5],[37,0,37,11],[39,0,39,5],[40,0,40,7],[41,0,41,5],[21,0,21,8],[22,0,22,8],[23,0,23,8],[24,0,24,8],[25,0,25,8],[9,13,70,13],[66,6,66,7],[14,0,14,5],[14,6,14,7],[8,0,8,5],[8,6,8,7],[9,0,9,5],[12,0,12,5],[13,0,13,5],[26,0,26,8],[15,0,15,5],[15,6,15,7],[16,0,16,5],[16,6,16,7],[19,0,19,8],[20,0,20,8]]}
["Search","Search Web"]
[]
[]
[]
[]
[]
[null,null,"AdvertisementAdvertisement"]
[]
["Industry: Information Technology Services",null,null,null,null,null,"Get Industry for: "]
["IBM Sector / Industry Membership"]
["Sector:","Technology"]
["Industry:","Information Technology Services"]
[]
["Intraday Performance Summary"]
["Name",null,null,null,null,null,"Ticker",null,"Change","Chart for International Business Machines Corporation (IBM)"]
["International Business Machines Corporation",null,null,null,null,null,"IBM",null,"Up1.00%"]
["Information Technology Services",null,null,null,null,null,"^YHOh878",null,"Up1.11%"]
["View Information Technology Services Industry Center"]
["Information Technology Services Industry News"]
[]
["Fisker loses key board member as bidders circle companyReuters (Tue 6:49PM EDT)"]
["International Business Machines Corp (IBM): Today's Featured Computer Software & Services Winnerat TheStreet (Tue 5:00PM EDT)"]
["When Customers Talk, Can You Hear Them? Lessons From HPat Forbes (Tue 2:52PM EDT)"]
["Michael Dell: All Business During A Stormat Forbes (Tue 2:38PM EDT)"]
["Hewlett-Packard Co Stock Upgraded (HPQ)at TheStreet (Tue 12:58PM EDT)"]
[]
["More Industry News..."]
[]
[]
["Top Information Technology Services Companies by Market Cap"]
["Company","Symbol","Price","Change","Market Cap","P/E"]
["International Business Machines Corporation","IBM",207.78,"Up1.00%","230.39B",14.33]
["Hewlett-Packard Company","HPQ",24.65,"Up1.82%","47.70B","N/A"]
["Teradata Corporation","TDC",54.46,"Up0.11%","8.90B",24.05]
["Cray Inc.","CRAY",17.809999999999999,"Up1.19%","667.13M",4.53]
["Silicon Graphics International Corp.","SGI",14.77,"Up1.93%","499.54M","N/A"]
["Invent Ventures, Inc.","IDEA",0.24,0,"8.86M","N/A"]
["Showing 1 - 5 of 7 - View All"]
[]
[]
["More Top Companies: by Performance, by Valuation, by Growth, by Growth"]
[]
["IBM vs. Industry Leaders"]
["Statistic","Industry Leader",null,"IBM","IBM Rank"]
["Market Capitalization","IBM","230.39B","-","2013-01-07"]
["P/E Ratio (ttm)","TDC",24.05,14.33,"2013-02-07"]
["PEG Ratio (ttm, 5 yr expected)","SGI",5.72,1.18,"2013-04-07"]
["Revenue Growth (Qtrly YoY)","SGI",0.16600000000000001,-5.0999999999999997E-2,"2013-03-07"]
["EPS Growth (Qtrly YoY)","IBM",3.4000000000000002E-2,"-","2013-01-07"]
["Long-Term Growth Rate (5 yr)","CRAY",0.2,0.10489999999999999,"2013-03-07"]
["Return on Equity (ttm)","IBM",0.8286,"-","2013-01-07"]
["Long-Term Debt/Equity (mrq)",null,null,173.816,"N/A"]
["Dividend Yield (annual)","HPQ",2.4E-2,1.7999999999999999E-2,"2013-02-07"]
[]
["View Leaders & Laggards"]
[]
["More on Information Technology Services"]
[]
["•","Industry Summary",null,null,null,null,"•","Company List"]
["•","News",null,null,null,null,"•","Industry Calendar"]
["•","Leaders & Laggards"]
[]
["Related Industries"]
[]
["•","Computer Based Systems",null,null,null,null,"•","Networking & Communication Devices"]
["•","Computer Peripherals",null,null,null,null,"•","Personal Computers"]
["•","Data Storage Devices"]
[]
["Top Performing Industries | Complete Industry List"]
[]
["Currency in USD."]
[]
["Copyright © 2013 Yahoo! Inc. All rights reserved. Privacy Policy - About Our Ads - Terms of Service - Copyright/IP Policy - Send Feedback - Yahoo! - ABC News Network"]
["Quotes are real-time for NASDAQ, NYSE, and NYSE MKT. See also delay times for other exchanges. All information provided \"as is\" for informational purposes only, not intended for trading purposes or advice. Neither Yahoo! nor any of independent providers is liable for any informational errors, incompleteness, or delays, or for any actions taken in reliance on information contained herein. By accessing the Yahoo! site, you agree not to redistribute the information found therein. Real-Time continuous streaming quotes are available through our premium service. You may turn streaming quotes on or off."]
[]
["Fundamental company data provided by Capital IQ. Historical chart data and daily updates provided by Commodity Systems, Inc. (CSI). International historical chart data, daily updates, fund summary, fund performance, dividend data and Morningstar Index data provided by Morningstar, Inc."]

{"sheet":"SC - Sector and Industry2","index":6,"n_rows":76,"n_cols":14,"rows_kept":76,"cut":false,"hidden":false,"merged":[[69,0,69,11],[70,0,70,11],[9,12,70,12],[62,0,62,5],[63,0,63,5],[67,0,67,5],[68,0,68,7],[17,0,17,11],[28,0,28,11],[53,0,53,11],[54,0,54,11],[55,0,55,11],[42,0,42,5],[43,1,43,2],[56,0,56,5],[57,0,57,5],[60,6,60,7],[61,0,61,5],[27,0,27,8],[29,0,29,5],[37,0,37,11],[39,0,39,5],[40,0,40,7],[41,0,41,5],[26,0,26,8],[15,0,15,5],[15,6,15,7],[16,0,16,5],[16,6,16,7],[19,0,19,8],[20,0,20,8],[21,0,21,8],[22,0,22,8],[23,0,23,8],[24,0,24,8],[25,0,25,8],[14,0,14,5],[14,6,14,7],[8,0,8,5],[8,6,8,7],[9,0,9,5],[12,0,12,5],[13,0,13,5]]}
["Search","Search Web"]
[]
[]
[]
[]
[]
["AdvertisementAdvertisement"]
[]
["Industry: Application Software",null,null,null,null,null,"Get Industry for: "]
["MSFT Sector / Industry Membership",null,null,null,null,null,null,null,null,null,null,null,null,"AdChoices"]
["Sector:","Technology"]
["Industry:","Application Software"]
[]
["Intraday Performance Summary"]
["Name",null,null,null,null,null,"Ticker",null,"Change","Chart for Microsoft Corporation (MSFT)"]
["Microsoft Corporation",null,null,null,null,null,"MSFT",null,"Up2.19%"]
["Application Software",null,null,null,null,null,"^YHOh885",null,"Up1.48%"]
["View Application Software Industry Center"]
["Application Software Industry News"]
[]
["Salesforce.com Inc. (CRM): Today's Featured Computer Software & Services Laggardat TheStreet (Tue 5:01PM EDT)"]
["Oracle Corporation (ORCL): Today's Featured Technology Winnerat TheStreet (Tue 5:00PM EDT)"]
["Agilysys to Report Fiscal 2013 Fourth Quarter and Year End Results on June 12 and Host Conference Call and WebcastBusiness Wire (Tue 4:30PM EDT)"]
["PAR Technology Corporation to Host Annual Shareholders Meeting and PresentationBusiness Wire (Tue 4:01PM EDT)"]
["Q&A: Sending an Automated Vacation Reply With Outlook.comat New York Times (Tue 3:58PM EDT)"]
[]
["More Industry News..."]
[]
[]
["Top Application Software Companies by Market Cap"]
["Company","Symbol","Price","Change","Market Cap","P/E"]
["Microsoft Corporation","MSFT",35.020000000000003,"Up2.19%","292.46B",18.07]
["Oracle Corporation","ORCL",34.53,"Up1.41%","162.66B",16.079999999999998]
["SAP AG","SAP",77.010000000000005,"Up1.50%","91.83B",24.47]
["salesforce.com, inc","CRM",41.8,"Down3.35%","24.59B","N/A"]
["Adobe Systems Inc.","ADBE",42.91,"Up1.13%","21.54B",30.26]
["Intuit Inc.","INTU",59.11,"Up2.09%","17.56B",20.329999999999998]
["Showing 1 - 5 of 132 - View All"]
[]
[]
["More Top Companies: by Performance, by Valuation, by Growth, by Growth"]
[]
["MSFT vs. Industry Leaders"]
["Statistic","Industry Leader",null,"MSFT","MSFT Rank"]
["Market Capitalization","MSFT","292.46B","-","1 / 132"]
["P/E Ratio (ttm)","SPSC",680,18.07,"42 / 132"]
["PEG Ratio (ttm, 5 yr expected)","IMPV",31.68,1.48,"29 / 132"]
["Revenue Growth (Qtrly YoY)","NQ",1.08,0.17699999999999999,"38 / 132"]
["EPS Growth (Qtrly YoY)","FLTX",1.5509999999999999,0.2,"19 / 132"]
["Long-Term Growth Rate (5 yr)","WDAY",0.5,8.5300000000000001E-2,"69 / 132"]
["Return on Equity (ttm)","CDNS",0.65849999999999997,0.2258,"10 / 132"]
["Long-Term Debt/Equity (mrq)",null,null,19.253,"N/A"]
["Dividend Yield (annual)","AMSWA",4.8000000000000001E-2,2.7E-2,"6 / 132"]
[]
["View Leaders & Laggards"]
[]
["More on Application Software"]
[]
["•","Industry Summary",null,null,null,null,"•","Company List"]
["•","News",null,null,null,null,"•","Industry Calendar"]
["•","Leaders & Laggards"]
[]
["Related Industries"]
[]
["•","Business Software & Services",null,null,null,null,"•","Information Technology Services"]
["•","Healthcare Information Services",null,null,null,null,"•","Security Software & Services"]
["•","Information & Delivery Services",null,null,null,null,"•","Technical & System Software"]
[]
["Top Performing Industries | Complete Industry List"]
[]
["Currency in USD."]
[]
["Copyright © 2013 Yahoo! Inc. All rights reserved. Privacy Policy - About Our Ads - Terms of Service - Copyright/IP Policy - Send Feedback - Yahoo! - ABC News Network"]
["Quotes are real-time for NASDAQ, NYSE, and NYSE MKT. See also delay times for other exchanges. All information provided \"as is\" for informational purposes only, not intended for trading purposes or advice. Neither Yahoo! nor any of independent providers is liable for any informational errors, incompleteness, or delays, or for any actions taken in reliance on information contained herein. By accessing the Yahoo! site, you agree not to redistribute the information found therein. Real-Time continuous streaming quotes are available through our premium service. You may turn streaming quotes on or off."]
[]
["Fundamental company data provided by Capital IQ. Historical chart data and daily updates provided by Commodity Systems, Inc. (CSI). International historical chart data, daily updates, fund summary, fund performance, dividend data and Morningstar Index data provided by Morningstar, Inc."]

{"sheet":"SC - Sector and Industry3","index":7,"n_rows":76,"n_cols":10,"rows_kept":76,"cut":false,"hidden":false,"merged":[[69,0,69,11],[70,0,70,11],[9,12,70,12],[62,0,62,5],[63,0,63,5],[67,0,67,5],[68,0,68,7],[17,0,17,11],[28,0,28,11],[53,0,53,11],[54,0,54,11],[55,0,55,11],[42,0,42,5],[43,1,43,2],[56,0,56,5],[57,0,57,5],[60,6,60,7],[61,0,61,5],[27,0,27,8],[29,0,29,5],[37,0,37,11],[39,0,39,5],[40,0,40,7],[41,0,41,5],[21,0,21,8],[22,0,22,8],[23,0,23,8],[24,0,24,8],[25,0,25,8],[9,13,70,13],[66,6,66,7],[14,0,14,5],[14,6,14,7],[8,0,8,5],[8,6,8,7],[9,0,9,5],[12,0,12,5],[13,0,13,5],[26,0,26,8],[15,0,15,5],[15,6,15,7],[16,0,16,5],[16,6,16,7],[19,0,19,8],[20,0,20,8]]}
["Search","Search Web"]
[]
[]
[]
[]
[]
["AdvertisementAdvertisement"]
[]
["Industry: Diversified Computer Systems",null,null,null,null,null,"Get Industry for: "]
["HPQ Sector / Industry Membership"]
["Sector:","Technology"]
["Industry:","Diversified Computer Systems"]
[]
["Intraday Performance Summary"]
["Name",null,null,null,null,null,"Ticker",null,"Change","Chart for Hewlett-Packard Company (HPQ)"]
["Hewlett-Packard Company",null,null,null,null,null,"HPQ",null,"Up1.82%"]
["Diversified Computer Systems",null,null,null,null,null,"^YHOh878",null,"Up1.11%"]
["View Diversified Computer Systems Industry Center"]
["Diversified Computer Systems Industry News"]
[]
["Fisker loses key board member as bidders circle companyReuters (Tue 6:49PM EDT)"]
["International Business Machines Corp (IBM): Today's Featured Computer Software & Services Winnerat TheStreet (Tue 5:00PM EDT)"]
["When Customers Talk, Can You Hear Them? Lessons From HPat Forbes (Tue 2:52PM EDT)"]
["Michael Dell: All Business During A Stormat Forbes (Tue 2:38PM EDT)"]
["Hewlett-Packard Co Stock Upgraded (HPQ)at TheStreet (Tue 12:58PM EDT)"]
[]
["More Industry News..."]
[]
[]
["Top Diversified Computer Systems Companies by Market Cap"]
["Company","Symbol","Price","Change","Market Cap","P/E"]
["International Business Machines Corporation","IBM",207.78,"Up1.00%","230.39B",14.33]
["Hewlett-Packard Company","HPQ",24.65,"Up1.82%","47.70B","N/A"]
["Teradata Corporation","TDC",54.46,"Up0.11%","8.90B",24.05]
["Cray Inc.","CRAY",17.809999999999999,"Up1.19%","667.13M",4.53]
["Silicon Graphics International Corp.","SGI",14.77,"Up1.93%","499.54M","N/A"]
["Invent Ventures, Inc.","IDEA",0.24,0,"8.86M","N/A"]
["Showing 1 - 5 of 7 - View All"]
[]
[]
["More Top Companies: by Performance, by Valuation, by Growth, by Growth"]
[]
["HPQ vs. Industry Leaders"]
["Statistic","Industry Leader",null,"HPQ","HPQ Rank"]
["Market Capitalization","IBM","230.39B","47.70B","2013-02-07"]
["P/E Ratio (ttm)","TDC",24.05,"N/A","N/A"]
["PEG Ratio (ttm, 5 yr expected)","SGI",5.72,"N/A","2013-05-07"]
["Revenue Growth (Qtrly YoY)","SGI",0.16600000000000001,-0.10100000000000001,"2013-04-07"]
["EPS Growth (Qtrly YoY)","IBM",3.4000000000000002E-2,-0.312,"2013-02-07"]
["Long-Term Growth Rate (5 yr)","CRAY",0.2,0,"N/A"]
["Return on Equity (ttm)","IBM",0.8286,-0.40839999999999999,"2013-05-07"]
["Long-Term Debt/Equity (mrq)",null,null,111.946,"N/A"]
["Dividend Yield (annual)","HPQ",2.4E-2,"-","2013-01-07"]
[]
["View Leaders & Laggards"]
[]
["More on Diversified Computer Systems"]
[]
["•","Industry Summary",null,null,null,null,"•","Company List"]
["•","News",null,null,null,null,"•","Industry Calendar"]
["•","Leaders & Laggards"]
[]
["Related Industries"]
[]
["•","Computer Based Systems",null,null,null,null,"•","Networking & Communication Devices"]
["•","Computer Peripherals",null,null,null,null,"•","Personal Computers"]
["•","Data Storage Devices"]
[]
["Top Performing Industries | Complete Industry List"]
[]
["Currency in USD."]
[]
["Copyright © 2013 Yahoo! Inc. All rights reserved. Privacy Policy - About Our Ads - Terms of Service - Copyright/IP Policy - Send Feedback - Yahoo! - ABC News Network"]
["Quotes are real-time for NASDAQ, NYSE, and NYSE MKT. See also delay times for other exchanges. All information provided \"as is\" for informational purposes only, not intended for trading purposes or advice. Neither Yahoo! nor any of independent providers is liable for any informational errors, incompleteness, or delays, or for any actions taken in reliance on information contained herein. By accessing the Yahoo! site, you agree not to redistribute the information found therein. Real-Time continuous streaming quotes are available through our premium service. You may turn streaming quotes on or off."]
[]
["Fundamental company data provided by Capital IQ. Historical chart data and daily updates provided by Commodity Systems, Inc. (CSI). International historical chart data, daily updates, fund summary, fund performance, dividend data and Morningstar Index data provided by Morningstar, Inc."]

{"sheet":"SC - FinViz Profile1","index":8,"n_rows":224,"n_cols":32,"rows_kept":224,"cut":false,"hidden":false,"merged":[[160,0,160,4],[162,0,162,4],[31,0,31,12],[52,0,52,12],[153,0,153,12],[154,0,154,12],[155,0,155,12],[151,0,151,4],[152,0,152,4],[156,0,156,4],[157,0,157,4],[158,0,158,4],[159,0,159,4],[145,0,145,4],[146,0,146,4],[147,0,147,4],[148,0,148,4],[149,0,149,4],[150,0,150,4],[139,0,139,4],[140,0,140,4],[141,0,141,4],[142,0,142,4],[143,0,143,4],[144,0,144,4],[133,0,133,4],[134,0,134,4],[135,0,135,4],[136,0,136,4],[137,0,137,4],[138,0,138,4],[127,0,127,4],[128,0,128,4],[129,0,129,4],[130,0,130,4],[131,0,131,4],[132,0,132,4],[121,0,121,4],[122,0,122,4],[123,0,123,4],[124,0,124,4],[125,0,125,4],[126,0,126,4],[115,0,115,4],[116,0,116,4],[117,0,117,4],[118,0,118,4],[119,0,119,4],[120,0,120,4],[109,0,109,4],[110,0,110,4],[111,0,111,4],[112,0,112,4],[113,0,113,4],[114,0,114,4],[103,0,103,4],[104,0,104,4],[105,0,105,4],[106,0,106,4],[107,0,107,4],[108,0,108,4],[97,0,97,4],[98,0,98,4],[99,0,99,4],[100,0,100,4],[101,0,101,4],[102,0,102,4],[91,0,91,4],[92,0,92,4],[93,0,93,4],[94,0,94,4],[95,0,95,4],[96,0,96,4],[85,0,85,4],[86,0,86,4],[87,0,87,4],[88,0,88,4],[89,0,89,4],[90,0,90,4],[79,0,79,4],[80,0,80,4],[81,0,81,4],[82,0,82,4],[83,0,83,4],[84,0,84,4],[73,0,73,4],[74,0,74,4],[75,0,75,4],[76,0,76,4],[77,0,77,4],[78,0,78,4],[65,0,65,4],[66,0,66,4],[67,0,67,4],[68,0,68,4],[69,0,69,4],[12,0,12,12],[53,0,53,4],[54,0,54,4],[55,0,55,4],[56,0,56,4],[57,0,57,4],[11,0,11,1],[13,0,13,1],[18,0,18,1],[19,0,19,1],[70,0,70,4],[71,0,71,4],[72,0,72,4],[61,0,61,4],[62,0,62,4],[63,0,63,4],[58,0,58,4],[59,0,59,4],[60,0,60,4],[28,0,28,1],[29,0,29,1],[25,0,25,1],[26,0,26,1],[27,0,27,1],[22,0,22,1],[23,0,23,1],[24,0,24,1],[20,0,20,1],[21,0,21,1],[64,0,64,4],[4,7,7,7],[4,8,7,8],[4,9,7,9],[4,10,7,10],[4,11,7,11],[4,0,7,0],[4,1,7,1],[4,2,7,2],[4,3,7,3],[4,4,7,4],[4,5,7,5],[4,24,7,24],[4,25,7,25],[5,26,5,31],[7,26,7,31],[161,0,161,4],[163,0,163,4],[164,0,164,4],[9,0,9,12],[10,0,10,12],[4,18,7,18],[4,19,7,19],[4,20,7,20],[4,21,7,21],[4,22,7,22],[4,23,7,23],[4,12,7,12],[4,13,7,13],[4,14,7,14],[4,15,7,15],[4,16,7,16],[4,17,7,17],[4,6,7,6],[165,0,165,4],[166,0,166,4],[167,0,167,4],[168,0,168,4],[169,0,169,4],[170,0,170,4],[171,0,171,4],[172,0,172,4],[173,0,173,4],[174,0,174,4],[175,0,175,4],[176,0,176,4],[177,0,177,4],[178,0,178,4],[179,0,179,4],[180,0,180,4],[181,0,181,4],[182,0,182,4],[183,0,183,4],[184,0,184,4],[185,0,185,4],[186,0,186,4],[187,0,187,4],[188,0,188,4],[189,0,189,4],[190,0,190,4],[191,0,191,4],[192,0,192,4],[193,0,193,4],[194,0,194,4],[195,0,195,4],[196,0,196,4],[197,0,197,4],[198,0,198,4],[199,0,199,4],[200,0,200,4],[201,0,201,4],[202,0,202,4],[203,0,203,4],[204,0,204,4],[205,0,205,4],[206,0,206,4],[207,0,207,4],[208,0,208,4],[209,0,209,4],[219,0,219,4],[220,0,220,4],[221,0,221,4],[223,0,223,4],[222,0,222,12],[224,0,224,12],[210,0,210,4],[211,0,211,4],[212,0,212,4],[213,0,213,4],[214,0,214,4],[215,0,215,4],[216,0,216,4],[217,0,217,4],[218,0,218,4]]}
[null,null,null,"Welcome Guest!  Login | Register | Help"]
[]
[]
[]
[null,"Home",null,"News",null,"Screener",null,"Maps",null,"Groups",null,"Portfolio",null,"Insider",null,"Futures",null,"Forex",null,"Collaborate",null,"Store",null,null,"Elite"]
[]
[null,null,null,null,null,null,null,null,null,null,null,null,null,null,null,null,null,null,null,null,null,null,null,null,null,null,null,"Ticker",null,"Company",null,"Profile"]
[]
[]
[]
[]
["publish chart | backtests Type: candle | line | advanced    Timeframe: intraday | daily | weekly | monthly  ",null,"Settings"]
[]
[]
["IBM [NYSE]"]
["International Business Machines Corp."]
["Technology | Information Technology Services | USA"]
[null,"financial highlights | statements"]
["Index",null,"DJIA S&P500","P/E",14.33,"EPS (ttm)",14.5,"Insider Own",5.9999999999999995E-4,"Shs Outstand","1.11B","Perf Week",8.9999999999999998E-4]
["Market Cap",null,"230.38B","Forward P/E",11.32,"EPS next Y",18.350000000000001,"Insider Trans",0.15640000000000001,"Shs Float","1.11B","Perf Month",7.4399999999999994E-2]
["Income",null,"16.57B","PEG",1.37,"EPS next Q",3.78,"Inst Own",0.60019999999999996,"Short Float",1.5100000000000001E-2,"Perf Quarter",4.8300000000000003E-2]
["Sales",null,"103.24B","P/S",2.23,"EPS this Y",0.1,"Inst Trans",-4.4999999999999997E-3,"Short Ratio",3.9,"Perf Half Y",8.3400000000000002E-2]
["Book/sh",null,17.21,"P/B",12.07,"EPS next Y",0.1008,"ROA",0.14249999999999999,"Target Price",221.9,"Perf Year",7.8100000000000003E-2]
["Cash/sh",null,10.82,"P/C",19.21,"EPS next 5Y",0.10489999999999999,"ROE",0.83279999999999998,"52W Range","178.69 - 214.90","Perf YTD",9.4399999999999998E-2]
["Dividend",null,3.8,"P/FCF",20.96,"EPS past 5Y",0.14979999999999999,"ROI",0.21790000000000001,"52W High",-3.3099999999999997E-2,"Beta",0.69]
["Dividend %",null,1.83E-2,"Quick Ratio",1.1000000000000001,"Sales past 5Y",1.1299999999999999E-2,"Gross Margin",0.4829,"52W Low",0.1628,"ATR",3.28]
["Employees",null,434246,"Current Ratio",1.1599999999999999,"Sales Q/Q",-5.1299999999999998E-2,"Oper. Margin",0.2099,"RSI (14)",56.22,"Volatility","1.30% 1.32%"]
["Optionable",null,"Yes","Debt/Eq",1.75,"EPS Q/Q",3.3099999999999997E-2,"Profit Margin",0.1605,"Rel Volume",0.93,"Prev Close",205.72]
["Shortable",null,"Yes","LT Debt/Eq",1.29,"Earnings","Apr 18 AMC","Payout",0.2324,"Avg Volume","4.29M","Price",207.78]
["Recom",null,2.4,"SMA20",1.9099999999999999E-2,"SMA50",1.0699999999999999E-2,"SMA200",4.5100000000000001E-2,"Volume",4009946,"Change",0.01]
[]
[]
["2013-04-19","Reiterated","Deutsche Bank","Buy","$240 → $225"]
["2013-04-10","Upgrade","UBS","Neutral → Buy","$210 → $235"]
["2012-10-15","Reiterated","Stifel Nicolaus","Buy","$221 → $243"]
["2012-09-04","Upgrade","Barclays","Equal Weight → Overweight","$208 → $240"]
["2012-07-19","Reiterated","UBS","Neutral","$205 → $203"]
["2012-07-11","Initiated","UBS","Neutral",205]
["2012-04-18","Reiterated","Stifel Nicolaus","Buy","$210 → $230"]
["2012-04-18","Reiterated","RBC Capital Mkts","Sector Perform","$200 → $215"]
["2012-04-18","Reiterated","Barclays","Equal Weight","$200 → $217"]
["2012-04-18","Downgrade","Macquarie","Outperform → Neutral","$210 → $215"]
["2012-03-29","Reiterated","Argus","Buy","$220 → $235"]
["2012-03-23","Reiterated","UBS","Neutral","$195 → $203"]
["2012-02-07","Initiated","Sterne Agee","Buy"]
["2012-01-10","Reiterated","Barclays Capital","Equal Weight","$205 → $195"]
["2011-12-06","Reiterated","Barclays Capital","Equal Weight","$190 → $205"]
["2011-07-19","Reiterated","UBS","Neutral","$169 → $180"]
["2011-07-19","Reiterated","RBC Capital Mkts","Sector Perform","$180 → $200"]
["2011-07-19","Reiterated","Barclays Capital","Equal Weight","$176 → $190"]
["2011-07-07","Downgrade","Davenport","Buy → Neutral",189]
["2011-04-20","Reiterated","Stifel Nicolaus","Buy","$185 → $187"]
[]
["28-May-13 06:02PM  ",null,null,null,null,"Final Glance: Computer companies AP"]
["05:00PM  ",null,null,null,null,"International Business Machines Corp (IBM): Today's Featured Computer Software & Services Winner at TheStreet"]
["04:43PM  ",null,null,null,null,"4 Tech Stock Stories to Start the Short Trading Week at Wall St. Cheat Sheet"]
["04:30PM  ",null,null,null,null,"Dow Today: International Business Machines (IBM) Leads The Day Higher, AT&T (T) Lags at TheStreet"]
["03:25PM  ",null,null,null,null,"Accenture Helps NHS Radiologists Zacks"]
["02:38PM  ",null,null,null,null,"Michael Dell: All Business During A Storm at Forbes"]
["01:27PM  ",null,null,null,null,"Complex Multinationals Increase Value as Investors Develop Appreciation for Eclectic Businesses: an Interview with Nick Heymann, Co-Group Head, Global Industrial Infrastructure for William Blair & Company Wall Street Transcript"]
["01:17PM  ",null,null,null,null,"Midday Glance: Computer companies AP"]
["01:03PM  ",null,null,null,null,"5 Stocks Pushing The Technology Sector Higher at TheStreet"]
["12:44PM  ",null,null,null,null,"Midday Movers: UNH, PG, EXC & More at CNBC"]
["12:16PM  ",null,null,null,null,"Lenovo Expanding Smartphone Sales Outside Home Market at TheStreet"]
["12:10PM  ",null,null,null,null,"McDonalds Makes Friends In Italy, IBM Settles Acacia Matters, and 3 More Hot Stocks at Wall St. Cheat Sheet"]
["11:45AM  ",null,null,null,null,"[audio] Cardillo: Month will end with big gains at MarketWatch"]
["11:31AM  ",null,null,null,null,"The most powerful women in business -- then and now at Fortune"]
["11:25AM  ",null,null,null,null,"Is This Comeback for Real? at Motley Fool"]
["11:20AM  ",null,null,null,null,"Michael Dell: All Business at Forbes"]
["11:14AM  ",null,null,null,null,"Can Foxconn Compete With Apple in the Tablet Market? The Daily Ticker"]
["10:31AM  ",null,null,null,null,"Early Glance: Computer companies AP"]
["10:22AM  ",null,null,null,null,"Is Buying After a Tech Company Warns a Good Tactic? at Motley Fool"]
["06:15AM  ",null,null,null,null,"The Buyback Kings, Part 3: Which Of These Massive Tech Kings Should You Own? at Seeking Alpha"]
["06:03AM  ",null,null,null,null,"Acacia Research subsidiary enters into license agreement with IBM theflyonthewall.com"]
["27-May-13 01:55PM  ",null,null,null,null,"Lack Of IBM-Lenovo Deal Implies Rapid Change In Server Market at Seeking Alpha"]
["26-May-13 04:00PM  ",null,null,null,null,"The Dow Jumps the Gun at Motley Fool"]
["02:00PM  ",null,null,null,null,"Microsoft Catches a Wave, and the First Shot in the Software Patent Wars at Motley Fool"]
["11:45AM  ",null,null,null,null,"It's Time to Buy Xerox Stock. Here's Why. at Motley Fool"]
["25-May-13 04:00PM  ",null,null,null,null,"The Wealth of a Galaxy Not So Far Away at Motley Fool"]
["11:01AM  ",null,null,null,null,"The 4 Dow Stocks With the Fastest-Growing Dividends at Motley Fool"]
["05:35AM  ",null,null,null,null,"There's More to Microsoft Than Windows 8 at Motley Fool"]
["24-May-13 06:51PM  ",null,null,null,null,"Cisco Stepping On The Toes Of IBM And Hewlett-Packard at Seeking Alpha"]
["06:03PM  ",null,null,null,null,"Final Glance: Computer companies AP"]
["05:40PM  ",null,null,null,null,"4 Tech Stock Stories to Close the Trading Week at Wall St. Cheat Sheet"]
["03:09PM  ",null,null,null,null,"Lenovo Still Far From Getting Its Due at Investopedia"]
["02:13PM  ",null,null,null,null,"SuccessFactors CEO Dalgaard Leaving SAP in Cloud Business Shake-Up at AllThingsD"]
["01:17PM  ",null,null,null,null,"Midday Glance: Computer companies AP"]
["12:09PM  ",null,null,null,null,"Salesforce.com Still Growing And Still Expensive at Investopedia"]
["11:50AM  ",null,null,null,null,"SolarWinds Set to Buy N-able Zacks"]
["11:37AM  ",null,null,null,null,"SAP revamps management to focus on cloud computing Reuters"]
["11:14AM  ",null,null,null,null,"Nomura Downgrades Infosys on U.S. Immigration Bill at Barrons.com"]
["11:07AM  ",null,null,null,null,"Google Sets Off Bidding War With Facebook and 3 More Hot Stocks at Wall St. Cheat Sheet"]
["10:33AM  ",null,null,null,null,"Early Glance: Computer companies AP"]
["10:30AM  ",null,null,null,null,"SAP revamps management to focus on cloud computing at Reuters"]
["09:19AM  ",null,null,null,null,"Top CEOs Ranked By Their (Lousy) Stock Performance The Daily Ticker"]
["09:18AM  ",null,null,null,null,"Google May Follow Apple on Tax-Dodging Dividend at TheStreet"]
["08:00AM  ",null,null,null,null,"IBM Helps Xiu.com Analyze Big Data to Grow Daily Sales 10 Times PR Newswire"]
["07:08AM  ",null,null,null,null,"Tech Stocks Are Still Undervalued at Motley Fool"]
["23-May-13 08:32PM  ",null,null,null,null,"Content Marketing Beckons to an Executive From a Digital Agency at New York Times"]
["06:03PM  ",null,null,null,null,"Final Glance: Computer companies AP"]
["04:30PM  ",null,null,null,null,"Dow Today: Merck (MRK) Leads The Day Higher, International Business Machines (IBM) Lags at TheStreet"]
["03:11PM  ",null,null,null,null,"IBM CFO Forecasts 8% Profit Jump for Second Quarter at Bloomberg"]
["02:38PM  ",null,null,null,null,"Why Hewlett-Packard's Blowing the Dow Away at Motley Fool"]
["02:27PM  ",null,null,null,null,"IBM sees double digit EPS growth in Q4 at theflyonthewall.com"]
["01:47PM  ",null,null,null,null,"Midday Glance: Computer companies AP"]
["01:40PM  ",null,null,null,null,"IBM's Breakthrough: Watson May Help Beat Cancer at Bloomberg"]
["01:18PM  ",null,null,null,null,"Leading Vietnamese Bank Reaches New Clients with IBM Smarter Computing PR Newswire"]
["12:35PM  ",null,null,null,null,"IBM-Waterfund Index Expands With Uganda as First African Nation at Bloomberg"]
["12:20PM  ",null,null,null,null,"What I learned working for Martha Stewart at Fortune"]
["12:00PM  ",null,null,null,null,"Cost Improvements Are Good, But Hewlett-Packard Needs Revenue Growth at Investopedia"]
["11:30AM  ",null,null,null,null,"HP rallies 14%, trouncing broader sell-off at CNNMoney.com"]
["11:15AM  ",null,null,null,null,"U.S. Tries To Halt Stock Slide After Selloff Goes Global at Forbes"]
["10:46AM  ",null,null,null,null,"Early Glance: Computer companies AP"]
["10:41AM  ",null,null,null,null,"Semiconductor Equipment Companies That Are Hot Or Lukewarm at Seeking Alpha"]
["10:40AM  ",null,null,null,null,"Is HP's Turnaround Strategy Sustainable? at AllThingsD"]
["10:15AM  ",null,null,null,null,"Is HP's Turnaround Strategy Sustainable? at AllThingsD"]
["10:07AM  ",null,null,null,null,"Lenovo Sees No Limit to Size for Acquisitions in Phones, Servers at Bloomberg"]
["09:45AM  ",null,null,null,null,"Seeking Shelter From the Storm, in Big Data at CNBC"]
["09:13AM  ",null,null,null,null,"Does Oracle Support a Move Higher? at Wall St. Cheat Sheet"]
["12:01AM  ",null,null,null,null,"Pentagon to Buy Records System Amid Backlog in Veterans Claims at Bloomberg"]
["12:01AM  ",null,null,null,null,"Uganda Selects IBM and Waterfund to Benchmark Water Infrastructure PR Newswire"]
["22-May-13 11:11PM  ",null,null,null,null,"On top of big salaries, companies pile on perks AP"]
["08:41PM  ",null,null,null,null,"Q&A With HP CEO Meg Whitman and CFO Cathie Lesjak: The Turnaround Is on Schedule at AllThingsD"]
["07:52PM  ",null,null,null,null,"HP's Whitman Talks of Dell 'Cratering' Its Financials, And the DNA of Productivity at Barrons.com"]
["06:52PM  ",null,null,null,null,"HP raises 2013 outlook as Whitman's plan takes hold Reuters"]
["06:08PM  ",null,null,null,null,"Final Glance: Computer companies AP"]
["05:06PM  ",null,null,null,null,"Dow Today: Home Depot (HD) Leads The Day Higher, International Business Machines (IBM) Lags at TheStreet"]
["04:49PM  ",null,null,null,null,"Liveblogging Hewlett-Packard's Q2 Earnings Conference Call at AllThingsD"]
["04:49PM  ",null,null,null,null,"HP's Turnaround Progress Slow but Sure, Says CEO Whitman at AllThingsD"]
["04:43PM  ",null,null,null,null,"Information Sharing Critical To Cyber Defense at Forbes"]
["04:16PM  ",null,null,null,null,"HP's Q2 Earnings Beat Expectations on Weak Sales at AllThingsD"]
["04:15PM  ",null,null,null,null,"On top of big salaries, companies pile on perks AP"]
["03:54PM  ",null,null,null,null,"On top of big salaries, companies pile on perks AP"]
["03:45PM  ",null,null,null,null,"Jim Simons' top stock holdings at MarketWatch"]
["03:05PM  ",null,null,null,null,"Compuware's Covisint Files S-1 Zacks"]
["02:27PM  ",null,null,null,null,"If Cloud Computing Is Here, Then Where Is My Jet Pack? at Forbes"]
["02:25PM  ",null,null,null,null,"Investors Warm to HP, but Big Challenges Remain at TheStreet"]
["02:25PM  ",null,null,null,null,"Investors Warm to HP but Big Challenges Remain at TheStreet"]
["02:05PM  ",null,null,null,null,"How `Watson' Has Evolved Since Its Jeopardy Days at Bloomberg"]
["01:46PM  ",null,null,null,null,"IBM Debuts Watson Engagement Tech and 2 Other Dow Movers to Watch at Wall St. Cheat Sheet"]
["01:17PM  ",null,null,null,null,"Midday Glance: Computer companies AP"]
["01:00PM  ",null,null,null,null,"IBM Announces New Capabilities to Deliver Real-Time Analytics via the Cloud PR Newswire"]
["12:44PM  ",null,null,null,null,"Cisco Outgrows IBM at Motley Fool"]
["12:42PM  ",null,null,null,null,"IBM's Watson Is Being Taught to Treat Cancer at CNBC"]
["12:04PM  ",null,null,null,null,"Are These Dow Companies Buying Back Wisely? at Motley Fool"]
["12:00PM  ",null,null,null,null,"The Dannon Company Uses IBM Smarter Commerce to Support Yogurt Market Gains With Big Data Analytics PR Newswire"]
["12:00PM  ",null,null,null,null,"IBM Study: Top Chief Procurement Officers Drive 22 Percent Higher Profit Margins PR Newswire"]
["12:00PM  ",null,null,null,null,"CEVA Logistics Taps IBM SmartCloud to Deliver Real-time Supply Chain Services to Industry Leaders PR Newswire"]
["11:50AM  ",null,null,null,null,"NetApp Is Probably Cheap, But The Headwinds Aren't Going Away at Investopedia"]
["11:33AM  ",null,null,null,null,"Microsoft Seizes Control of the Computer Industry at Motley Fool"]
["10:51AM  ",null,null,null,null,"Early Glance: Computer companies AP"]
["10:40AM  ",null,null,null,null,"The Big Bang Island Theory at Motley Fool"]
["10:25AM  ",null,null,null,null,"Compuware's 4Q Earnings Lag Zacks"]
[]
["International Business Machines Corporation provides information technology (IT) products and services worldwide. The company operates in five segments: Global Technology Services, Global Business Services, Software, Systems and Technology, and Global Financing. The Global Technology Services segment provides IT infrastructure and business process services, including strategic outsourcing, process, integrated technology, and technology support services. The Global Business Services segment offers consulting solutions for strategy and transformation, application innovation, enterprise applications, and smarter analytics; and application management, maintenance, and support services. The Software segment offers middleware and operating systems software, such as WebSphere software to integrate and manage business processes; information management software for database and enterprise content management, information integration, data warehousing, performance management business analytics and intelligence, and data analytics; Tivoli software for cloud and datacenter management, enterprise endpoint and mobile device management, asset and facilities management, storage management, and security systems; Lotus Software to connect people and processes for communication; rational software to support software development for IT and embedded systems; and operating systems software. The Systems and Technology segment provides computing power and storage solutions; and semiconductor technology, products, and packaging solutions. The Global Financing segment provides lease and loan financing to end users; commercial financing to dealers and remarketers of IT products; and remanufacturing and remarketing services for equipment. The company was formerly known as Computing-Tabulating-Recording Co. and changed its name to International Business Machines Corporation in 1924. The company was founded in 1910 and is headquartered in Armonk, New York."]
[]
["Insider Trading",null,null,null,null,"Relationship","Date","Transaction","Cost","#Shares","Value ($)","#Shares Total","SEC Form 4"]
["Clementi Erich",null,null,null,null,"Senior Vice President","2013-05-23","Option Exercise",101.33,5885,596327,47190,"2013-05-24T13:00:00"]
["Clementi Erich",null,null,null,null,"Senior Vice President","2013-05-23","Sale",208.33,3550,739572,32305,"2013-05-24T13:01:00"]
["Clementi Erich",null,null,null,null,"Senior Vice President","2013-05-23","Sale",208.02,11335,2357962,35855,"2013-05-24T13:00:00"]
["Rhodin Michael D.",null,null,null,null,"Senior Vice President","2013-05-16","Sale",205.8,6000,1234802,13486,"2013-05-17T11:39:00"]
["Arnold Colleen F.",null,null,null,null,"Senior Vice President","2013-02-28","Sale",203,9730,1975190,21849,"2013-03-01T11:46:00"]
["Shaughnessy Timothy S",null,null,null,null,"Senior Vice President","2013-02-27","Sale",202.07,12000,2424870,25275,"2013-02-28T11:42:00"]
["van Kralingen Bridget A",null,null,null,null,"Senior Vice President","2013-02-27","Sale",200,12000,2400000,16382,"2013-02-28T11:42:00"]
["TAUREL SIDNEY",null,null,null,null,"Director","2013-02-20","Option Exercise",85.35,4000,341400,12673,"2013-02-21T13:54:00"]
["Di Leo Allen Bruno V",null,null,null,null,"Senior Vice President","2013-02-20","Sale",201.52,8000,1612176,26259,"2013-02-21T13:58:00"]
["Rhodin Michael D.",null,null,null,null,"Senior Vice President","2013-02-20","Sale",200.97,3000,602920,19469,"2013-02-21T13:56:00"]
["TAUREL SIDNEY",null,null,null,null,"Director","2013-02-20","Sale",200.35,1710,342595,10963,"2013-02-21T13:54:00"]
["Rometty Virginia M",null,null,null,null,"Chairman, Pres. and CEO","2013-02-19","Sale",200.6,12500,2507500,114786,"2013-02-20T10:58:00"]
["CHENAULT KENNETH I",null,null,null,null,"Director","2013-02-15","Option Exercise",85.35,4000,341400,6735,"2013-02-19T15:17:00"]
["LeBlanc Robert J.",null,null,null,null,"Senior Vice President","2013-02-15","Sale",200.76,9598,1926878,51400,"2013-02-19T15:20:00"]
["CHENAULT KENNETH I",null,null,null,null,"Director","2013-02-15","Sale",200.41,4000,801657,2735,"2013-02-19T15:17:00"]
["KELLY JOHN E III",null,null,null,null,"Senior Vice President","2013-02-12","Sale",200.07,3698,739853,19671,"2013-02-13T10:26:00"]
["MACDONALD J RANDALL",null,null,null,null,"Senior Vice President","2013-02-08","Sale",201.52,10596,2135287,44668,"2013-02-11T13:24:00"]
["MACDONALD J RANDALL",null,null,null,null,"Senior Vice President","2013-02-08","Sale",201.39,13453,2709310,55264,"2013-02-11T13:22:00"]
["Adkins Rodney C",null,null,null,null,"Senior Vice President","2013-02-06","Sale",200.3,13796,2763329,1,"2013-02-07T12:18:00"]
["Weber Robert C",null,null,null,null,"Senior Vice President","2013-02-06","Sale",201.08,11500,2312468,19131,"2013-02-07T11:39:00"]
["Rhodin Michael D.",null,null,null,null,"Senior Vice President","2013-02-04","Sale",204.14,3100,632846,22451,"2013-02-05T12:29:00"]
["Rometty Virginia M",null,null,null,null,"Chairman, Pres. and CEO","2013-01-29","Option Exercise",105.96,30369,3217899,31056,"2013-01-30T15:54:00"]
["Daniels Michael E",null,null,null,null,"Senior Vice President","2013-01-29","Option Exercise",92.51,16168,1495702,137915,"2013-01-30T15:55:00"]
["Daniels Michael E",null,null,null,null,"Senior Vice President","2013-01-29","Sale",204.91,10543,2160325,90939,"2013-01-30T15:56:00"]
["Rometty Virginia M",null,null,null,null,"Chairman, Pres. and CEO","2013-01-29","Sale",204.72,23311,4772279,7745,"2013-01-30T15:54:00"]
["Daniels Michael E",null,null,null,null,"Senior Vice President","2013-01-29","Sale",204.71,36433,7458266,101482,"2013-01-30T15:55:00"]
["Weber Robert C",null,null,null,null,"Senior Vice President","2013-01-24","Sale",204.65,7200,1473460,17547,"2013-01-25T12:42:00"]
["Daniels Michael E",null,null,null,null,"Senior Vice President","2013-12-18","Option Exercise",0,35399,0,137801,"2013-12-19T16:18:00"]
["Rometty Virginia M",null,null,null,null,"Chairman, Pres. and CEO","2013-12-18","Option Exercise",0,35399,0,36086,"2013-12-19T16:17:00"]
["Weber Robert C",null,null,null,null,"Senior Vice President","2013-12-18","Option Exercise",0,13275,0,30863,"2013-12-19T16:17:00"]
["Shaughnessy Timothy S",null,null,null,null,"Senior Vice President","2013-11-28","Option Exercise",98.28,3852,378563,2258,"2013-11-29T13:31:00"]
["Clementi Erich",null,null,null,null,"Senior Vice President","2013-11-28","Sale",191.55,14792,2833464,31777,"2013-11-29T13:32:00"]
["Shaughnessy Timothy S",null,null,null,null,"Senior Vice President","2013-11-28","Sale",191.15,3852,736311,24608,"2013-11-29T13:31:00"]
["IWATA JON C",null,null,null,null,"Senior Vice President","2013-11-26","Option Exercise",88.36,24846,2195293,48416,"2013-11-27T16:07:00"]
["IWATA JON C",null,null,null,null,"Senior Vice President","2013-11-26","Sale",192.33,29846,5740246,18570,"2013-11-27T16:07:00"]
["Clementi Erich",null,null,null,null,"Senior Vice President","2013-11-21","Option Exercise",105.96,11248,1191838,57817,"2013-11-26T10:49:00"]
["Clementi Erich",null,null,null,null,"Senior Vice President","2013-11-21","Sale",190.45,11248,2142223,46569,"2013-11-26T10:49:00"]
["LeBlanc Robert J.",null,null,null,null,"Senior Vice President","2013-11-21","Sale",190.48,8017,1527050,51355,"2013-11-26T10:47:00"]
["Arnold Colleen F.",null,null,null,null,"Senior Vice President","2013-11-13","Sale",189.12,5100,964506,21842,"2013-11-14T11:15:00"]
["Weber Robert C",null,null,null,null,"Senior Vice President","2013-11-06","Sale",195.65,1738,340036,17588,"2013-11-07T10:30:00"]
["Rhodin Michael D.",null,null,null,null,"Senior Vice President","2013-11-01","Sale",196.66,2000,393310,18542,"2013-11-02T14:19:00"]
["Adkins Rodney C",null,null,null,null,"Senior Vice President","2013-10-31","Sale",195.08,11512,2245776,1,"2013-11-01T10:51:00"]
["Arnold Colleen F.",null,null,null,null,"Senior Vice President","2013-09-04","Option Exercise",0,9709,0,31499,"2013-09-05T16:15:00"]
["Clementi Erich",null,null,null,null,"Senior Vice President","2013-09-04","Option Exercise",0,19418,0,55515,"2013-09-05T16:14:00"]
["Bramante James P",null,null,null,null,"Senior Vice President","2013-09-04","Option Exercise",0,4855,0,28568,"2013-09-05T16:15:00"]
["Di Leo Allen Bruno V",null,null,null,null,"Senior Vice President","2013-09-04","Option Exercise",0,24272,0,42080,"2013-09-05T16:13:00"]
["KAVANAUGH JAMES J",null,null,null,null,"VP, Controller","2013-09-04","Option Exercise",0,7282,0,12635,"2013-09-05T16:12:00"]
["LeBlanc Robert J.",null,null,null,null,"Senior Vice President","2013-09-04","Option Exercise",0,29127,0,72779,"2013-09-05T16:11:00"]
["Rhodin Michael D.",null,null,null,null,"Senior Vice President","2013-09-04","Option Exercise",0,14564,0,27254,"2013-09-05T16:10:00"]
["van Kralingen Bridget A",null,null,null,null,"Senior Vice President","2013-09-04","Option Exercise",0,14564,0,29989,"2013-09-05T16:09:00"]
["Shaughnessy Timothy S",null,null,null,null,"Senior Vice President","2013-08-31","Option Exercise",0,19418,0,33442,"2013-09-04T15:54:00"]
["Shaughnessy Timothy S",null,null,null,null,"Senior Vice President","2013-08-16","Option Exercise",92.9,13433,1247891,27457,"2013-08-17T14:59:00"]
["Shaughnessy Timothy S",null,null,null,null,"Senior Vice President","2013-08-16","Sale",200.85,13433,2698032,14024,"2013-08-17T14:59:00"]
["Daniels Michael E",null,null,null,null,"Senior Vice President","2013-08-14","Option Exercise",101.33,31030,3144270,148529,"2013-08-15T13:55:00"]
["Daniels Michael E",null,null,null,null,"Senior Vice President","2013-08-14","Sale",198.69,6141,1220129,102399,"2013-08-15T14:03:00"]
["Daniels Michael E",null,null,null,null,"Senior Vice President","2013-08-14","Sale",198.41,8802,1746373,108540,"2013-08-15T14:02:00"]
["Daniels Michael E",null,null,null,null,"Senior Vice President","2013-08-14","Sale",198.25,12891,2555582,117342,"2013-08-15T14:01:00"]
["Daniels Michael E",null,null,null,null,"Senior Vice President","2013-08-14","Sale",198.1,11209,2220501,130233,"2013-08-15T13:56:00"]
["Daniels Michael E",null,null,null,null,"Senior Vice President","2013-08-14","Sale",197.91,7087,1402588,141442,"2013-08-15T13:55:00"]
["SANFORD LINDA S",null,null,null,null,"Senior Vice President","2013-08-07","Option Exercise",94.02,35731,3359546,35731,"2013-08-08T15:16:00"]
["SANFORD LINDA S",null,null,null,null,"Senior Vice President","2013-08-07","Sale",200.37,35731,7159432,0,"2013-08-08T15:16:00"]
["Arnold Colleen F.",null,null,null,null,"Senior Vice President","2013-08-07","Sale",200.56,1149,230439,21789,"2013-08-08T15:10:00"]
["Rhodin Michael D.",null,null,null,null,"Senior Vice President","2013-08-07","Sale",199.92,3000,599757,12673,"2013-08-08T15:09:00"]
["LOUGHRIDGE MARK",null,null,null,null,"Sr. VP and CFO","2013-08-02","Sale",193.45,27000,5223184,25395,"2013-08-03T10:29:00"]
["Shaughnessy Timothy S",null,null,null,null,"Senior Vice President","2013-06-08","Option Exercise",0,695,0,2752,"2013-06-11T21:03:00"]
[]
["open in yahoo | open in reuters | open in google"]

{"sheet":"SC - FinViz Profile2","index":9,"n_rows":190,"n_cols":32,"rows_kept":190,"cut":false,"hidden":false,"merged":[[184,0,184,4],[185,0,185,4],[186,0,186,4],[187,0,187,4],[189,0,189,4],[31,0,31,12],[52,0,52,12],[153,0,153,12],[154,0,154,12],[155,0,155,12],[178,0,178,4],[179,0,179,4],[180,0,180,4],[181,0,181,4],[182,0,182,4],[183,0,183,4],[172,0,172,4],[173,0,173,4],[174,0,174,4],[175,0,175,4],[176,0,176,4],[177,0,177,4],[166,0,166,4],[167,0,167,4],[168,0,168,4],[169,0,169,4],[170,0,170,4],[171,0,171,4],[160,0,160,4],[161,0,161,4],[162,0,162,4],[163,0,163,4],[164,0,164,4],[165,0,165,4],[151,0,151,4],[152,0,152,4],[156,0,156,4],[157,0,157,4],[158,0,158,4],[159,0,159,4],[145,0,145,4],[146,0,146,4],[147,0,147,4],[148,0,148,4],[149,0,149,4],[150,0,150,4],[139,0,139,4],[140,0,140,4],[141,0,141,4],[142,0,142,4],[143,0,143,4],[144,0,144,4],[133,0,133,4],[134,0,134,4],[135,0,135,4],[136,0,136,4],[137,0,137,4],[138,0,138,4],[127,0,127,4],[128,0,128,4],[129,0,129,4],[130,0,130,4],[131,0,131,4],[132,0,132,4],[121,0,121,4],[122,0,122,4],[123,0,123,4],[124,0,124,4],[125,0,125,4],[126,0,126,4],[115,0,115,4],[116,0,116,4],[117,0,117,4],[118,0,118,4],[119,0,119,4],[120,0,120,4],[109,0,109,4],[110,0,110,4],[111,0,111,4],[112,0,112,4],[113,0,113,4],[114,0,114,4],[103,0,103,4],[104,0,104,4],[105,0,105,4],[106,0,106,4],[107,0,107,4],[108,0,108,4],[97,0,97,4],[98,0,98,4],[99,0,99,4],[100,0,100,4],[101,0,101,4],[102,0,102,4],[91,0,91,4],[92,0,92,4],[93,0,93,4],[94,0,94,4],[95,0,95,4],[96,0,96,4],[85,0,85,4],[86,0,86,4],[87,0,87,4],[88,0,88,4],[89,0,89,4],[90,0,90,4],[79,0,79,4],[80,0,80,4],[81,0,81,4],[82,0,82,4],[83,0,83,4],[84,0,84,4],[73,0,73,4],[74,0,74,4],[75,0,75,4],[76,0,76,4],[77,0,77,4],[78,0,78,4],[66,0,66,4],[67,0,67,4],[68,0,68,4],[69,0,69,4],[12,0,12,12],[53,0,53,4],[54,0,54,4],[55,0,55,4],[56,0,56,4],[57,0,57,4],[13,0,13,1],[18,0,18,1],[19,0,19,1],[70,0,70,4],[71,0,71,4],[72,0,72,4],[61,0,61,4],[62,0,62,4],[63,0,63,4],[58,0,58,4],[59,0,59,4],[60,0,60,4],[28,0,28,1],[29,0,29,1],[25,0,25,1],[26,0,26,1],[27,0,27,1],[22,0,22,1],[23,0,23,1],[24,0,24,1],[20,0,20,1],[21,0,21,1],[64,0,64,4],[65,0,65,4],[4,8,7,8],[4,9,7,9],[4,10,7,10],[4,11,7,11],[4,0,7,0],[4,1,7,1],[4,2,7,2],[4,3,7,3],[11,0,11,1],[4,4,7,4],[4,5,7,5],[4,24,7,24],[4,25,7,25],[5,26,5,31],[7,26,7,31],[188,0,188,12],[190,0,190,12],[9,0,9,12],[10,0,10,12],[4,18,7,18],[4,19,7,19],[4,20,7,20],[4,21,7,21],[4,22,7,22],[4,23,7,23],[4,12,7,12],[4,13,7,13],[4,14,7,14],[4,15,7,15],[4,16,7,16],[4,17,7,17],[4,6,7,6],[4,7,7,7]]}
[null,null,null,"Welcome Guest!  Login | Register | Help"]
[]
[]
[]
[null,"Home",null,"News",null,"Screener",null,"Maps",null,"Groups",null,"Portfolio",null,"Insider",null,"Futures",null,"Forex",null,"Collaborate",null,"Store",null,null,"Elite"]
[]
[null,null,null,null,null,null,null,null,null,null,null,null,null,null,null,null,null,null,null,null,null,null,null,null,null,null,null,"Ticker",null,"Company",null,"Profile"]
[]
[]
[]
[]
["publish chart | backtests Type: candle | line | advanced    Timeframe: intraday | daily | weekly | monthly  ",null,"Settings"]
[]
[]
["MSFT [NASD]"]
["Microsoft Corporation"]
["Technology | Application Software | USA"]
[null,"financial highlights | statements"]
["Index",null,"DJIA S&P500","P/E",18.05,"EPS (ttm)",1.94,"Insider Own",4.82E-2,"Shs Outstand","8.35B","Perf Week",-1.6999999999999999E-3]
["Market Cap",null,"292.46B","Forward P/E",11.44,"EPS next Y",3.06,"Insider Trans",-9.1499999999999998E-2,"Shs Float","7.59B","Perf Month",0.10929999999999999]
["Income",null,"16.41B","PEG",2.12,"EPS next Q",0.75,"Inst Own",0.68240000000000001,"Short Float",1.2500000000000001E-2,"Perf Quarter",0.28839999999999999]
["Sales",null,"76.01B","P/S",3.85,"EPS this Y",-0.2591,"Inst Trans",1.11E-2,"Short Ratio",1.81,"Perf Half Y",0.28370000000000001]
["Book/sh",null,9.18,"P/B",3.81,"EPS next Y",0.1087,"ROA",0.13009999999999999,"Target Price",33.64,"Perf Year",0.23960000000000001]
["Cash/sh",null,8.92,"P/C",3.93,"EPS next 5Y",8.5300000000000001E-2,"ROE",0.22570000000000001,"52W Range","25.87 - 35.27","Perf YTD",0.33110000000000001]
["Dividend",null,0.92,"P/FCF",14.4,"EPS past 5Y",7.0099999999999996E-2,"ROI",0.1691,"52W High",-7.1000000000000004E-3,"Beta",0.96]
["Dividend %",null,2.63E-2,"Quick Ratio",2.86,"Sales past 5Y",7.5999999999999998E-2,"Gross Margin",0.75249999999999995,"52W Low",0.35389999999999999,"ATR",0.67]
["Employees",null,94000,"Current Ratio",2.93,"Sales Q/Q",0.17710000000000001,"Oper. Margin",0.2727,"RSI (14)",70.31,"Volatility","1.65% 1.78%"]
["Optionable",null,"Yes","Debt/Eq",0.19,"EPS Q/Q",0.1951,"Profit Margin",0.21579999999999999,"Rel Volume",0.92,"Prev Close",34.270000000000003]
["Shortable",null,"Yes","LT Debt/Eq",0.16,"Earnings","Apr 18 AMC","Payout",0.45440000000000003,"Avg Volume","52.48M","Price",35.020000000000003]
["Recom",null,2.4,"SMA20",4.4999999999999998E-2,"SMA50",0.1386,"SMA200",0.22070000000000001,"Volume",48104276,"Change",2.1899999999999999E-2]
[]
[]
["2013-05-22","Reiterated","Barclays","Equal Weight","$29 → $35"]
["2013-05-21","Reiterated","UBS","Buy","$33 → $40"]
["2013-05-15","Reiterated","Stifel","Buy","$36 → $38"]
["2013-04-30","Downgrade","Standpoint Research","Buy → Hold"]
["2013-04-19","Reiterated","Oppenheimer","Outperform","$36 → $34"]
["2013-03-11","Reiterated","MKM Partners","Neutral","$28 → $27"]
["2013-01-25","Reiterated","Barclays","Equal Weight","$30 → $29"]
["2013-01-14","Reiterated","UBS","Buy","$37 → $35"]
["2013-01-07","Reiterated","Barclays","Equal Weight","$30 → $31"]
["2013-01-04","Downgrade","Argus","Buy → Hold"]
["2012-12-20","Reiterated","FBR Capital","Mkt Perform","$32 → $30"]
["2012-12-14","Initiated","BMO Capital Markets","Market Perform",30]
["2012-12-13","Reiterated","Barclays","Equal Weight","$34 → $31"]
["2012-12-12","Upgrade","Standpoint Research","Hold → Buy",32]
["2012-12-05","Reiterated","MKM Partners","Neutral","$32 → $28"]
["2012-08-20","Initiated","Longbow","Buy",36]
["2012-07-20","Initiated","Griffin Securities","Buy",38]
["2012-05-04","Resumed","Stifel Nicolaus","Buy",38]
["2012-04-20","Reiterated","FBR Capital","Mkt Perform","$30 → $32"]
["2012-04-20","Reiterated","Barclays","Equal Weight","$33 → $36"]
[]
["28-May-13 06:09PM  ",null,null,null,null,"NBA board approves sale of Kings basketball team to local investors at Reuters"]
["06:02PM  ",null,null,null,null,"Most active Nasdaq-traded stocks AP"]
["06:00PM  ",null,null,null,null,"Microsoft Leads Dow's 106-Point Surge at Motley Fool"]
["04:42PM  ",null,null,null,null,"Stocks Take Flight on Back of Consumer Confidence at Motley Fool"]
["04:24PM  ",null,null,null,null,"Staying Clear Of Hewlett Packard at Seeking Alpha"]
["04:19PM  ",null,null,null,null,"Google goes Hollywood with 'The Internship' at Reuters"]
["04:10PM  ",null,null,null,null,"Does It Pay to Believe in This Company? at Motley Fool"]
["04:10PM  ",null,null,null,null,"Bill Gates Wants to Talk Corporate Tax Dirt at Wall St. Cheat Sheet"]
["04:04PM  ",null,null,null,null,"CRUS: Price Pressure in Margins, Warns Feltl, Prefers ATML at Barrons.com"]
["03:58PM  ",null,null,null,null,"Q&A: Sending an Automated Vacation Reply With Outlook.com at New York Times"]
["03:55PM  ",null,null,null,null,"Playing Microsoft's Big Year at Bloomberg"]
["03:55PM  ",null,null,null,null,"Amazon Appstore Now in 200 Countries Zacks"]
["03:48PM  ",null,null,null,null,"If Foxconn sneezes, does that mean Apple caught a cold? at Fortune"]
["03:47PM  ",null,null,null,null,"Taxes: Apple Is Right and Tim Cook Is a Strong Leader! at Motley Fool"]
["03:45PM  ",null,null,null,null,"Flextronics: Margin, Capital Payout Hopes Too High, Says Raymond James at Barrons.com"]
["03:33PM  ",null,null,null,null,"Telecoms Lag the Market's Gains on Threat From Google at Motley Fool"]
["02:29PM  ",null,null,null,null,"Windows PCs Are Dying: This Might Be the Future at Motley Fool"]
["02:08PM  ",null,null,null,null,"Google, Amazon join in broad tech gains at MarketWatch"]
["02:03PM  ",null,null,null,null,"1 Solid Reason to Own Microsoft Stock at Motley Fool"]
["01:54PM  ",null,null,null,null,"Why I'm Selling Microsoft at Seeking Alpha"]
["01:46PM  ",null,null,null,null,"Xbox One: Microsoft Wants To Be The Apple Of Your Living Room at Seeking Alpha"]
["01:19PM  ",null,null,null,null,"Analysts: Microsoft Sentiments Are Improving and 3 More Research Notes to Read at Wall St. Cheat Sheet"]
["01:03PM  ",null,null,null,null,"5 Stocks Pushing The Technology Sector Higher at TheStreet"]
["12:55PM  ",null,null,null,null,"PC shipments face sharp slump in 2013 as tablets ascend - IDC Reuters"]
["12:45PM  ",null,null,null,null,"PC shipments face sharp slump in 2013 as tablets ascend - IDC at Reuters"]
["12:44PM  ",null,null,null,null,"Microsoft Maneuvers For Piece Of Used Video Game Market at Forbes"]
["12:38PM  ",null,null,null,null,"[video] Bibb: Tough Questions For Tim Cook at CNBC"]
["12:23PM  ",null,null,null,null,"Huawei to Have a London Mobile Launch Event Two Days Before Samsung at AllThingsD"]
["12:19PM  ",null,null,null,null,"Will BlackBerrys Google Approach Secure a Win Over Microsoft? at Motley Fool"]
["12:18PM  ",null,null,null,null,"MSFT: New Favor for Win 8, Cloud, Says CLSA; ValueAct May Act, Says Nomura at Barrons.com"]
["12:16PM  ",null,null,null,null,"Lenovo Expanding Smartphone Sales Outside Home Market at TheStreet"]
["12:02PM  ",null,null,null,null,"IDC Sharply Cuts PC Shipment Forecast at The Wall Street Journal"]
["11:59AM  ",null,null,null,null,"Is Microsoft Worth Buying For Its Dividend Alone? at Seeking Alpha"]
["11:58AM  ",null,null,null,null,"Microsoft Makes Deal With the NFL and 2 Other Hot Stocks to Watch at Wall St. Cheat Sheet"]
["11:29AM  ",null,null,null,null,"Google, Amazon join in broad market gains at MarketWatch"]
["11:29AM  ",null,null,null,null,"Cisco challenges Microsoft buy of Skype in EU court at Reuters"]
["11:14AM  ",null,null,null,null,"Can Foxconn Compete With Apple in the Tablet Market? The Daily Ticker"]
["11:01AM  ",null,null,null,null,"Did the PC Downturn Attract This Activist Billionaire to Sony? at Motley Fool"]
["11:01AM  ",null,null,null,null,"Is Google Becoming Unstoppable? at Wall St. Cheat Sheet"]
["10:59AM  ",null,null,null,null,"Microsoft, NFL Enter into Partnership Zacks"]
["10:55AM  ",null,null,null,null,"This Morning: Fear AAPL Margins? Tablets Trump Laptops, Change at MSFT? at Barrons.com"]
["10:53AM  ",null,null,null,null,"This Morning: Fearing AAPL Margins, Tablets Surging, Change Comes to MSFT? at Barrons.com"]
["10:49AM  ",null,null,null,null,"What Now For Advanced Micro Devices? at Seeking Alpha"]
["10:38AM  ",null,null,null,null,"1, 2, 3, 4...I Declare a Console War at Motley Fool"]
["10:34AM  ",null,null,null,null,"The PC Market Is Imploding Because People Are Buying iPads And Other Tablets Instead Business Insider"]
["10:23AM  ",null,null,null,null,"[video] EU Seeks Google Concessions, and More at MarketWatch"]
["10:23AM  ",null,null,null,null,"This Tech Turnaround Takes Hold at Motley Fool"]
["10:18AM  ",null,null,null,null,"Microsoft Changes An Ad After Blogger Points Out It Got The Math Wrong Business Insider"]
["10:13AM  ",null,null,null,null,"Gates Supports Increased Corporate Tax Scrutiny at Bloomberg"]
["09:57AM  ",null,null,null,null,"InPlay: Microsoft surges in early trade near last week's multi-year high at 35.27 and edges back -- session high 35.18 Briefing.com"]
["09:53AM  ",null,null,null,null,"Nokia's Growth Is Bound To Come at Seeking Alpha"]
["09:47AM  ",null,null,null,null,"Marissa Mayer's 'New York Yankees' Strategy Will Fail at Yahoo! at TheStreet"]
["09:46AM  ",null,null,null,null,"EU to seek more Google concessions in competition probe Reuters"]
["09:03AM  ",null,null,null,null,"Review: Nokia's Flagship Windows Phone on Verizon TheStreet"]
["08:55AM  ",null,null,null,null,"Microsoft Plays Fast and Loose With iPad Screen Size at Wall St. Cheat Sheet"]
["08:53AM  ",null,null,null,null,"Microsoft price target raised to $38 from $34 at CLSA theflyonthewall.com"]
["08:28AM  ",null,null,null,null,"The Zacks Analyst Blog Highlights: McGraw-Hill Financial, Take-Two Interactive, Activision Blizzard, Microsoft and Sony Zacks"]
["08:20AM  ",null,null,null,null,"[video] Swing Dancing With the Bulls and Bears at CNBC"]
["08:18AM  ",null,null,null,null,"5 Stock Predictions For This Week at Seeking Alpha"]
["07:58AM  ",null,null,null,null,"Employment at U.K. Banks at 9 Year Low at Bloomberg"]
["07:44AM  ",null,null,null,null,"The Long Case For Microsoft: 5 Reasons To Be A Bull at Seeking Alpha"]
["07:40AM  ",null,null,null,null,"Is Facebook A Buy? at Wall St. Cheat Sheet"]
["06:41AM  ",null,null,null,null,"EU's Almunia says likely to demand more Google concessions Reuters"]
["06:15AM  ",null,null,null,null,"The Buyback Kings, Part 3: Which Of These Massive Tech Kings Should You Own? at Seeking Alpha"]
["06:13AM  ",null,null,null,null,"Tech Stocks Are 'Where Cash Goes to Die': Fund Pro at CNBC"]
["06:08AM  ",null,null,null,null,"On the Fly: Periodicals Wrap-Up at theflyonthewall.com"]
["03:17AM  ",null,null,null,null,"Microsoft's Gates Supports Corporate Tax Scrutiny at The Wall Street Journal"]
["02:23AM  ",null,null,null,null,"Are People Afraid Of Apple? at Seeking Alpha"]
["12:06AM  ",null,null,null,null,"Yahoo! Operates More Like a Hedge Fund at Motley Fool"]
["12:01AM  ",null,null,null,null,"Bring your own service: Employees want social tools at work, despite company restrictions and hesitation, reports new Microsoft survey PR Newswire"]
["12:00AM  ",null,null,null,null,"TopShop, Microsoft, New York University: Intellectual Property at Bloomberg"]
["27-May-13 09:16PM  ",null,null,null,null,"ValueAct's Stake in Microsoft Could Be a Gamble at Motley Fool"]
["07:49PM  ",null,null,null,null,"Is Tablet Success the Last Hope for Windows 8? at Wall St. Cheat Sheet"]
["07:00PM  ",null,null,null,null,"Nigerian Smartphone Boom Sees Nokia African Dominance Challenged at Bloomberg"]
["01:34PM  ",null,null,null,null,"Samsung Schedules June 20 London Event for New Android, Windows Gear at AllThingsD"]
["12:45PM  ",null,null,null,null,"The Five Biggest Problems With The Xbox One at Forbes"]
["10:57AM  ",null,null,null,null,"How Xbox One Will Change Advertising Forever at Forbes"]
["10:31AM  ",null,null,null,null,"Has Microsoft Beaten Apple With the Xbox One? at Wall St. Cheat Sheet"]
["24-May-13 08:19PM  ",null,null,null,null,"Apple's tax practices are no laughing matter; Yes, they are at Investor's Business Daily"]
["08:10PM  ",null,null,null,null,"Violence spreads outside Swedish capital but violence abates at Reuters"]
["08:02PM  ",null,null,null,null,"Is Microsoft Stock a Buy? at Motley Fool"]
["07:48PM  ",null,null,null,null,"Google Said to Consider Buying Waze Presaging Bidding War at Bloomberg"]
["07:21PM  ",null,null,null,null,"MarketWatchs top 10 stories, May 20-24 at MarketWatch"]
["06:10PM  ",null,null,null,null,"A Game-Changer for Microsoft? at Motley Fool"]
["06:04PM  ",null,null,null,null,"Most active Nasdaq-traded stocks AP"]
["05:30PM  ",null,null,null,null,"[video] Buying Opportunity in Google? at CNBC"]
["05:00PM  ",null,null,null,null,"This Week's 5 Smartest Stock Moves at Motley Fool"]
["04:41PM  ",null,null,null,null,"Microsoft, Google Working Together on YouTube App for Windows Phone at AllThingsD"]
["04:15PM  ",null,null,null,null,"Google Said to Face New Antitrust Probe Over Display Ads at Bloomberg"]
["04:05PM  ",null,null,null,null,"Video Game Sales Plunge in April Zacks"]
["03:46PM  ",null,null,null,null,"Is Googles Probe Good News for Rivals? at Wall St. Cheat Sheet"]
["03:36PM  ",null,null,null,null,"GameStop shares slump following 1Q report AP"]
["03:31PM  ",null,null,null,null,"Did GameStop, Up 44% YTD, Rout the Shorts? at Forbes"]
["03:20PM  ",null,null,null,null,"[video] Top Five in Tech: Tumblr for the Win at MarketWatch"]
["03:08PM  ",null,null,null,null,"[video] Top Five in Tech: Tumblr for the Win at MarketWatch"]
["02:22PM  ",null,null,null,null,"Google eyes Waze as Facebook circles hot Web maps property Reuters"]
["02:07PM  ",null,null,null,null,"Market poised to end week lower following Fed, China data at theflyonthewall.com"]
["01:45PM  ",null,null,null,null,"Battling Over Waze CNBC"]
["01:16PM  ",null,null,null,null,"Facebook Deal For Waze Pondered By Google and 2 Other Hot Stocks to Watch at Wall St. Cheat Sheet"]
["01:10PM  ",null,null,null,null,"Qualcomm Retained at Neutral Zacks"]
[]
["Microsoft Corporation develops, licenses, and supports software products and services; and designs and sells hardware worldwide. The company's Windows & Windows Live division offers PC operating system that primarily includes Windows 7 operating system, Windows live suite of applications and Web services, and PC hardware products. Its Server and Tools division provides Windows Server operating systems, Windows Azure; Microsoft SQL Server, SQL Azure, Windows Intune, Windows Embedded, Visual Studio, Silverlight, system center products, Microsoft consulting services, and Premier product support services. This division also offers cloud-based services; and training and certification to developers and information technology professionals, as well as builds standalone and software development lifecycle tools for software architects, developers, testers, and project managers. The company's Online Services division provides online information and content, including Bing, MSN, adCenter, and Atlas online tools for advertisers. Its Microsoft Business division offers Microsoft office, Microsoft Exchange, Microsoft SharePoint, Microsoft Lync, Microsoft Office project and office Visio, and Microsoft Dynamics ERP and CRM, as well as Microsoft Office Web Apps and Microsoft Office 365, which are online service offerings. The company's Entertainment and Devices Division segment provides Xbox 360 entertainment platform, which includes the Xbox 360 gaming and entertainment console, Kinect for Xbox 360, Xbox 360 video games, and Xbox 360 accessories; Xbox LIVE; Skype; and Windows Phone. Microsoft Corporation markets and distributes its products and services primarily through original equipment manufacturers, distributors, and resellers, as well as through online. The company has strategic alliances with Nokia, and NIIT Ltd., as well as a strategic relationship Dominion Enterprises, Inc. Microsoft Corporation was founded in 1975 and is based in Redmond, Washington."]
[]
["Insider Trading",null,null,null,null,"Relationship","Date","Transaction","Cost","#Shares","Value ($)","#Shares Total","SEC Form 4"]
["GATES WILLIAM H III",null,null,null,null,"Director","2013-04-24","Sale",31.2,6716519,209537012,400986959,"2013-04-25T16:38:00"]
["GATES WILLIAM H III",null,null,null,null,"Director","2013-04-23","Sale",30.71,5888974,180823302,407703478,"2013-04-25T16:38:00"]
["GATES WILLIAM H III",null,null,null,null,"Director","2013-04-22","Sale",30.92,7394507,228603402,413592452,"2013-04-24T16:34:00"]
["BROD FRANK H",null,null,null,null,"Chief Accounting Officer","2013-04-22","Sale",30.88,10000,308779,118686,"2013-04-23T18:31:00"]
["MARQUARDT DAVID F",null,null,null,null,"Director","2013-02-13","Option Exercise",24.17,22222,537195,699808,"2013-02-14T18:33:00"]
["MARQUARDT DAVID F",null,null,null,null,"Director","2013-02-13","Sale",28.02,22222,622660,677586,"2013-02-14T18:33:00"]
["GATES WILLIAM H III",null,null,null,null,"Director","2013-02-06","Sale",27.44,3189267,87503919,420986959,"2013-02-07T16:43:00"]
["GATES WILLIAM H III",null,null,null,null,"Director","2013-02-05","Sale",27.56,3810733,105019610,424176226,"2013-02-07T16:43:00"]
["GATES WILLIAM H III",null,null,null,null,"Director","2013-02-04","Sale",27.64,3000000,82914600,427986959,"2013-02-06T16:36:00"]
["GATES WILLIAM H III",null,null,null,null,"Director","2013-02-01","Sale",27.87,5500000,153272350,430986959,"2013-02-05T16:44:00"]
["GATES WILLIAM H III",null,null,null,null,"Director","2013-01-31","Sale",27.5,4500000,123733800,436486959,"2013-02-04T16:35:00"]
["Nadella Satya",null,null,null,null,"President, Server and Tools","2013-01-28","Sale",28.11,38121,1071604,554602,"2013-01-30T18:33:00"]
["BROD FRANK H",null,null,null,null,"Chief Accounting Officer","2013-01-28","Sale",28.04,10000,280417,128686,"2013-01-30T18:32:00"]
["MARQUARDT DAVID F",null,null,null,null,"Director","2013-11-28","Sale",27.07,300000,8120670,675196,"2013-11-28T19:31:00"]
["MARQUARDT DAVID F",null,null,null,null,"Director","2013-11-27","Sale",27.16,100000,2715910,975196,"2013-11-28T19:31:00"]
["MARQUARDT DAVID F",null,null,null,null,"Director","2013-11-26","Sale",27.28,100000,2727560,1075196,"2013-11-28T19:31:00"]
["Brummel Lisa E",null,null,null,null,"Senior Vice President","2013-10-31","Sale",28.54,71313,2034988,331306,"2013-11-02T18:48:00"]
["DelBene Kurt D",null,null,null,null,"President, Offfice Division","2013-10-26","Sale",28,35000,979832,600693,"2013-10-29T18:36:00"]
["GATES WILLIAM H III",null,null,null,null,"Director","2013-10-25","Sale",27.95,5500000,153747550,440984209,"2013-10-29T16:39:00"]
["GATES WILLIAM H III",null,null,null,null,"Director","2013-10-24","Sale",28.03,4500000,126117900,446484209,"2013-10-26T16:38:00"]
["GATES WILLIAM H III",null,null,null,null,"Director","2013-10-23","Sale",28.06,5500000,154314600,450984209,"2013-10-25T16:30:00"]
["GATES WILLIAM H III",null,null,null,null,"Director","2013-10-22","Sale",28.02,4500000,126076050,456484209,"2013-10-24T16:29:00"]
["TURNER BRIAN KEVIN",null,null,null,null,"Chief Operating Officer","2013-09-10","Sale",30.83,49487,1525699,790915,"2013-09-11T18:43:00"]
["TURNER BRIAN KEVIN",null,null,null,null,"Chief Operating Officer","2013-09-04","Sale",30.52,126913,3873715,557299,"2013-09-05T20:20:00"]
["BROD FRANK H",null,null,null,null,"Chief Accounting Officer","2013-09-04","Sale",30.41,15000,456128,139598,"2013-09-05T19:58:00"]
["DelBene Kurt D",null,null,null,null,"President, Offfice Division","2013-08-24","Sale",30.21,39847,1203782,263886,"2013-08-27T18:37:00"]
["GATES WILLIAM H III",null,null,null,null,"Director","2013-07-27","Sale",29.57,5000000,147869500,460982967,"2013-07-31T17:04:00"]
["GATES WILLIAM H III",null,null,null,null,"Director","2013-07-26","Sale",29.24,5000000,146191500,465982967,"2013-07-30T18:09:00"]
["GATES WILLIAM H III",null,null,null,null,"Director","2013-07-25","Sale",28.99,3000000,86967300,470982967,"2013-07-27T16:53:00"]
["GATES WILLIAM H III",null,null,null,null,"Director","2013-07-24","Sale",29.09,2750000,79986500,473982967,"2013-07-26T18:28:00"]
["LUCZO STEPHEN J",null,null,null,null,"Director","2013-06-04","Buy",28.72,17500,502600,133500,"2013-06-05T18:32:00"]
[]
["open in yahoo | open in reuters | open in google"]

{"sheet":"SC - FinViz Profile3","index":10,"n_rows":210,"n_cols":32,"rows_kept":210,"cut":false,"hidden":false,"merged":[[184,0,184,4],[185,0,185,4],[187,0,187,4],[31,0,31,12],[52,0,52,12],[153,0,153,12],[154,0,154,12],[155,0,155,12],[178,0,178,4],[179,0,179,4],[180,0,180,4],[181,0,181,4],[182,0,182,4],[183,0,183,4],[172,0,172,4],[173,0,173,4],[174,0,174,4],[175,0,175,4],[176,0,176,4],[177,0,177,4],[166,0,166,4],[167,0,167,4],[168,0,168,4],[169,0,169,4],[170,0,170,4],[171,0,171,4],[160,0,160,4],[161,0,161,4],[162,0,162,4],[163,0,163,4],[164,0,164,4],[165,0,165,4],[151,0,151,4],[152,0,152,4],[156,0,156,4],[157,0,157,4],[158,0,158,4],[159,0,159,4],[145,0,145,4],[146,0,146,4],[147,0,147,4],[148,0,148,4],[149,0,149,4],[150,0,150,4],[139,0,139,4],[140,0,140,4],[141,0,141,4],[142,0,142,4],[143,0,143,4],[144,0,144,4],[133,0,133,4],[134,0,134,4],[135,0,135,4],[136,0,136,4],[137,0,137,4],[138,0,138,4],[127,0,127,4],[128,0,128,4],[129,0,129,4],[130,0,130,4],[131,0,131,4],[132,0,132,4],[121,0,121,4],[122,0,122,4],[123,0,123,4],[124,0,124,4],[125,0,125,4],[126,0,126,4],[115,0,115,4],[116,0,116,4],[117,0,117,4],[118,0,118,4],[119,0,119,4],[120,0,120,4],[109,0,109,4],[110,0,110,4],[111,0,111,4],[112,0,112,4],[113,0,113,4],[114,0,114,4],[103,0,103,4],[104,0,104,4],[105,0,105,4],[106,0,106,4],[107,0,107,4],[108,0,108,4],[97,0,97,4],[98,0,98,4],[99,0,99,4],[100,0,100,4],[101,0,101,4],[102,0,102,4],[91,0,91,4],[92,0,92,4],[93,0,93,4],[94,0,94,4],[95,0,95,4],[96,0,96,4],[85,0,85,4],[86,0,86,4],[87,0,87,4],[88,0,88,4],[89,0,89,4],[90,0,90,4],[79,0,79,4],[80,0,80,4],[81,0,81,4],[82,0,82,4],[83,0,83,4],[84,0,84,4],[73,0,73,4],[74,0,74,4],[75,0,75,4],[76,0,76,4],[77,0,77,4],[78,0,78,4],[65,0,65,4],[66,0,66,4],[67,0,67,4],[68,0,68,4],[69,0,69,4],[12,0,12,12],[53,0,53,4],[54,0,54,4],[55,0,55,4],[56,0,56,4],[57,0,57,4],[11,0,11,1],[13,0,13,1],[18,0,18,1],[19,0,19,1],[70,0,70,4],[71,0,71,4],[72,0,72,4],[61,0,61,4],[62,0,62,4],[63,0,63,4],[58,0,58,4],[59,0,59,4],[60,0,60,4],[28,0,28,1],[29,0,29,1],[25,0,25,1],[26,0,26,1],[27,0,27,1],[22,0,22,1],[23,0,23,1],[24,0,24,1],[20,0,20,1],[21,0,21,1],[64,0,64,4],[4,7,7,7],[4,8,7,8],[4,9,7,9],[4,10,7,10],[4,11,7,11],[4,0,7,0],[4,1,7,1],[4,2,7,2],[4,3,7,3],[4,4,7,4],[4,5,7,5],[4,24,7,24],[4,25,7,25],[5,26,5,31],[7,26,7,31],[186,0,186,4],[188,0,188,4],[189,0,189,4],[9,0,9,12],[10,0,10,12],[4,18,7,18],[4,19,7,19],[4,20,7,20],[4,21,7,21],[4,22,7,22],[4,23,7,23],[4,12,7,12],[4,13,7,13],[4,14,7,14],[4,15,7,15],[4,16,7,16],[4,17,7,17],[4,6,7,6],[190,0,190,4],[191,0,191,4],[192,0,192,4],[193,0,193,4],[194,0,194,4],[195,0,195,4],[196,0,196,4],[197,0,197,4],[198,0,198,4],[209,0,209,4],[208,0,208,12],[210,0,210,12],[199,0,199,4],[200,0,200,4],[201,0,201,4],[202,0,202,4],[203,0,203,4],[204,0,204,4],[205,0,205,4],[206,0,206,4],[207,0,207,4]]}
[null,null,null,"Welcome Guest!  Login | Register | Help"]
[]
[]
[]
[null,"Home",null,"News",null,"Screener",null,"Maps",null,"Groups",null,"Portfolio",null,"Insider",null,"Futures",null,"Forex",null,"Collaborate",null,"Store",null,null,"Elite"]
[]
[null,null,null,null,null,null,null,null,null,null,null,null,null,null,null,null,null,null,null,null,null,null,null,null,null,null,null,"Ticker",null,"Company",null,"Profile"]
[]
[]
[]
[]
["publish chart | backtests Type: candle | line | advanced    Timeframe: intraday | daily | weekly | monthly  ",null,"Settings"]
[]
[]
["HPQ [NYSE]"]
["Hewlett-Packard Company"]
["Technology | Diversified Computer Systems | USA"]
[null,"financial highlights | statements"]
["Index",null,"DJIA S&P500","P/E","-","EPS (ttm)",-6.55,"Insider Own",5.0000000000000001E-4,"Shs Outstand","1.94B","Perf Week",0.1638]
["Market Cap",null,"47.92B","Forward P/E",6.75,"EPS next Y",3.65,"Insider Trans",0.51400000000000001,"Shs Float","1.94B","Perf Month",0.2344]
["Income",null,"-12886.00M","PEG","-","EPS next Q",0.86,"Inst Own",0.77529999999999999,"Short Float",3.2000000000000001E-2,"Perf Quarter",0.25319999999999998]
["Sales",null,"118.68B","P/S",0.4,"EPS this Y",-2.9277000000000002,"Inst Trans",-2.3800000000000002E-2,"Short Ratio",2.66,"Perf Half Y",1.0139]
["Book/sh",null,11.72,"P/B",2.1,"EPS next Y",2.53E-2,"ROA",-0.1105,"Target Price",22.56,"Perf Year",0.20419999999999999]
["Cash/sh",null,6.48,"P/C",3.81,"EPS next 5Y",0,"ROE",-0.4153,"52W Range","11.18 - 24.95","Perf YTD",0.74080000000000001]
["Dividend",null,0.53,"P/FCF",6.43,"EPS past 5Y",3.2099999999999997E-2,"ROI",-0.1792,"52W High",-1.2E-2,"Beta",1.18]
["Dividend %",null,2.1499999999999998E-2,"Quick Ratio",0.97,"Sales past 5Y",2.9100000000000001E-2,"Gross Margin",0.22939999999999999,"52W Low",1.2057,"ATR",0.73]
["Employees",null,331800,"Current Ratio",1.1200000000000001,"Sales Q/Q",-5.5800000000000002E-2,"Oper. Margin",-9.5600000000000004E-2,"RSI (14)",70.23,"Volatility","3.44% 2.60%"]
["Optionable",null,"Yes","Debt/Eq",1.23,"EPS Q/Q",-0.14269999999999999,"Profit Margin",-0.1086,"Rel Volume",0.83,"Prev Close",24.21]
["Shortable",null,"Yes","LT Debt/Eq",0.95,"Earnings","May 22 AMC","Payout","-","Avg Volume","23.41M","Price",24.65]
["Recom",null,3.1,"SMA20",0.15590000000000001,"SMA50",0.14360000000000001,"SMA200",0.41360000000000002,"Volume",19427722,"Change",1.8200000000000001E-2]
[]
[]
["2013-05-23","Reiterated","MKM Partners","Neutral","$19 → $26"]
["2013-05-23","Reiterated","Mizuho","Underperform","$14 → $18"]
["2013-05-23","Reiterated","Barclays","Equal Weight","$24 → $26"]
["2013-04-04","Reiterated","Barclays","Equal Weight","$19 → $24"]
["2013-03-25","Reiterated","RBC Capital Mkts","Sector Perform","$21 → $23"]
["2013-02-22","Upgrade","UBS","Sell → Neutral","$12 → $19"]
["2013-02-22","Reiterated","RBC Capital Mkts","Sector Perform","$16 → $18"]
["2013-02-22","Reiterated","Mizuho","Underperform","$8 → $14"]
["2013-02-22","Reiterated","Deutsche Bank","Sell","$10 → $12"]
["2013-02-22","Reiterated","Barclays","Equal Weight","$16 → $19"]
["2013-01-18","Reiterated","Barclays","Equal Weight","$12 → $16"]
["2012-11-21","Reiterated","UBS","Sell","$12.75 → $11"]
["2012-11-21","Reiterated","Barclays","Equal Weight","$14 → $12"]
["2012-11-21","Downgrade","RBC Capital Mkts","Outperform → Sector Perform","$18 → $14"]
["2012-11-20","Downgrade","Mizuho","Neutral → Underperform","$15 → $8"]
["2012-11-20","Downgrade","ISI Group","Buy → Hold"]
["2012-11-15","Reiterated","Mizuho","Neutral","$17 → $15"]
["2012-11-14","Reiterated","UBS","Sell","$14 → $12.75"]
["2012-11-12","Reiterated","Barclays","Equal Weight","$16 → $14"]
["2012-10-05","Downgrade","Argus","Buy → Hold"]
[]
["28-May-13 05:10PM  ",null,null,null,null,"Lexmark Maintained at Neutral Zacks"]
["04:30PM  ",null,null,null,null,"Cisco Acquires Ubiquisys Ltd. Zacks"]
["04:24PM  ",null,null,null,null,"Staying Clear Of Hewlett Packard at Seeking Alpha"]
["04:10PM  ",null,null,null,null,"Does It Pay to Believe in This Company? at Motley Fool"]
["03:48PM  ",null,null,null,null,"If Foxconn sneezes, does that mean Apple caught a cold? at Fortune"]
["02:52PM  ",null,null,null,null,"When Customers Talk, Can You Hear Them? Lessons From HP at Forbes"]
["02:49PM  ",null,null,null,null,"Four tech stocks for the next move at MarketWatch"]
["02:38PM  ",null,null,null,null,"Michael Dell: All Business During A Storm at Forbes"]
["02:29PM  ",null,null,null,null,"Windows PCs Are Dying: This Might Be the Future at Motley Fool"]
["02:08PM  ",null,null,null,null,"Google, Amazon join in broad tech gains at MarketWatch"]
["02:02PM  ",null,null,null,null,"[video] Zombie 'Stockalypse' at CNBC"]
["01:43PM  ",null,null,null,null,"Tablets expected to outsell PCs by 2015 at MarketWatch"]
["01:22PM  ",null,null,null,null,"Business events scheduled for Wednesday AP"]
["12:58PM  ",null,null,null,null,"Hewlett-Packard Co Stock Upgraded (HPQ) at TheStreet"]
["12:55PM  ",null,null,null,null,"PC shipments face sharp slump in 2013 as tablets ascend - IDC Reuters"]
["12:40PM  ",null,null,null,null,"Logitech???s Sustained Product Innovation Zacks"]
["12:02PM  ",null,null,null,null,"IDC Sharply Cuts PC Shipment Forecast at The Wall Street Journal"]
["11:35AM  ",null,null,null,null,"[video] Ratings Moves: CS, HPQ, GOLD at TheStreet"]
["11:33AM  ",null,null,null,null,"Sell Hewlett-Packard After Earnings Spike at Seeking Alpha"]
["11:29AM  ",null,null,null,null,"Google, Amazon join in broad market gains at MarketWatch"]
["11:25AM  ",null,null,null,null,"Is This Comeback for Real? at Motley Fool"]
["11:20AM  ",null,null,null,null,"Michael Dell: All Business at Forbes"]
["11:14AM  ",null,null,null,null,"Can Foxconn Compete With Apple in the Tablet Market? The Daily Ticker"]
["10:48AM  ",null,null,null,null,"IDC Predicts Sharper Decline in PC Shipments at Fox Business"]
["10:23AM  ",null,null,null,null,"This Tech Turnaround Takes Hold at Motley Fool"]
["10:14AM  ",null,null,null,null,"HP Earnings: Not So Strong at Second Glance TheStreet"]
["09:12AM  ",null,null,null,null,"PC Market to Decline 7.8% in 2013 as Mobile-Devices Gain at Bloomberg"]
["08:05AM  ",null,null,null,null,"After Impressive Earnings Report, Is It Still Cheap? at Motley Fool"]
["07:45AM  ",null,null,null,null,"Customers Adopt HP Converged Cloud Portfolio for Accelerated Business Transformation Marketwired"]
["07:15AM  ",null,null,null,null,"A Closer Look at Three Global PC Makers at Motley Fool"]
["06:36AM  ",null,null,null,null,"Morning MoneyBeat: What the Sell Side Makes of the Dow at The Wall Street Journal"]
["06:20AM  ",null,null,null,null,"Relational Remains Concentrated at Motley Fool"]
["27-May-13 03:00PM  ",null,null,null,null,"4 Dividend Stocks Showing You the Money at Motley Fool"]
["26-May-13 04:22PM  ",null,null,null,null,"Tale of 2 Techs; the Game Plan: Cramer's Best Blogs TheStreet"]
["02:00PM  ",null,null,null,null,"Microsoft Catches a Wave, and the First Shot in the Software Patent Wars at Motley Fool"]
["01:06PM  ",null,null,null,null,"Apple's Tim Cook: 'I Am Not An Unfair Person' (And Other Quotes Of The Week) at Forbes"]
["01:00PM  ",null,null,null,null,"AllThingsD Talks News: Yumblr, Xbox and Hewlett-Packard at AllThingsD"]
["07:06AM  ",null,null,null,null,"Is HP on the Path to Recovery or Ruin? at Motley Fool"]
["05:42AM  ",null,null,null,null,"Hewlett-Packard: Shares Rally Hard As The Turnaround Continues To Gain Traction at Seeking Alpha"]
["04:48AM  ",null,null,null,null,"The Weekend Update: 5 Diversified Stocks Headed Higher at Seeking Alpha"]
["12:50AM  ",null,null,null,null,"Has HP Turned the Corner? at Motley Fool"]
["12:13AM  ",null,null,null,null,"HP Is Cheap, High Quality And Financially Strong; Turnaround Gathering Steam at Seeking Alpha"]
["24-May-13 10:00PM  ",null,null,null,null,"Dow Limps Into Holiday Weekend at Motley Fool"]
["07:21PM  ",null,null,null,null,"MarketWatchs top 10 stories, May 20-24 at MarketWatch"]
["07:01PM  ",null,null,null,null,"1 Tech Stock Benefiting From Low Expectations at Motley Fool"]
["06:51PM  ",null,null,null,null,"Cisco Stepping On The Toes Of IBM And Hewlett-Packard at Seeking Alpha"]
["06:03PM  ",null,null,null,null,"Dow Advances, Led by Procter & Gamble Stock at Motley Fool"]
["05:09PM  ",null,null,null,null,"Salesforce Shares Crash After Earnings Disappoint at AllThingsD"]
["04:26PM  ",null,null,null,null,"HP Could Double... Again at Seeking Alpha"]
["04:08PM  ",null,null,null,null,"S&P Closes Lower For Third Session; Dow Gains at CNBC"]
["03:20PM  ",null,null,null,null,"[video] Top Five in Tech: Tumblr for the Win at MarketWatch"]
["03:12PM  ",null,null,null,null,"A So-So Week For Earnings at Seeking Alpha"]
["03:09PM  ",null,null,null,null,"Lenovo Still Far From Getting Its Due at Investopedia"]
["03:03PM  ",null,null,null,null,"Why the Dow Is Flat Ahead of the Long Weekend at Motley Fool"]
["02:38PM  ",null,null,null,null,"Dow Turns Positive on P&G Surge at CNBC"]
["02:33PM  ",null,null,null,null,"Will P&Gs Lafley Be The Next Howard Schultz or The Next Michael Dell? Talking Numbers"]
["02:33PM  ",null,null,null,null,"Will P&Gs Lafley Be The Next Howard Schultz or The Next Michael Dell? "]
["02:33PM  ",null,null,null,null,"Procter & Gamble Stock Tops the Dow at Motley Fool"]
["02:17PM  ",null,null,null,null,"Samsung's Day Of Reckoning Is Coming at Forbes"]
["02:07PM  ",null,null,null,null,"Market poised to end week lower following Fed, China data at theflyonthewall.com"]
["02:03PM  ",null,null,null,null,"HP Needs to Copy Kraft's and News Corp's Bold Moves at Motley Fool"]
["01:35PM  ",null,null,null,null,"Stocks Rebound; Close to Turning Positive at CNBC"]
["01:28PM  ",null,null,null,null,"BofA Reportedly Looking to Divest NY, PA Branches, and 2 Other Hot Stocks to Watch at Wall St. Cheat Sheet"]
["01:10PM  ",null,null,null,null,"HP Taps Jim Murrin as Treasurer at AllThingsD"]
["01:03PM  ",null,null,null,null,"Markets Continue to Slide on Fed-Induced Fears at Motley Fool"]
["12:56PM  ",null,null,null,null,"Stocks Slide on Stimulus Fears; P&G Jumps at CNBC"]
["12:47PM  ",null,null,null,null,"Earnings Beat Lifts H-P Into Top Stocks of the Week The Exchange"]
["12:30PM  ",null,null,null,null,"Tech Titans Are the New Masters of the Universe, Be Afraid: Kotkin The Daily Ticker"]
["12:15PM  ",null,null,null,null,"[video] Gold on Track for Best Weekly Gain at CNBC"]
["12:00PM  ",null,null,null,null,"Dow Burdened by Uncertainty and Low-Powered Tech at Motley Fool"]
["11:50AM  ",null,null,null,null,"SolarWinds Set to Buy N-able Zacks"]
["11:48AM  ",null,null,null,null,"Stocks Weaken on Stimulus Fears; P&G Jumps at CNBC"]
["11:03AM  ",null,null,null,null,"What's Behind the Dow's Drop This Morning at Motley Fool"]
["11:00AM  ",null,null,null,null,"Dow Today: Hewlett-Packard (HPQ) Lower at TheStreet"]
["10:55AM  ",null,null,null,null,"Recap: Hewlett-Packard's earnings call at MarketWatch"]
["10:43AM  ",null,null,null,null,"Stocks Fall Again on Fed Tapering Fears at CNBC"]
["10:04AM  ",null,null,null,null,"Stocks Fall Again on Fed Tapering Fears at CNBC"]
["10:02AM  ",null,null,null,null,"Does a Huge Earnings Miss at Dell Signal the End of the PC? at Motley Fool"]
["09:59AM  ",null,null,null,null,"U.S. stocks dip at open despite durable goods beat at MarketWatch"]
["09:19AM  ",null,null,null,null,"Top CEOs Ranked By Their (Lousy) Stock Performance The Daily Ticker"]
["09:18AM  ",null,null,null,null,"Stock futures remain lower after durables data at MarketWatch"]
["08:52AM  ",null,null,null,null,"Stock futures trim losses on strong durable orders at MarketWatch"]
["08:42AM  ",null,null,null,null,"The Morning Download: Not so Fast to the Cloud at The Wall Street Journal"]
["08:11AM  ",null,null,null,null,"Hewlett-Packard names Jim Murrin treasurer at theflyonthewall.com"]
["08:00AM  ",null,null,null,null,"HP Names Jim Murrin Treasurer Marketwired"]
["07:54AM  ",null,null,null,null,"The Morning Download: Not so Fast to the Cloud at The Wall Street Journal"]
["07:35AM  ",null,null,null,null,"Stock futures fall ahead of durable goods at MarketWatch"]
["07:03AM  ",null,null,null,null,"Meg Whitman Isn't Worried About All That Server Market Share Dell Says It's Taking Away From HP Business Insider"]
["07:02AM  ",null,null,null,null,"Stock Market News for May 24, 2013 Zacks"]
["06:52AM  ",null,null,null,null,"Should You Buy What HP's Selling? at Motley Fool"]
["06:00AM  ",null,null,null,null,"The Mystery of Meg Whitman's HP TheStreet"]
["06:00AM  ",null,null,null,null,"Cramer's Top Stock Picks: UNP CRM MWE HPQ ECOM at TheStreet"]
["05:54AM  ",null,null,null,null,"Cramer's Mad Money - The Difference Between Hewlett-Packard and ChannelAdvisor (5/23/13) at Seeking Alpha"]
["04:00AM  ",null,null,null,null,"London's Deluxe Digital Selects HP to Transform Film Distribution Process to Cinemas Marketwired"]
["04:00AM  ",null,null,null,null,"London's Deluxe Digital Selects HP to Transform Film Distribution Process to Cinemas Marketwire"]
["12:34AM  ",null,null,null,null,"Can HP Deliver on These Mobile Promises? at Motley Fool"]
["12:01AM  ",null,null,null,null,"HP-Autonomy Merger Suit Should Be Put on Hold: Lawyers at Bloomberg"]
["23-May-13 10:00PM  ",null,null,null,null,"Dow Recovers After a Case of Bad Sushi at Motley Fool +17.10%"]
["09:06PM  ",null,null,null,null,"Hewlett-Packard Beats on EPS But GAAP Results Lag at Motley Fool"]
["08:48PM  ",null,null,null,null,"[$$] H-P Has a Long, Hard Slog Ahead at The Wall Street Journal"]
[]
["Hewlett-Packard Company and its subsidiaries provide products, technologies, software, solutions, and services to individual consumers, small-and medium-sized businesses (SMBs), and large enterprises, including customers in the government, health, and education sectors worldwide. Its Personal Systems segment offers commercial notebooks and desktops; consumer notebooks, desktops, and mini notebooks; and workstations, calculators and other related accessories, and software and services for the commercial and consumer markets. The company's Services segment provides consulting, outsourcing, and technology services to infrastructure, applications, and business process domains. Its Printing segment offers consumer and commercial printer hardware, supplies, media, and scanning devices, such as inkjet and Web solutions, laserjet and enterprise solutions, managed enterprise solutions, and graphics solutions. The company's Enterprise Servers, Storage, and Networking segment provides industry standard servers; business critical systems; storage platforms; and networking products comprising switches, routers, and wireless LANs. Its Software segment offers enterprise information management solutions for structured and unstructured data, IT management software, and security intelligence/risk management solutions as software licenses, software-as-a-service, and hybrid or appliance deployment models. The company's HP Financial Services segment provides leasing, financing, utility programs, and asset recovery services; and financial asset management services to enterprise customers, as well as specialized financial services to SMBs, and educational and governmental entities. Its Corporate Investments segment provides business intelligence solutions that enable businesses to standardize on data management schemes, connect and share data across the enterprise, and apply analytics. The company was founded in 1939 and is headquartered in Palo Alto, California."]
[]
["Insider Trading",null,null,null,null,"Relationship","Date","Transaction","Cost","#Shares","Value ($)","#Shares Total","SEC Form 4"]
["SCHULTZ JOHN F",null,null,null,null,"EVP, GC & SEC","2013-05-16","Option Exercise",21.36,4122,88046,47460,"2013-05-20T18:52:00"]
["McMullen John N",null,null,null,null,"SVP & Treasurer","2013-04-30","Option Exercise",20.6,1483,30550,1483,"2013-05-02T20:12:00"]
["Nefkens Michael G",null,null,null,null,"EVP, Enterprise Services","2013-04-30","Option Exercise",20.6,7943,163626,8444,"2013-05-02T20:13:00"]
["SCHULTZ JOHN F",null,null,null,null,"EVP, GC & SEC","2013-04-30","Option Exercise",20.6,2975,61285,44101,"2013-05-02T20:13:00"]
["VEGHTE WILLIAM L",null,null,null,null,"COO","2013-04-30","Option Exercise",20.6,13238,272703,124580,"2013-05-02T20:13:00"]
["DONATELLI DAVID A",null,null,null,null,"EVP & GM, Enterprise Group","2013-04-30","Option Exercise",20.6,22707,467764,118825,"2013-05-02T20:12:00"]
["KEOGH TRACY S",null,null,null,null,"EVP HR","2013-04-25","Option Exercise",19.59,12026,235589,39004,"2013-04-29T16:18:00"]
["REINER GARY M",null,null,null,null,"Director","2013-04-20","Option Exercise",0,5780,0,9235,"2013-04-24T09:22:00"]
["THOMPSON G KENNEDY",null,null,null,null,"Director","2013-04-20","Option Exercise",0,11559,0,40253,"2013-04-23T21:46:00"]
["WHITWORTH RALPH V",null,null,null,null,"Director","2013-04-20","Option Exercise",0,7356,0,7356,"2013-04-23T21:47:00"]
["GUPTA RAJIV",null,null,null,null,"Director","2013-04-20","Option Exercise",0,3678,0,18448,"2013-04-23T21:45:00"]
["HAMMERGREN JOHN H",null,null,null,null,"Director","2013-04-20","Option Exercise",0,11559,0,18468,"2013-04-23T21:46:00"]
["RUSSO PATRICIA F",null,null,null,null,"Director","2013-04-20","Option Exercise",0,7356,0,11752,"2013-04-23T21:46:00"]
["Banerji Shumeet",null,null,null,null,"Director","2013-04-20","Option Exercise",0,11559,0,18468,"2013-04-23T21:45:00"]
["Andreessen Marc L",null,null,null,null,"Director","2013-04-20","Option Exercise",0,11559,0,11559,"2013-04-23T21:44:00"]
["Gomez Henry",null,null,null,null,"EVP, CCO","2013-01-18","Option Exercise",17.11,6348,108614,6348,"2013-01-23T19:21:00"]
["WHITMAN MARGARET C",null,null,null,null,"President & CEO","2013-12-14","Option Exercise",14.75,54399,802385,57854,"2013-12-18T18:51:00"]
["McMullen John N",null,null,null,null,"SVP & Treasurer","2013-12-12","Option Exercise",14.53,2625,38141,16567,"2013-12-14T18:56:00"]
["VEGHTE WILLIAM L",null,null,null,null,"EVP & COO","2013-12-12","Option Exercise",14.53,18747,272394,37044,"2013-12-14T18:56:00"]
["HOMLISH MARTIN J",null,null,null,null,"EVP & CMO","2013-12-12","Option Exercise",14.53,27808,404050,36609,"2013-12-14T18:55:00"]
["KEOGH TRACY S",null,null,null,null,"EVP HR","2013-12-12","Option Exercise",14.53,30932,449442,38327,"2013-12-14T18:55:00"]
["LESJAK CATHERINE A",null,null,null,null,"EVP & CFO","2013-12-12","Option Exercise",14.53,18747,272394,34388,"2013-12-14T18:56:00"]
["BRADLEY RICHARD TODD",null,null,null,null,"EVP, PPSG","2013-12-12","Option Exercise",14.53,22496,326867,32293,"2013-12-14T18:54:00"]
["DONATELLI DAVID A",null,null,null,null,"EVP & GM, Enterprise Group","2013-12-12","Option Exercise",14.53,57489,835315,122956,"2013-12-14T18:54:00"]
["Hinshaw John M",null,null,null,null,"EVP, Global Tech & BP","2013-12-12","Option Exercise",14.53,6562,95346,18244,"2013-12-14T18:54:00"]
["SCHULTZ JOHN F",null,null,null,null,"EVP, GC & SEC","2013-12-10","Option Exercise",14.16,2076,29396,41871,"2013-12-12T20:11:00"]
["VEGHTE WILLIAM L",null,null,null,null,"EVP & COO","2013-12-10","Option Exercise",14.16,5186,73434,20201,"2013-12-12T20:12:00"]
["LIVERMORE ANN M",null,null,null,null,"Director","2013-12-10","Option Exercise",14.16,18376,260204,31789,"2013-12-12T20:12:00"]
["LEVINE MARC A",null,null,null,null,"SVP, Controller & PAO","2013-12-10","Option Exercise",14.16,1730,24497,29951,"2013-12-12T20:11:00"]
["McMullen John N",null,null,null,null,"SVP & Treasurer","2013-12-10","Option Exercise",14.16,1470,20815,14482,"2013-12-12T20:11:00"]
["BRADLEY RICHARD TODD",null,null,null,null,"EVP, PPSG","2013-12-10","Option Exercise",14.16,18376,260204,18376,"2013-12-12T20:09:00"]
["DONATELLI DAVID A",null,null,null,null,"EVP & GM, Enterprise Group","2013-12-10","Option Exercise",14.16,10372,146868,69607,"2013-12-12T20:10:00"]
["LESJAK CATHERINE A",null,null,null,null,"EVP & CFO","2013-12-10","Option Exercise",14.16,24704,349809,24704,"2013-12-12T20:10:00"]
["LEVINE MARC A",null,null,null,null,"SVP, Controller & PAO","2013-12-07","Option Exercise",13.93,1982,27609,28949,"2013-12-11T16:38:00"]
["SCHULTZ JOHN F",null,null,null,null,"EVP, GC & SEC","2013-12-07","Option Exercise",13.93,5126,71405,41677,"2013-12-11T16:39:00"]
["VEGHTE WILLIAM L",null,null,null,null,"EVP & COO","2013-12-04","Buy",13.03,13010,169579,81510,"2013-12-05T16:42:00"]
["VEGHTE WILLIAM L",null,null,null,null,"EVP & COO","2013-12-03","Buy",12.93,10000,129281,68500,"2013-12-05T16:42:00"]
["Hinshaw John M",null,null,null,null,"EVP, Global Tech","2013-11-15","Option Exercise",13.08,18451,241339,18451,"2013-11-19T17:19:00"]
["SCHULTZ JOHN F",null,null,null,null,"EVP, GC & SEC","2013-10-31","Option Exercise",13.85,5745,79568,38163,"2013-11-02T19:58:00"]
["VEGHTE WILLIAM L",null,null,null,null,"EVP & COO","2013-10-31","Option Exercise",13.85,25554,353923,73515,"2013-11-02T19:59:00"]
["LEVINE MARC A",null,null,null,null,"SVP, Controller & PAO","2013-10-31","Option Exercise",13.85,13583,188125,31950,"2013-11-02T19:57:00"]
["McMullen John N",null,null,null,null,"SVP & Treasurer","2013-10-31","Option Exercise",13.85,2863,39653,14064,"2013-11-02T19:58:00"]
["DONATELLI DAVID A",null,null,null,null,"EVP & GM, ESSN & TS","2013-10-31","Option Exercise",13.85,43831,607059,75314,"2013-11-02T19:57:00"]
["Lane Raymond J.",null,null,null,null,"Executive Chairman","2013-06-05","Buy",21.5,46400,997600,248392,"2013-06-07T17:42:00"]
["HOMLISH MARTIN J",null,null,null,null,"EVP & CMO","2013-06-01","Option Exercise",21.25,13901,295396,13901,"2013-06-04T18:33:00"]
["Lane Raymond J.",null,null,null,null,"Executive Chairman","2013-06-01","Buy",21.82,91400,1994104,201992,"2013-06-04T18:18:00"]
["WHITWORTH RALPH V",null,null,null,null,"Director","2013-06-01","Buy",21.67,1959107,42453849,34534517,"2013-06-04T18:18:00"]
["WHITWORTH RALPH V",null,null,null,null,"Director","2013-05-31","Buy",22.54,3092158,69697241,32575410,"2013-06-04T18:18:00"]
["Lane Raymond J.",null,null,null,null,"Executive Chairman","2013-05-31","Buy",22.53,88500,1993518,110592,"2013-06-04T18:18:00"]
["WHITWORTH RALPH V",null,null,null,null,"Director","2013-05-30","Buy",22.62,4649660,105175309,29483252,"2013-05-30T18:44:00"]
["WHITWORTH RALPH V",null,null,null,null,"Director","2013-05-29","Buy",22.71,4505978,102330760,24833592,"2013-05-30T18:44:00"]
[]
["open in yahoo | open in reuters | open in google"]

{"sheet":"Stock Indices and References","index":11,"n_rows":273,"n_cols":16,"rows_kept":273,"cut":false,"hidden":false,"merged":[[98,15,98,21],[99,15,99,21],[93,15,93,21],[94,15,94,21],[95,15,95,21],[96,15,96,21],[97,15,97,21],[88,15,88,21],[89,15,89,21],[90,15,90,21],[91,15,91,21],[92,15,92,21],[83,15,83,21],[84,15,84,21],[85,15,85,21],[86,15,86,21],[87,15,87,21],[78,15,78,21],[79,15,79,21],[80,15,80,21],[81,15,81,21],[82,15,82,21],[73,15,73,21],[74,15,74,21],[75,15,75,21],[76,15,76,21],[77,15,77,21],[68,15,68,21],[69,15,69,21],[70,15,70,21],[71,15,71,21],[72,15,72,21],[63,15,63,21],[64,15,64,21],[65,15,65,21],[66,15,66,21],[67,15,67,21],[58,15,58,21],[59,15,59,21],[60,15,60,21],[61,15,61,21],[62,15,62,21],[53,15,53,21],[54,15,54,21],[55,15,55,21],[56,15,56,21],[57,15,57,21],[48,15,48,21],[49,15,49,21],[50,15,50,21],[51,15,51,21],[52,15,52,21],[43,15,43,21],[44,15,44,21],[45,15,45,21],[46,15,46,21],[47,15,47,21],[38,15,38,21],[39,15,39,21],[40,15,40,21],[41,15,41,21],[42,15,42,21],[33,15,33,21],[34,15,34,21],[35,15,35,21],[36,15,36,21],[37,15,37,21],[28,15,28,21],[29,15,29,21],[30,15,30,21],[31,15,31,21],[32,15,32,21],[23,15,23,21],[24,15,24,21],[25,15,25,21],[26,15,26,21],[27,15,27,21],[18,15,18,21],[19,15,19,21],[20,15,20,21],[21,15,21,21],[22,15,22,21],[0,0,1,1],[0,3,1,7],[2,3,2,7],[0,8,1,8],[0,15,1,21],[3,15,3,21],[4,15,4,21],[2,15,2,21],[5,15,5,21],[0,9,1,12],[2,9,2,12],[13,15,13,21],[10,15,10,21],[14,15,14,21],[15,15,15,21],[16,15,16,21],[17,15,17,21],[2,0,2,1],[6,15,6,21],[7,15,7,21],[8,15,8,21],[9,15,9,21],[3,10,3,12],[4,10,4,12],[5,10,5,12],[6,10,6,12],[7,10,7,12],[8,10,8,12],[11,15,11,21],[12,15,12,21]]}
["DROP DOWN MENUS (INPUTS)",null,null,"MAJOR US STOCK INDICES",null,null,null,null,"**Refresh MAJOR US STOCK INDICES DATA for updated stock indices figures**","DESIRABILITY GUIDE KEY",null,null,null,null,null,"WEB REFERENCES"]
[]
[]
["Sector","Basic Materials",null,{"$f":"'Major US Stock Indices Data'!A1","v":"Ticker"},{"$f":"'Major US Stock Indices Data'!B1","v":"Volume"},{"$f":"'Major US Stock Indices Data'!C1","v":"Price"},{"$f":"'Major US Stock Indices Data'!D1","v":"Price Delta"},"Ticker",null,null,"Most undesirable",null,null,null,"US Stock Indices","1. http://www.bloomberg.com/markets/stocks/world-indexes/americas/"]
[null,"Conglomerates",null,{"$f":"'Major US Stock Indices Data'!A2","v":"DJIA"},{"$f":"'Major US Stock Indices Data'!B2","v":15294.5},{"$f":"'Major US Stock Indices Data'!C2","v":-12.67},{"$f":"'Major US Stock Indices Data'!D2","v":-8.0000000000000004E-4},null,null,null,"Somewhat undesirable",null,null,null,"MSN Quote","2. http://moneycentral.msn.com/investor/external/excel/quotes.asp?SYMBOL=[\"TICKER\"]"]
[null,"Consumer Goods",null,{"$f":"'Major US Stock Indices Data'!A3","v":"S&P 500"},{"$f":"'Major US Stock Indices Data'!B3","v":1650.51},{"$f":"'Major US Stock Indices Data'!C3","v":-4.84},{"$f":"'Major US Stock Indices Data'!D3","v":-2.8999999999999998E-3},null,null,null,"Somewhat desirable/neutral",null,null,null,"MSN Income Stmt.","3. http://investing.money.msn.com/investments/stock-income-statement/?symbol=[\"TICKER\"]"]
[null,"Financial",null,{"$f":"'Major US Stock Indices Data'!A4","v":"Nasdaq"},{"$f":"'Major US Stock Indices Data'!B4","v":3459.42},{"$f":"'Major US Stock Indices Data'!C4","v":-3.88},{"$f":"'Major US Stock Indices Data'!D4","v":-1.1000000000000001E-3},null,null,null,"Most desirable",null,null,null,"MSN Balance Sht.","4. http://investing.money.msn.com/investments/stock-balance-sheet/?symbol=us%3A[\"TICKER\"]&stmtView=Ann"]
[null,"Healthcare",null,null,null,null,null,null,null,null,"Atypical value - investigate further",null,null,null,"MSN Cash Flows","5. http://investing.money.msn.com/investments/stock-cash-flow/?symbol=[\"TICKER\"]"]
[null,"Industrial Goods",null,{"$f":"'Major US Stock Indices Data'!A16","v":"Index Name"},{"$f":"'Major US Stock Indices Data'!B16","v":"Value"},{"$f":"'Major US Stock Indices Data'!C16","v":"Change"},{"$f":"'Major US Stock Indices Data'!D16","v":"% Change"},{"$f":"'Major US Stock Indices Data'!E16","v":"Time"},null,null,"No data/\"0\" value",null,null,null,"Yahoo Competitors","6. http://finance.yahoo.com/q/co?s=[\"TICKER\"]+Competitors"]
[null,"Services",null,{"$f":"'Major US Stock Indices Data'!A17","v":"Dow Jones Industrial Average"},{"$f":"'Major US Stock Indices Data'!B17","v":15294.5},{"$f":"'Major US Stock Indices Data'!C17","v":-12.67},{"$f":"'Major US Stock Indices Data'!D17","v":-8.0000000000000004E-4},{"$f":"'Major US Stock Indices Data'!E17","v":"16:53:57"},null,null,null,null,null,null,"Yahoo Key Stats.","7. http://finance.yahoo.com/q/ks?s=[\"TICKER\"]+Key+Statistics"]
[null,"Technology",null,{"$f":"'Major US Stock Indices Data'!A18","v":"Dow Jones Transportation Average"},{"$f":"'Major US Stock Indices Data'!B18","v":6429.79},{"$f":"'Major US Stock Indices Data'!C18","v":13.53},{"$f":"'Major US Stock Indices Data'!D18","v":2.0999999999999999E-3},{"$f":"'Major US Stock Indices Data'!E18","v":"16:53:57"},null,"Buy","Market Order",null,null,null,"Yahoo Profile","8. http://finance.yahoo.com/q/pr?s=[\"TICKER\"]+Profile"]
[null,"Utilities",null,{"$f":"'Major US Stock Indices Data'!A19","v":"Dow Jones Utilities Average"},{"$f":"'Major US Stock Indices Data'!B19","v":504.51},{"$f":"'Major US Stock Indices Data'!C19","v":-2.95},{"$f":"'Major US Stock Indices Data'!D19","v":-5.7999999999999996E-3},{"$f":"'Major US Stock Indices Data'!E19","v":"16:53:57"},null,"Sell","Limit Order",null,null,null,"Yahoo Industry","9. http://finance.yahoo.com/q/in?s=[\"TICKER\"]+Industry"]
[null,null,null,{"$f":"'Major US Stock Indices Data'!A20","v":"S&P 500 Index"},{"$f":"'Major US Stock Indices Data'!B20","v":1650.51},{"$f":"'Major US Stock Indices Data'!C20","v":-4.84},{"$f":"'Major US Stock Indices Data'!D20","v":-2.8999999999999998E-3},{"$f":"'Major US Stock Indices Data'!E20","v":"16:19:56"},null,"Hold","Stop Loss Order",null,null,null,"Zacks EQ Research","10. http://www.zacks.com/stock/research/equity-research.php?t=[\"TICKER\"]"]
["Industry","Accident & Health Insurance",null,{"$f":"'Major US Stock Indices Data'!A21","v":"New York Stock Exchange Composite Index"},{"$f":"'Major US Stock Indices Data'!B21","v":9466.2900000000009},{"$f":"'Major US Stock Indices Data'!C21","v":-41.76},{"$f":"'Major US Stock Indices Data'!D21","v":-4.4000000000000003E-3},{"$f":"'Major US Stock Indices Data'!E21","v":"16:44:33"},null,null,null,null,null,null,"Forbes Key Stats.","11. http://finapps.forbes.com/finapps/jsp/finance/compinfo/Ratios.jsp?tkr=[\"TICKER\"]"]
[null,"Advertising Agencies",null,{"$f":"'Major US Stock Indices Data'!A22","v":"NASDAQ Composite Index"},{"$f":"'Major US Stock Indices Data'!B22","v":3459.42},{"$f":"'Major US Stock Indices Data'!C22","v":-3.88},{"$f":"'Major US Stock Indices Data'!D22","v":-1.1000000000000001E-3},{"$f":"'Major US Stock Indices Data'!E22","v":"16:59:23"},null,null,null,null,null,null,"FinViz Profile","12. http://finviz.com/quote.ashx?t=[\"TICKER\"]"]
[null,"Aerospace/Defense - Major Diversified",null,{"$f":"'Major US Stock Indices Data'!A23","v":"Russell 1000 Index"},{"$f":"'Major US Stock Indices Data'!B23","v":915.08},{"$f":"'Major US Stock Indices Data'!C23","v":-2.57},{"$f":"'Major US Stock Indices Data'!D23","v":-2.8E-3},{"$f":"'Major US Stock Indices Data'!E23","v":"17:00:49"},null,null,null,null,null,null,"Additional Refs"]
[null,"Aerospace/Defense Products & Services",null,{"$f":"'Major US Stock Indices Data'!A24","v":"Russell 2000 Index"},{"$f":"'Major US Stock Indices Data'!B24","v":984.28},{"$f":"'Major US Stock Indices Data'!C24","v":2.02},{"$f":"'Major US Stock Indices Data'!D24","v":2.0999999999999999E-3},{"$f":"'Major US Stock Indices Data'!E24","v":"17:00:37"},null,null,null,null,null,null,"Additional Refs"]
[null,"Agricultural Chemicals",null,{"$f":"'Major US Stock Indices Data'!A25","v":"Russell 3000 Index"},{"$f":"'Major US Stock Indices Data'!B25","v":980.52},{"$f":"'Major US Stock Indices Data'!C25","v":-2.39},{"$f":"'Major US Stock Indices Data'!D25","v":-2.3999999999999998E-3},{"$f":"'Major US Stock Indices Data'!E25","v":"17:00:47"},null,null,null,null,null,null,"Additional Refs"]
[null,"Air Delivery & Freight Services",null,{"$f":"'Major US Stock Indices Data'!A26","v":"KBW Bank Index"},{"$f":"'Major US Stock Indices Data'!B26","v":60.68},{"$f":"'Major US Stock Indices Data'!C26","v":-0.24},{"$f":"'Major US Stock Indices Data'!D26","v":-3.8999999999999998E-3},{"$f":"'Major US Stock Indices Data'!E26","v":"16:58:03"},null,null,null,null,null,null,"Additional Refs"]
[null,"Air Services, Other",null,{"$f":"'Major US Stock Indices Data'!A27","v":0},{"$f":"'Major US Stock Indices Data'!B27","v":0},{"$f":"'Major US Stock Indices Data'!C27","v":0},{"$f":"'Major US Stock Indices Data'!D27","v":0},{"$f":"'Major US Stock Indices Data'!E27","v":"00:00:00"},null,null,null,null,null,null,"Additional Refs"]
[null,"Aluminum",null,{"$f":"'Major US Stock Indices Data'!A28","v":"Index Name"},{"$f":"'Major US Stock Indices Data'!B28","v":"Value"},{"$f":"'Major US Stock Indices Data'!C28","v":"Change"},{"$f":"'Major US Stock Indices Data'!D28","v":"% Change"},{"$f":"'Major US Stock Indices Data'!E28","v":"Time"},null,null,null,null,null,null,"Additional Refs"]
[null,"Apparel Stores",null,{"$f":"'Major US Stock Indices Data'!A29","v":"Buenos Aires Stock Exchange Merval Index"},{"$f":"'Major US Stock Indices Data'!B29","v":3557.55},{"$f":"'Major US Stock Indices Data'!C29","v":9.81},{"$f":"'Major US Stock Indices Data'!D29","v":2.8E-3},{"$f":"'Major US Stock Indices Data'!E29","v":"16:00:49"},null,null,null,null,null,null,"Additional Refs"]
[null,"Appliances",null,{"$f":"'Major US Stock Indices Data'!A30","v":"Merval Argentina Index"},{"$f":"'Major US Stock Indices Data'!B30","v":2469.87},{"$f":"'Major US Stock Indices Data'!C30","v":5.29},{"$f":"'Major US Stock Indices Data'!D30","v":2.0999999999999999E-3},{"$f":"'Major US Stock Indices Data'!E30","v":"16:00:49"},null,null,null,null,null,null,"Additional Refs"]
[null,"Application Software",null,{"$f":"'Major US Stock Indices Data'!A31","v":0},{"$f":"'Major US Stock Indices Data'!B31","v":0},{"$f":"'Major US Stock Indices Data'!C31","v":0},{"$f":"'Major US Stock Indices Data'!D31","v":0},{"$f":"'Major US Stock Indices Data'!E31","v":"00:00:00"},null,null,null,null,null,null,"Additional Refs"]
[null,"Asset Management",null,{"$f":"'Major US Stock Indices Data'!A32","v":"Index Name"},{"$f":"'Major US Stock Indices Data'!B32","v":"Value"},{"$f":"'Major US Stock Indices Data'!C32","v":"Change"},{"$f":"'Major US Stock Indices Data'!D32","v":"% Change"},{"$f":"'Major US Stock Indices Data'!E32","v":"Time"},null,null,null,null,null,null,"Additional Refs"]
[null,"Auto Dealerships",null,{"$f":"'Major US Stock Indices Data'!A33","v":"Bermuda Stock Exchange Index"},{"$f":"'Major US Stock Indices Data'!B33","v":1154.56},{"$f":"'Major US Stock Indices Data'!C33","v":-22.73},{"$f":"'Major US Stock Indices Data'!D33","v":-1.9300000000000001E-2},{"$f":"'Major US Stock Indices Data'!E33","v":"05:59:26"},null,null,null,null,null,null,"Additional Refs"]
[null,"Auto Manufacturers - Major",null,{"$f":"'Major US Stock Indices Data'!A34","v":0},{"$f":"'Major US Stock Indices Data'!B34","v":0},{"$f":"'Major US Stock Indices Data'!C34","v":0},{"$f":"'Major US Stock Indices Data'!D34","v":0},{"$f":"'Major US Stock Indices Data'!E34","v":"00:00:00"},null,null,null,null,null,null,"Additional Refs"]
[null,"Auto Parts",null,{"$f":"'Major US Stock Indices Data'!A35","v":"Index Name"},{"$f":"'Major US Stock Indices Data'!B35","v":"Value"},{"$f":"'Major US Stock Indices Data'!C35","v":"Change"},{"$f":"'Major US Stock Indices Data'!D35","v":"% Change"},{"$f":"'Major US Stock Indices Data'!E35","v":"Time"},null,null,null,null,null,null,"Additional Refs"]
[null,"Auto Parts Stores",null,{"$f":"'Major US Stock Indices Data'!A36","v":"Ibovespa Brasil Sao Paulo Stock Exchange Index"},{"$f":"'Major US Stock Indices Data'!B36","v":56349.91},{"$f":"'Major US Stock Indices Data'!C36","v":-79.36},{"$f":"'Major US Stock Indices Data'!D36","v":-1.4E-3},{"$f":"'Major US Stock Indices Data'!E36","v":"16:48:30"},null,null,null,null,null,null,"Additional Refs"]
[null,"Auto Parts Wholesale",null,{"$f":"'Major US Stock Indices Data'!A37","v":"Sao Paulo Stock Exchange IBrX Index"},{"$f":"'Major US Stock Indices Data'!B37","v":22035.58},{"$f":"'Major US Stock Indices Data'!C37","v":-145.38},{"$f":"'Major US Stock Indices Data'!D37","v":-6.6E-3},{"$f":"'Major US Stock Indices Data'!E37","v":"16:45:00"},null,null,null,null,null,null,"Additional Refs"]
[null,"Basic Materials Wholesale",null,{"$f":"'Major US Stock Indices Data'!A38","v":0},{"$f":"'Major US Stock Indices Data'!B38","v":0},{"$f":"'Major US Stock Indices Data'!C38","v":0},{"$f":"'Major US Stock Indices Data'!D38","v":0},{"$f":"'Major US Stock Indices Data'!E38","v":"00:00:00"},null,null,null,null,null,null,"Additional Refs"]
[null,"Beverages - Brewers",null,{"$f":"'Major US Stock Indices Data'!A39","v":"Index Name"},{"$f":"'Major US Stock Indices Data'!B39","v":"Value"},{"$f":"'Major US Stock Indices Data'!C39","v":"Change"},{"$f":"'Major US Stock Indices Data'!D39","v":"% Change"},{"$f":"'Major US Stock Indices Data'!E39","v":"Time"},null,null,null,null,null,null,"Additional Refs"]
[null,"Beverages - Soft Drinks",null,{"$f":"'Major US Stock Indices Data'!A40","v":"S&P/TSX Composite Index"},{"$f":"'Major US Stock Indices Data'!B40","v":12658.09},{"$f":"'Major US Stock Indices Data'!C40","v":-94.41},{"$f":"'Major US Stock Indices Data'!D40","v":-7.4000000000000003E-3},{"$f":"'Major US Stock Indices Data'!E40","v":"16:20:00"},null,null,null,null,null,null,"Additional Refs"]
[null,"Beverages - Wineries & Distillers",null,{"$f":"'Major US Stock Indices Data'!A41","v":"S&P/TSX 60 Index"},{"$f":"'Major US Stock Indices Data'!B41","v":726.23},{"$f":"'Major US Stock Indices Data'!C41","v":-6.28},{"$f":"'Major US Stock Indices Data'!D41","v":-8.6E-3},{"$f":"'Major US Stock Indices Data'!E41","v":"16:20:00"},null,null,null,null,null,null,"Additional Refs"]
[null,"Biotechnology",null,{"$f":"'Major US Stock Indices Data'!A42","v":0},{"$f":"'Major US Stock Indices Data'!B42","v":0},{"$f":"'Major US Stock Indices Data'!C42","v":0},{"$f":"'Major US Stock Indices Data'!D42","v":0},{"$f":"'Major US Stock Indices Data'!E42","v":"00:00:00"},null,null,null,null,null,null,"Additional Refs"]
[null,"Broadcasting - Radio",null,{"$f":"'Major US Stock Indices Data'!A43","v":"Index Name"},{"$f":"'Major US Stock Indices Data'!B43","v":"Value"},{"$f":"'Major US Stock Indices Data'!C43","v":"Change"},{"$f":"'Major US Stock Indices Data'!D43","v":"% Change"},{"$f":"'Major US Stock Indices Data'!E43","v":"Time"},null,null,null,null,null,null,"Additional Refs"]
[null,"Braodcasting - TV",null,{"$f":"'Major US Stock Indices Data'!A44","v":"Santiago Stock Exchange IPSA Index"},{"$f":"'Major US Stock Indices Data'!B44","v":4237.04},{"$f":"'Major US Stock Indices Data'!C44","v":-33.08},{"$f":"'Major US Stock Indices Data'!D44","v":-7.7000000000000002E-3},{"$f":"'Major US Stock Indices Data'!E44","v":"16:18:31"},null,null,null,null,null,null,"Additional Refs"]
[null,"Building Materials Wholesale",null,{"$f":"'Major US Stock Indices Data'!A45","v":"Santiago Stock Exchange IGPA Index"},{"$f":"'Major US Stock Indices Data'!B45","v":20848.72},{"$f":"'Major US Stock Indices Data'!C45","v":-129.81},{"$f":"'Major US Stock Indices Data'!D45","v":-6.1999999999999998E-3},{"$f":"'Major US Stock Indices Data'!E45","v":"16:18:31"},null,null,null,null,null,null,"Additional Refs"]
[null,"Business Equipment",null,{"$f":"'Major US Stock Indices Data'!A46","v":0},{"$f":"'Major US Stock Indices Data'!B46","v":0},{"$f":"'Major US Stock Indices Data'!C46","v":0},{"$f":"'Major US Stock Indices Data'!D46","v":0},{"$f":"'Major US Stock Indices Data'!E46","v":"00:00:00"},null,null,null,null,null,null,"Additional Refs"]
[null,"Business Services",null,{"$f":"'Major US Stock Indices Data'!A47","v":"Index Name"},{"$f":"'Major US Stock Indices Data'!B47","v":"Value"},{"$f":"'Major US Stock Indices Data'!C47","v":"Change"},{"$f":"'Major US Stock Indices Data'!D47","v":"% Change"},{"$f":"'Major US Stock Indices Data'!E47","v":"Time"},null,null,null,null,null,null,"Additional Refs"]
[null,"Business Software & Services",null,{"$f":"'Major US Stock Indices Data'!A48","v":"Colombia COL20 Index"},{"$f":"'Major US Stock Indices Data'!B48","v":1262.3},{"$f":"'Major US Stock Indices Data'!C48","v":6.27},{"$f":"'Major US Stock Indices Data'!D48","v":5.0000000000000001E-3},{"$f":"'Major US Stock Indices Data'!E48","v":"15:59:20"},null,null,null,null,null,null,"Additional Refs"]
[null,"Catalog & Mail Order Houses",null,{"$f":"'Major US Stock Indices Data'!A49","v":"Indice General de la Bolsa de Valores de Colombia"},{"$f":"'Major US Stock Indices Data'!B49","v":13405.94},{"$f":"'Major US Stock Indices Data'!C49","v":76.3},{"$f":"'Major US Stock Indices Data'!D49","v":5.7000000000000002E-3},{"$f":"'Major US Stock Indices Data'!E49","v":"15:59:20"},null,null,null,null,null,null,"Additional Refs"]
[null,"CATV Systems",null,{"$f":"'Major US Stock Indices Data'!A50","v":0},{"$f":"'Major US Stock Indices Data'!B50","v":0},{"$f":"'Major US Stock Indices Data'!C50","v":0},{"$f":"'Major US Stock Indices Data'!D50","v":0},{"$f":"'Major US Stock Indices Data'!E50","v":"00:00:00"},null,null,null,null,null,null,"Additional Refs"]
[null,"Cement",null,{"$f":"'Major US Stock Indices Data'!A51","v":"Index Name"},{"$f":"'Major US Stock Indices Data'!B51","v":"Value"},{"$f":"'Major US Stock Indices Data'!C51","v":"Change"},{"$f":"'Major US Stock Indices Data'!D51","v":"% Change"},{"$f":"'Major US Stock Indices Data'!E51","v":"Time"},null,null,null,null,null,null,"Additional Refs"]
[null,"Chemicals - Major Diversified",null,{"$f":"'Major US Stock Indices Data'!A52","v":"BCT Corp Costa Rica Stock Market Index"},{"$f":"'Major US Stock Indices Data'!B52","v":19976.330000000002},{"$f":"'Major US Stock Indices Data'!C52","v":0},{"$f":"'Major US Stock Indices Data'!D52","v":0},{"$f":"'Major US Stock Indices Data'!E52","v":41416},null,null,null,null,null,null,"Additional Refs"]
[null,"Cigarettes",null,{"$f":"'Major US Stock Indices Data'!A53","v":0},{"$f":"'Major US Stock Indices Data'!B53","v":0},{"$f":"'Major US Stock Indices Data'!C53","v":0},{"$f":"'Major US Stock Indices Data'!D53","v":0},{"$f":"'Major US Stock Indices Data'!E53","v":"00:00:00"},null,null,null,null,null,null,"Additional Refs"]
[null,"Cleaning Products",null,{"$f":"'Major US Stock Indices Data'!A54","v":"Index Name"},{"$f":"'Major US Stock Indices Data'!B54","v":"Value"},{"$f":"'Major US Stock Indices Data'!C54","v":"Change"},{"$f":"'Major US Stock Indices Data'!D54","v":"% Change"},{"$f":"'Major US Stock Indices Data'!E54","v":"Time"}]
[null,"Closed-End Fund - Debt",null,{"$f":"'Major US Stock Indices Data'!A55","v":"Jamaica Stock Exchange Market Index"},{"$f":"'Major US Stock Indices Data'!B55","v":86275.28},{"$f":"'Major US Stock Indices Data'!C55","v":582.03},{"$f":"'Major US Stock Indices Data'!D55","v":6.7999999999999996E-3},{"$f":"'Major US Stock Indices Data'!E55","v":41416}]
[null,"Closed-End Fund - Equity",null,{"$f":"'Major US Stock Indices Data'!A56","v":0},{"$f":"'Major US Stock Indices Data'!B56","v":0},{"$f":"'Major US Stock Indices Data'!C56","v":0},{"$f":"'Major US Stock Indices Data'!D56","v":0},{"$f":"'Major US Stock Indices Data'!E56","v":"00:00:00"}]
[null,"Closed-End Fund - Foreign",null,{"$f":"'Major US Stock Indices Data'!A57","v":"Index Name"},{"$f":"'Major US Stock Indices Data'!B57","v":"Value"},{"$f":"'Major US Stock Indices Data'!C57","v":"Change"},{"$f":"'Major US Stock Indices Data'!D57","v":"% Change"},{"$f":"'Major US Stock Indices Data'!E57","v":"Time"}]
[null,"Communication Equipment",null,{"$f":"'Major US Stock Indices Data'!A58","v":"Mexican Stock Exchange Mexican Bolsa IPC Index"},{"$f":"'Major US Stock Indices Data'!B58","v":40505.269999999997},{"$f":"'Major US Stock Indices Data'!C58","v":386.25},{"$f":"'Major US Stock Indices Data'!D58","v":9.5999999999999992E-3},{"$f":"'Major US Stock Indices Data'!E58","v":"16:06:35"}]
[null,"Computer Based Systems",null,{"$f":"'Major US Stock Indices Data'!A59","v":"Mexican Stock Exchange INMEX Index"},{"$f":"'Major US Stock Indices Data'!B59","v":2343.1799999999998},{"$f":"'Major US Stock Indices Data'!C59","v":27.01},{"$f":"'Major US Stock Indices Data'!D59","v":1.17E-2},{"$f":"'Major US Stock Indices Data'!E59","v":"16:06:35"}]
[null,"Computer Peripherals",null,{"$f":"'Major US Stock Indices Data'!A60","v":0},{"$f":"'Major US Stock Indices Data'!B60","v":0},{"$f":"'Major US Stock Indices Data'!C60","v":0},{"$f":"'Major US Stock Indices Data'!D60","v":0},{"$f":"'Major US Stock Indices Data'!E60","v":"00:00:00"}]
[null,"Computers Wholesale",null,{"$f":"'Major US Stock Indices Data'!A61","v":"Index Name"},{"$f":"'Major US Stock Indices Data'!B61","v":"Value"},{"$f":"'Major US Stock Indices Data'!C61","v":"Change"},{"$f":"'Major US Stock Indices Data'!D61","v":"% Change"},{"$f":"'Major US Stock Indices Data'!E61","v":"Time"}]
[null,"Confectioners",null,{"$f":"'Major US Stock Indices Data'!A62","v":"Bolsa de Valores de Panama General Index"},{"$f":"'Major US Stock Indices Data'!B62","v":476.44},{"$f":"'Major US Stock Indices Data'!C62","v":-0.32},{"$f":"'Major US Stock Indices Data'!D62","v":-6.9999999999999999E-4},{"$f":"'Major US Stock Indices Data'!E62","v":"16:19:39"}]
[null,"Conglomerates",null,{"$f":"'Major US Stock Indices Data'!A63","v":0},{"$f":"'Major US Stock Indices Data'!B63","v":0},{"$f":"'Major US Stock Indices Data'!C63","v":0},{"$f":"'Major US Stock Indices Data'!D63","v":0},{"$f":"'Major US Stock Indices Data'!E63","v":"00:00:00"}]
[null,"Consumer Services"]
[null,"Copper"]
[null,"Credit Services"]
[null,"Dairy Products"]
[null,"Data Storage Devices"]
[null,"Department Stores"]
[null,"Diagnostic Substances"]
[null,"Discount, Variety Stores"]
[null,"Diversified Communication Services"]
[null,"Diversified Computer Systems"]
[null,"Diversified Electronics"]
[null,"Diversified Investments"]
[null,"Diversified Machinery"]
[null,"Diversified Utilities"]
[null,"Drug Delivery"]
[null,"Drug Manufacturers - Major"]
[null,"Drug Manufacturers - Other"]
[null,"Drug Related Products"]
[null,"Drug Stores"]
[null,"Drugs - Generic"]
[null,"Drugs Wholesale"]
[null,"Education & Training Services"]
[null,"Electric Utilities"]
[null,"Electronic Equipment"]
[null,"Electronics Stores"]
[null,"Electronics Wholesale"]
[null,"Entertainment - Diversified"]
[null,"Farm & Construction Machinery"]
[null,"Farm Products"]
[null,"Food - Major Diversified"]
[null,"Food Wholesale"]
[null,"Foreign Money Center Banks"]
[null,"Foreign Regional Banks"]
[null,"Foreign Utilities"]
[null,"Gaming Activities"]
[null,"Gas Utilities"]
[null,"General Building Materials"]
[null,"General Contractors"]
[null,"General Entertainment"]
[null,"Gold"]
[null,"Grocery Stores"]
[null,"Health Care Plans"]
[null,"Healcare Information Services"]
[null,"Heavy Construction"]
[null,"Home Furnishing Stores"]
[null,"Home Furnishings & Fixtures"]
[null,"Home Health Care"]
[null,"Home Improvement Stores"]
[null,"Hospitals"]
[null,"Housewares & Accessories"]
[null,"Independent Oil & Gas"]
[null,"Industrial Electrical Equipment"]
[null,"Industrial Equipment & Components"]
[null,"Industrial Equipment Wholesale"]
[null,"Industrial Metals & Minerals"]
[null,"Information & Delivery Services"]
[null,"Information Technology Services"]
[null,"Insurance Brokers"]
[null,"Internet Information Providers"]
[null,"Internet Service Providers"]
[null,"Internet Software & Services"]
[null,"Investment Brokerage - National"]
[null,"Invesment Brokerage - Regional"]
[null,"Jewelry Stores"]
[null,"Life Insurance"]
[null,"Lodging"]
[null,"Long Distance Carriers"]
[null,"Long-Term Care Facilities"]
[null,"Lumber, Wood Production"]
[null,"Machine Tools & Accessories"]
[null,"Major Airlines"]
[null,"Major Integrated Oil & Gas"]
[null,"Management Services"]
[null,"Manufactured Housing"]
[null,"Marketing Services"]
[null,"Meat Products"]
[null,"Medical Appliances & Equipment"]
[null,"Medical Equipment Wholesale"]
[null,"Medical Instruments & Supplies"]
[null,"Medical Laboratories & Research"]
[null,"Medical Practitioners"]
[null,"Metal Fabrication"]
[null,"Money Center Banks"]
[null,"Mortgage Investment"]
[null,"Movie Production, Theaters"]
[null,"Multimedia & Graphics Software"]
[null,"Music & Video Stores"]
[null,"Networking & Communication Devices"]
[null,"Nonmetallic Mineral Mining"]
[null,"Office Supplies"]
[null,"Oil & Gas Drilling & Exploration"]
[null,"Oil & Gas Equipment & Services"]
[null,"Oil & Gas Pipelines"]
[null,"Oil & Gas Refining & Marketing"]
[null,"Packaging & Containers"]
[null,"Paper & Paper Products"]
[null,"Personal Computers"]
[null,"Personal Products"]
[null,"Personal Services"]
[null,"Photographic Equipment & Supplies"]
[null,"Pollution & Treatment Controls"]
[null,"Printed Circuit Boards"]
[null,"Processed & Packaged Goods"]
[null,"Processing Systems & Products"]
[null,"Property & Casualty Insurance"]
[null,"Property Management"]
[null,"Publishing - Books"]
[null,"Publishing - Newspapers"]
[null,"Publishing - Periodicals"]
[null,"Railroads"]
[null,"Real Estate Development"]
[null,"Recreational Goods, Other"]
[null,"Recreational Vehicles"]
[null,"Regional - Mid-Atlantic Banks"]
[null,"Regional - Midwest Banks"]
[null,"Regional - Northeast Banks"]
[null,"Regional - Pacific Banks"]
[null,"Regional - Southeast Banks"]
[null,"Regional - Southwest Banks"]
[null,"Regional Airlines"]
[null,"REIT - Diversified"]
[null,"REIT - Healthcare Facilities"]
[null,"REIT - Hotel/Motel"]
[null,"REIT - Industrial"]
[null,"REIT - Office"]
[null,"REIT - Residential"]
[null,"REIT - Retail"]
[null,"Rental & Leasing Services"]
[null,"Research Services"]
[null,"Residential Construction"]
[null,"Resorts & Casinos"]
[null,"Restaurants"]
[null,"Rubber & Plastics"]
[null,"Savings & Loans"]
[null,"Scientific & Technical Instruments"]
[null,"Security & Protection Services"]
[null,"Security Software & Services"]
[null,"Semiconductor - Broad Line"]
[null,"Semiconductor - Integrated Circuits"]
[null,"Semiconductor - Specialized"]
[null,"Semiconductor Equipment & Materials"]
[null,"Semicondutor - Memory Chips"]
[null,"Shipping"]
[null,"Silve"]
[null,"Small Tools & Accessories"]
[null,"Specialized Health Services"]
[null,"Specialty Chemicals"]
[null,"Specialty Eateries"]
[null,"Specialty Retail, Other"]
[null,"Sporting Activities"]
[null,"Sporting Goods"]
[null,"Sporting Goods Stores"]
[null,"Staffing & Outsourcing Services"]
[null,"Steel & Iron"]
[null,"Surety & Title Insurance"]
[null,"Synthetics"]
[null,"Technical & System Software"]
[null,"Technical Services"]
[null,"Telecom Services - Domestic"]
[null,"Telecom Services - Foreign"]
[null,"Textile - Apparel Clothing"]
[null,"Textile - Apparel Footwear & Accessories"]
[null,"Textile Industrial"]
[null,"Tobacco Products, Other"]
[null,"Toy & Hobby Stores"]
[null,"Toys & Games"]
[null,"Trucking"]
[null,"Trucks & Other Vehicles"]
[null,"Waste Management"]
[null,"Water Utilities"]
[null,"Wholesale, Other"]
[null,"Wireless Communications"]
[]
["Stock Exchange","AMEX"]
[null,"BATS"]
[null,"BATS Y"]
[null,"C2"]
[null,"CBOE"]
[null,"CBOE F"]
[null,"CME"]
[null,"CHX"]
[null,"DJIA"]
[null,"EDGA"]
[null,"EDGX"]
[null,"ISE"]
[null,"NASDAQ"]
[null,"NASDAQ OMX PHLX"]
[null,"NASDAQ OMX BX"]
[null,"NSX"]
[null,"NYSE"]
[null,"OC"]
[]
["Market Cap > $300M?","YES"]
[null,"NO"]
[]
["Historical Price Chart","1d"]
[null,"5d"]
[null,"1m"]
[null,"3m"]
[null,"6m"]
[null,"1y"]
[null,"2y"]
[null,"5y"]
[null,"max"]
[null,"custom"]
[]
["Key Fundamentals","YES - COMPLETE"]
[null,"NO - INCOMPLETE"]
[null,"NO - MISSING"]
[]
["Direct Competitors Comparison","YES - COMPLETE"]
[null,"NO - INCOMPLETE"]
[null,"NO - MISSING"]
[]
["Market Capitalization","Small Cap"]
[null,"Mid Cap"]
[null,"Large Cap"]

{"sheet":"Major US Stock Indices Data","index":12,"n_rows":69,"n_cols":5,"rows_kept":69,"cut":false,"hidden":false,"merged":[]}
["Ticker","Volume","Price","Price Delta"]
["DJIA",15294.5,-12.67,-8.0000000000000004E-4]
["S&P 500",1650.51,-4.84,-2.8999999999999998E-3]
["Nasdaq",3459.42,-3.88,-1.1000000000000001E-3]
[]
["Ticker","Volume","Price","Price Delta"]
["STOXX 50",2776.78,-58.23,-2.0500000000000001E-2]
["FTSE 100",6696.79,-143.47999999999999,-2.1000000000000001E-2]
["DAX ",8351.98,-178.91,-2.1000000000000001E-2]
[]
["Ticker","Volume","Price","Price Delta"]
["Nikkei",14484,-1143.28,-7.3200000000000001E-2]
["Hang Seng",22669.7,-591.4,-2.5399999999999999E-2]
["S&P/ASX 200 ",5062.45,-102.92,-1.9900000000000001E-2]
[]
["Index Name","Value","Change","% Change","Time"]
["Dow Jones Industrial Average",15294.5,-12.67,-8.0000000000000004E-4,"16:53:57"]
["Dow Jones Transportation Average",6429.79,13.53,2.0999999999999999E-3,"16:53:57"]
["Dow Jones Utilities Average",504.51,-2.95,-5.7999999999999996E-3,"16:53:57"]
["S&P 500 Index",1650.51,-4.84,-2.8999999999999998E-3,"16:19:56"]
["New York Stock Exchange Composite Index",9466.2900000000009,-41.76,-4.4000000000000003E-3,"16:44:33"]
["NASDAQ Composite Index",3459.42,-3.88,-1.1000000000000001E-3,"16:59:23"]
["Russell 1000 Index",915.08,-2.57,-2.8E-3,"17:00:49"]
["Russell 2000 Index",984.28,2.02,2.0999999999999999E-3,"17:00:37"]
["Russell 3000 Index",980.52,-2.39,-2.3999999999999998E-3,"17:00:47"]
["KBW Bank Index",60.68,-0.24,-3.8999999999999998E-3,"16:58:03"]
[]
["Index Name","Value","Change","% Change","Time"]
["Buenos Aires Stock Exchange Merval Index",3557.55,9.81,2.8E-3,"16:00:49"]
["Merval Argentina Index",2469.87,5.29,2.0999999999999999E-3,"16:00:49"]
[]
["Index Name","Value","Change","% Change","Time"]
["Bermuda Stock Exchange Index",1154.56,-22.73,-1.9300000000000001E-2,"05:59:26"]
[]
["Index Name","Value","Change","% Change","Time"]
["Ibovespa Brasil Sao Paulo Stock Exchange Index",56349.91,-79.36,-1.4E-3,"16:48:30"]
["Sao Paulo Stock Exchange IBrX Index",22035.58,-145.38,-6.6E-3,"16:45:00"]
[]
["Index Name","Value","Change","% Change","Time"]
["S&P/TSX Composite Index",12658.09,-94.41,-7.4000000000000003E-3,"16:20:00"]
["S&P/TSX 60 Index",726.23,-6.28,-8.6E-3,"16:20:00"]
[]
["Index Name","Value","Change","% Change","Time"]
["Santiago Stock Exchange IPSA Index",4237.04,-33.08,-7.7000000000000002E-3,"16:18:31"]
["Santiago Stock Exchange IGPA Index",20848.72,-129.81,-6.1999999999999998E-3,"16:18:31"]
[]
["Index Name","Value","Change","% Change","Time"]
["Colombia COL20 Index",1262.3,6.27,5.0000000000000001E-3,"15:59:20"]
["Indice General de la Bolsa de Valores de Colombia",13405.94,76.3,5.7000000000000002E-3,"15:59:20"]
[]
["Index Name","Value","Change","% Change","Time"]
["BCT Corp Costa Rica Stock Market Index",19976.330000000002,0,0,"2013-05-22"]
[]
["Index Name","Value","Change","% Change","Time"]
["Jamaica Stock Exchange Market Index",86275.28,582.03,6.7999999999999996E-3,"2013-05-22"]
[]
["Index Name","Value","Change","% Change","Time"]
["Mexican Stock Exchange Mexican Bolsa IPC Index",40505.269999999997,386.25,9.5999999999999992E-3,"16:06:35"]
["Mexican Stock Exchange INMEX Index",2343.1799999999998,27.01,1.17E-2,"16:06:35"]
[]
["Index Name","Value","Change","% Change","Time"]
["Bolsa de Valores de Panama General Index",476.44,-0.32,-6.9999999999999999E-4,"16:19:39"]
[]
["Index Name","Value","Change","% Change","Time"]
["Bolsa de Valores de Lima General Sector Index",16610.8,-125.48,-7.4999999999999997E-3,"16:10:09"]
["Bolsa de Valores de Lima Selective Sector Index",25574.7,-226.08,-8.8000000000000005E-3,"16:10:09"]
[]
["Index Name","Value","Change","% Change","Time"]
["Caracas Stock Exchange Stock Market Index",785367,5965.44,7.7000000000000002E-3,"13:30:35"]

{"sheet":"Stock - MSN Money Quote","index":13,"n_rows":18,"n_cols":16,"rows_kept":18,"cut":false,"hidden":false,"merged":[[8,0,8,15],[9,0,9,15],[0,0,0,15],[1,0,1,15],[5,2,5,4],[5,6,5,8],[6,2,6,4],[6,6,6,8],[15,0,15,15],[16,0,16,15],[17,0,17,15],[18,0,18,15],[10,0,10,15],[11,0,11,15],[12,0,12,15],[13,0,13,15],[14,0,14,15]]}
["Stock Quotes Provided by MSN Money"]
["Click here to visit MSN Money"]
[null,null,null,"Last","Previous Close","High","Low","Volume","Change","% Change","52 Wk High","52 Wk Low","Market Cap","EPS","P/E Ratio","# Shares Out"]
["Google Inc ","Chart","News",882.79,889.42,889.96,874,2273578,-6.63,-7.4999999999999997E-3,920.6,556.52,292879788129,33.5,27,331766100]
[]
["Symbol Lookup",null,"MSN Money Home",null,null,null,"Microsoft Office Tools on the Web"]
["Find stocks, mutual funds, options, indices, and currencies.",null,"Discover MSN Money's tools, columns, and more!",null,null,null,"Get the latest from Microsoft Office"]
[]
["Terms of Use. © 2013 Microsoft Corporation and/or its suppliers. All rights reserved."]
["DATA PROVIDERS"]
[]
["Copyright © 2013 Microsoft. All rights reserved."]
[]
["Quotes are real-time for NASDAQ, NYSE and AMEX. See delay times for other exchanges."]
[]
["Fundamental company data and historical chart data provided by Thomson Reuters (click for restrictions). Real-time quotes provided by BATS Exchange. Real-time index quotes and delayed quotes supplied by Interactive Data Real-Time Services. Fund summary, fund performance and dividend data provided by Morningstar Inc. Analyst recommendations provided by Zacks Investment Research. StockScouter data provided by Verus Analytics. IPO data provided by Hoover's Inc. Index membership data provided by SIX Telekurs."]
[]
["Japanese stock price data provided by Nomura Research Institute Ltd.; quotes delayed 20 minutes. Canadian fund data provided by CANNEX Financial Exchanges Ltd."]

{"sheet":"Stock - Price Chart","index":14,"n_rows":19,"n_cols":7,"rows_kept":19,"cut":false,"hidden":false,"merged":[[18,6,18,11],[0,6,0,11],[17,6,17,11]]}
["**Retrieve company's historical price chart using appropriate Yahoo Finance link, and paste chart in the box to the right (see column G) to fit to size. Then, place correctly sized chart in the indicated location on the \"SPUSIF White Page Final\" sheet.**",null,null,null,null,null,"PRICE CHART SIZING TOOL"]
[]
[null,"Copy + paste link into browser, replace [\"TICKER\"] with appropriate letters"]
["YAHOO 5y HISTORICAL PRICE CHART LINK:","http://finance.yahoo.com/q/bc?s=[\"TICKER\"]&t=5y&l=on&z=l&q=l&c=","**Default**","Example (VZ):","http://finance.yahoo.com/q/bc?s=VZ&t=5y&l=on&z=l&q=l&c="]
[]
[]
["YAHOO 2y HISTORICAL PRICE CHART LINK:","http://finance.yahoo.com/q/bc?s=[\"TICKER\"]&t=2y&l=on&z=l&q=l&c=","**Jusify Choice on White Page Builder**","Example (VZ):","http://finance.yahoo.com/q/bc?s=VZ&t=2y&l=on&z=l&q=l&c="]
["YAHOO 1y HISTORICAL PRICE CHART LINK:","http://finance.yahoo.com/q/bc?s=[\"TICKER\"]&t=1y&l=on&z=l&q=l&c=","**Jusify Choice on White Page Builder**","Example (VZ):","http://finance.yahoo.com/q/bc?s=VZ&t=1y&l=on&z=l&q=l&c="]
["YAHOO 6m HISTORICAL PRICE CHART LINK:","http://finance.yahoo.com/q/bc?s=[\"TICKER\"]&t=6m&l=on&z=l&q=l&c=","**Jusify Choice on White Page Builder**","Example (VZ):","http://finance.yahoo.com/q/bc?s=VZ&t=6m&l=on&z=l&q=l&c="]
["YAHOO 3m HISTORICAL PRICE CHART LINK:","http://finance.yahoo.com/q/bc?s=[\"TICKER\"]&t=3m&l=on&z=l&q=l&c=","**Jusify Choice on White Page Builder**","Example (VZ):","http://finance.yahoo.com/q/bc?s=VZ&t=3m&l=on&z=l&q=l&c="]
["YAHOO 1m HISTORICAL PRICE CHART LINK:","http://finance.yahoo.com/q/bc?s=[\"TICKER\"]&t=1m&l=on&z=l&q=l&c=","**Jusify Choice on White Page Builder**","Example (VZ):","http://finance.yahoo.com/q/bc?s=VZ&t=1m&l=on&z=l&q=l&c="]
["YAHOO 5d HISTORICAL PRICE CHART LINK:","http://finance.yahoo.com/q/bc?s=[\"TICKER\"]&t=5d&l=on&z=l&q=l&c=","**Jusify Choice on White Page Builder**","Example (VZ):","http://finance.yahoo.com/q/bc?s=VZ&t=5d&l=on&z=l&q=l&c="]
["YAHOO 1d HISTORICAL PRICE CHART LINK:","http://finance.yahoo.com/q/bc?s=[\"TICKER\"]&t=1d&l=on&z=l&q=l&c=","**Jusify Choice on White Page Builder**","Example (VZ):","http://finance.yahoo.com/q/bc?s=VZ&t=1d&l=on&z=l&q=l&c="]
["YAHOO max HISTORICAL PRICE CHART LINK:","http://finance.yahoo.com/q/bc?s=[\"TICKER\"]&t=my&l=on&z=l&q=l&c=","**Jusify Choice on White Page Builder**","Example (VZ):","http://finance.yahoo.com/q/bc?s=VZ&t=my&l=on&z=l&q=l&c="]
[]
[]
[]
[null,null,null,null,null,null,{"$f":"IF('White Page Builder'!B11=\"5y\",\"Retrieve Company's 5y Price Chart Using Link 1\",IF('White Page Builder'!B11=\"2y\",\"Retrieve Company's 2y Price Chart Using Link 2\",IF('White Page Builder'!B11=\"1y\",\"Retrieve Company's 1y Price Chart Using Link 3\",IF('White Page Builder'!B11=\"6m\",\"Retrieve Company's 6m Price Chart Using Link 4\",IF('White Page Builder'!B11=\"3m\",\"Retrieve Company's 3m Price Chart Using Link 5\",IF('White Page Builder'!B11=\"1m\",\"Retrieve Company's 1m Price Chart Using Link 6\",IF('White Page Builder'!B11=\"5d\",\"Retrieve Company's 5d Price Chart Using Link 7\",IF('White Page Builder'!B11=\"1d\",\"Retrieve Company's 1d Price Chart Using Link 8\",IF('White Page Builder'!B11=\"max\",\"Retrieve Company's max Price Chart Using Link 9\",IF('White Page Builder'!B11=\"custom\",\"Retrieve Custom Price Chart for Company\",\"**Price Chart Msg**\"))))))))))","v":"**Price Chart Msg**"}]
[null,null,null,null,null,null,{"$f":"IF(G18=\"**Price Chart Msg**\",\"N/A\",\"Paste Price Chart in SPUSIF White Page Final Indicated Area\")","v":"N/A"}]

{"sheet":"Stock - Key Metrics","index":15,"n_rows":118,"n_cols":8,"rows_kept":118,"cut":false,"hidden":false,"merged":[[18,4,18,5],[29,4,29,5],[40,4,40,6],[41,4,41,6],[42,4,42,6],[36,17,36,21],[37,17,38,17],[37,18,38,18],[39,11,39,15],[40,11,41,11],[40,12,41,12],[42,11,42,15],[24,17,24,21],[33,17,33,21],[34,17,35,17],[34,18,35,18],[25,18,26,18],[27,17,27,21],[28,17,29,17],[28,18,29,18],[30,17,30,21],[31,17,32,17],[31,18,32,18],[25,17,26,17],[13,11,14,11],[13,12,14,12],[16,11,17,11],[16,12,17,12],[18,11,18,15],[19,11,20,11],[19,12,20,12],[15,11,15,15],[31,11,32,11],[31,12,32,12],[30,11,30,15],[43,11,44,11],[45,11,45,15],[22,11,23,11],[51,0,51,1],[19,17,20,17],[19,18,20,18],[140,11,141,11],[140,12,141,12],[142,11,142,15],[33,11,33,15],[34,11,35,11],[34,12,35,12],[36,11,36,15],[37,11,38,11],[37,12,38,12],[21,11,21,15],[39,17,39,21],[40,17,41,17],[40,18,41,18],[43,17,44,17],[43,18,44,18],[21,17,21,21],[22,17,23,17],[22,18,23,18],[8,0,8,1],[65,0,65,1],[66,0,66,1],[9,3,51,3],[50,4,50,6],[51,4,51,6],[52,0,52,1],[109,0,109,1],[62,0,62,1],[50,0,50,1],[58,0,58,1],[59,0,59,1],[60,0,60,1],[61,0,61,1],[9,0,9,2],[27,0,27,1],[54,0,54,1],[55,0,55,1],[56,0,56,1],[57,0,57,1],[53,0,53,1],[39,0,39,1],[46,0,46,1],[10,0,10,1],[20,0,20,1],[110,0,110,1],[111,0,111,1],[116,0,116,2],[117,0,117,2],[99,0,99,2],[101,0,101,1],[102,0,102,1],[103,0,103,1],[104,0,104,1],[105,0,105,1],[106,0,106,1],[107,0,107,1],[108,0,108,1],[112,0,112,1],[113,0,113,1],[114,0,114,1],[21,0,21,1],[24,0,24,1],[63,0,63,1],[64,0,64,1],[30,0,30,1],[46,12,47,12],[63,11,63,15],[64,11,65,11],[64,12,65,12],[48,11,48,15],[49,11,50,11],[49,12,50,12],[51,11,51,15],[52,11,53,11],[52,12,53,12],[54,11,54,15],[55,11,56,11],[55,12,56,12],[57,11,57,15],[58,11,59,11],[58,12,59,12],[60,11,60,15],[61,11,62,11],[61,12,62,12],[46,11,47,11],[66,11,66,15],[67,11,68,11],[67,12,68,12],[69,11,69,15],[70,11,71,11],[70,12,71,12],[72,11,72,15],[73,11,74,11],[73,12,74,12],[75,11,75,15],[76,11,77,11],[76,12,77,12],[78,11,78,15],[79,11,80,11],[79,12,80,12],[81,11,81,15],[82,11,83,11],[82,12,83,12],[84,11,84,15],[85,11,86,11],[85,12,86,12],[87,11,87,15],[88,11,89,11],[88,12,89,12],[90,11,90,15],[91,11,92,11],[91,12,92,12],[93,11,93,15],[94,11,95,11],[94,12,95,12],[96,11,96,15],[97,11,98,11],[97,12,98,12],[99,11,99,15],[100,11,101,11],[100,12,101,12],[124,11,124,15],[102,11,102,15],[103,11,104,11],[103,12,104,12],[105,11,105,15],[110,11,111,11],[110,12,111,12],[107,11,107,15],[109,11,109,15],[115,11,115,15],[116,11,117,11],[116,12,117,12],[118,11,118,15],[119,11,120,11],[119,12,120,12],[121,11,121,15],[122,11,123,11],[122,12,123,12],[112,11,112,15],[113,11,114,11],[113,12,114,12],[134,11,135,11],[134,12,135,12],[136,11,136,15],[137,11,138,11],[137,12,138,12],[139,11,139,15],[125,11,126,11],[125,12,126,12],[127,11,127,15],[128,11,129,11],[128,12,129,12],[130,11,130,15],[131,11,132,11],[131,12,132,12],[133,11,133,15],[66,17,66,21],[67,17,67,21],[68,17,68,21],[42,17,42,21],[45,17,45,21],[48,17,48,21],[53,17,53,21],[51,17,51,21],[54,17,54,21],[61,17,61,21],[62,17,62,21],[63,17,63,21],[64,17,64,21],[55,17,55,21],[56,17,56,21],[57,17,57,21],[58,17,58,21],[59,17,59,21],[60,17,60,21],[65,17,65,21],[81,17,81,21],[82,17,82,21],[83,17,83,21],[69,17,69,21],[70,17,70,21],[71,17,71,21],[72,17,72,21],[73,17,73,21],[74,17,74,21],[9,4,9,5],[10,4,10,5],[43,4,43,6],[44,4,44,6],[45,4,45,6],[13,17,14,17],[13,18,14,18],[15,17,15,21],[16,17,17,17],[16,18,17,18],[18,17,18,21],[10,11,11,11],[10,12,11,12],[12,11,12,15],[10,17,10,21],[12,17,12,21],[22,12,23,12],[24,11,24,15],[25,11,26,11],[25,12,26,12],[27,11,27,15],[28,11,29,11],[28,12,29,12],[43,12,44,12],[141,17,141,21],[130,17,130,21],[131,17,131,21],[126,17,126,21],[127,17,127,21],[128,17,128,21],[142,17,142,21],[143,17,143,21],[49,0,49,1],[49,17,50,17],[135,17,135,21],[136,17,136,21],[49,4,49,6],[114,17,114,21],[108,17,108,21],[109,17,109,21],[103,17,103,21],[104,17,104,21],[110,17,110,21],[111,17,111,21],[49,18,50,18],[132,17,132,21],[133,17,133,21],[134,17,134,21],[137,17,137,21],[138,17,138,21],[139,17,139,21],[140,17,140,21],[129,17,129,21],[125,17,125,21],[117,17,117,21],[118,17,118,21],[119,17,119,21],[120,17,120,21],[121,17,121,21],[112,17,112,21],[96,17,96,21],[97,17,97,21],[122,17,122,21],[123,17,123,21],[124,17,124,21],[115,17,115,21],[116,17,116,21],[98,17,98,21],[99,17,99,21],[100,17,100,21],[101,17,101,21],[102,17,102,21],[113,17,113,21],[106,17,106,21],[107,17,107,21],[46,4,46,6],[47,4,47,6],[46,17,47,17],[48,4,48,6],[46,18,47,18],[84,17,84,21],[85,17,85,21],[86,17,86,21],[105,17,105,21],[87,17,87,21],[88,17,88,21],[89,17,89,21],[90,17,90,21],[91,17,91,21],[92,17,92,21],[93,17,93,21],[94,17,94,21],[95,17,95,21],[75,17,75,21],[76,17,76,21],[77,17,77,21],[78,17,78,21],[79,17,79,21],[80,17,80,21]]}
["Search","Search Web"]
[]
[]
[]
[]
[]
["AdvertisementAdvertisement"]
[]
["Key Statistics",null,"Get Key Statistics for: ",null,null,null,null,"**Scroll down to A100 for Key Metrics Table**"]
["Data provided by Capital IQ, except where noted.",null,null,null,"Trading Information"]
["Valuation Measures",null,null,null,"Stock Price History"]
["Market Cap (intraday)5:","292.88B",null,null,"Beta:",1.1599999999999999]
["Enterprise Value (May 23, 2013)3:","258.91B",null,null,"52-Week Change3:",0.47339999999999999]
["Trailing P/E (ttm, intraday):",26.41,null,null,"S&P500 52-Week Change3:",0.25509999999999999]
["Forward P/E (fye Dec 31, 2014)1:",16.61,null,null,"52-Week High (May 20, 2013)3:",920.6]
["PEG Ratio (5 yr expected)1:",1.32,null,null,"52-Week Low (Jun 14, 2012)3:",556.52]
["Price/Sales (ttm):",5.52,null,null,"50-Day Moving Average3:",831.81]
["Price/Book (mrq):",3.9,null,null,"200-Day Moving Average3:",766.66]
["Enterprise Value/Revenue (ttm)3:",4.84,null,null,"Share Statistics"]
["Enterprise Value/EBITDA (ttm)6:",15.4,null,null,"Avg Vol (3 month)3:",2280380]
["Financial Highlights",null,null,null,"Avg Vol (10 day)3:",2478950]
["Fiscal Year",null,null,null,"Shares Outstanding5:","331.77M"]
["Fiscal Year Ends:","2013-12-30",null,null,"Float:","270.81M"]
["Most Recent Quarter (mrq):","2013-03-31",null,null,"% Held by Insiders1:",3.3E-3]
["Profitability",null,null,null,"% Held by Institutions1:",0.85599999999999998]
["Profit Margin (ttm):",0.2092,null,null,"Shares Short (as of Apr 30, 2013)3:","4.12M"]
["Operating Margin (ttm):",0.253,null,null,"Short Ratio (as of Apr 30, 2013)3:",1.7]
["Management Effectiveness",null,null,null,"Short % of Float (as of Apr 30, 2013)3:",1.4999999999999999E-2]
["Return on Assets (ttm):",9.7299999999999998E-2,null,null,"Shares Short (prior month)3:","3.56M"]
["Return on Equity (ttm):",0.1636,null,null,"Dividends & Splits"]
["Income Statement",null,null,null,"Forward Annual Dividend Rate4:","N/A"]
["Revenue (ttm):","53.50B",null,null,"Forward Annual Dividend Yield4:","N/A"]
["Revenue Per Share (ttm):",162.86000000000001,null,null,"Trailing Annual Dividend Yield3:","N/A"]
["Qtrly Revenue Growth (yoy):",0.312,null,null,"Trailing Annual Dividend Yield3:","N/A"]
["Gross Profit (ttm):","29.54B",null,null,"5 Year Average Dividend Yield4:","N/A"]
["EBITDA (ttm)6:","16.81B",null,null,"Payout Ratio4:","N/A"]
["Net Income Avl to Common (ttm):","11.22B",null,null,"Dividend Date3:","N/A"]
["Diluted EPS (ttm):",33.42,null,null,"Ex-Dividend Date4:","N/A"]
["Qtrly Earnings Growth (yoy):",0.158,null,null,"Last Split Factor (new per old)2:","N/A"]
["Balance Sheet",null,null,null,"Last Split Date3:","N/A"]
["Total Cash (mrq):","50.10B"]
["Total Cash Per Share (mrq):",151]
["Total Debt (mrq):","7.38B"]
["Total Debt/Equity (mrq):",9.77]
["Current Ratio (mrq):",4.74]
["Book Value Per Share (mrq):",228.01]
["Cash Flow Statement"]
["Operating Cash Flow (ttm):","16.56B"]
["Levered Free Cash Flow (ttm):","10.99B"]
[]
["View Financials"]
["Income Statement - Balance Sheet - Cash Flow"]
["See Key Statistics Help for definitions of terms used."]
["Abbreviation Guide: K = Thousands; M = Millions; B = Billions"]
["mrq = Most Recent Quarter (as of Mar 31, 2013) "]
["ttm = Trailing Twelve Months (as of Mar 31, 2013) "]
["yoy = Year Over Year (as of Mar 31, 2013) "]
["lfy = Last Fiscal Year (as of Dec 31, 2012) "]
["fye = Fiscal Year Ending"]
["1 Data provided by Thomson Reuters"]
["2 Data provided by EDGAR Online"]
["3 Data derived from multiple sources or calculated by Yahoo! Finance"]
["4 Data provided by Morningstar, Inc."]
["5 Shares outstanding is taken from the most recently filed quarterly or annual report and Market Cap is calculated using shares outstanding."]
["6 EBITDA is calculated by Capital IQ using methodology that may differ from that used by a company in its reporting"]
[]
["Currency in USD."]
[]
["Copyright © 2013 Yahoo! Inc. All rights reserved. Privacy Policy - About Our Ads - Terms of Service - Copyright/IP Policy - Send Feedback - Yahoo! - ABC News Network"]
["Quotes are real-time for NASDAQ, NYSE, and NYSE MKT. See also delay times for other exchanges. All information provided \"as is\" for informational purposes only, not intended for trading purposes or advice. Neither Yahoo! nor any of independent providers is liable for any informational errors, incompleteness, or delays, or for any actions taken in reliance on information contained herein. By accessing the Yahoo! site, you agree not to redistribute the information found therein. Real-Time continuous streaming quotes are available through our premium service. You may turn streaming quotes on or off."]
[]
["Fundamental company data provided by Capital IQ. Historical chart data and daily updates provided by Commodity Systems, Inc. (CSI). International historical chart data, daily updates, fund summary, fund performance, dividend data and Morningstar Index data provided by Morningstar, Inc. US Financials data provided by Edgar Online and all other Financials provided by Capital IQ. International historical chart data, daily updates, fundAnalyst estimates data provided by Thomson Financial Network. All data povided by Thomson Financial Network is based solely upon research information provided by third party analysts. Yahoo! has not reviewed, and in no way endorses the validity of such data. Yahoo! and ThomsonFN shall not be liable for any actions taken in reliance thereon."]
[]
[]
[]
[]
[]
[]
[]
[]
[]
[]
[]
[]
[]
[]
[]
[]
[]
[]
[]
[]
[]
[]
[]
[]
[]
[]
[]
["KEY METRICS TABLE (Cells A102:C112)"]
[]
["Market Cap",null,{"$f":"VLOOKUP(\"Market Cap\",'Stock - FinViz Profile'!A1:M31,3,FALSE)","v":"292.88B"}]
["P/E",null,{"$f":"VLOOKUP(\"P/E\",'Stock - FinViz Profile'!D1:M31,2,FALSE)","v":26.28}]
["PEG",null,{"$f":"VLOOKUP(\"PEG\",'Stock - FinViz Profile'!D1:M31,2,FALSE)","v":1.69}]
["P/B",null,{"$f":"VLOOKUP(\"P/B\",'Stock - FinViz Profile'!D1:M31,2,FALSE)","v":3.87}]
["Dividend Yield",null,{"$f":"VLOOKUP(\"Dividend %\",'Stock - FinViz Profile'!A1:M31,3,FALSE)","v":"-"}]
["Payout Ratio",null,{"$f":"VLOOKUP(\"Payout\",'Stock - FinViz Profile'!H1:M30,2,FALSE)","v":0}]
["EPS (ttm)",null,{"$f":"VLOOKUP(\"EPS (ttm)\",'Stock - FinViz Profile'!F1:M31,2,FALSE)","v":33.590000000000003}]
["Return on Assets",null,{"$f":"VLOOKUP(\"ROA\",'Stock - FinViz Profile'!H1:M32,2,FALSE)","v":0.12909999999999999}]
["Return on Equity",null,{"$f":"VLOOKUP(\"ROE\",'Stock - FinViz Profile'!H1:M31,2,FALSE)","v":0.1636}]
["Return on Investment",null,{"$f":"VLOOKUP(\"ROI\",'Stock - FinViz Profile'!H1:M31,2,FALSE)","v":0.14879999999999999}]
["Beta",null,{"$f":"VLOOKUP(\"Beta\",'Stock - FinViz Profile'!L1:M31,2,FALSE)","v":0.95}]
["Operating Margin",null,{"$f":"VLOOKUP(\"Oper. Margin\",'Stock - FinViz Profile'!H1:M31,2,FALSE)","v":0.2402}]
["Profit Margin",null,{"$f":"VLOOKUP(\"Profit Margin\",'Stock - FinViz Profile'!H1:M32,2,FALSE)","v":0.20979999999999999}]
["Current Ratio",null,{"$f":"VLOOKUP(\"Current Ratio\",'Stock - FinViz Profile'!D1:M31,2,FALSE)","v":4.74}]
[]
[{"$f":"IF('White Page Builder'!B16=\"YES - COMPLETE\",\"Refresh Key Metrics Web Query to Finalize Key Metrics Table\",\"Need More Key Metrics Data Before Proceeding with White Page\")","v":"Need More Key Metrics Data Before Proceeding with White Page"}]
[{"$f":"IF(A117=\"Need More Key Metrics Data Before Proceeding with White Page\",\"N/A\",\"Verify Info in SPUSIF White Page Final Key Metrics Area\")","v":"N/A"}]

{"sheet":"Stock - Competitors Data","index":16,"n_rows":109,"n_cols":9,"rows_kept":109,"cut":false,"hidden":false,"merged":[[71,0,71,6],[72,0,72,6],[74,0,74,6],[77,0,77,6],[78,0,78,6],[79,0,79,6],[60,0,60,6],[61,0,61,6],[62,0,62,6],[63,0,63,6],[64,0,64,6],[65,0,65,6],[67,0,67,6],[68,0,68,6],[73,0,73,6],[75,0,75,6],[76,0,76,6],[66,0,66,6],[69,0,69,6],[70,0,70,6],[43,0,43,5],[59,0,59,6],[44,0,44,5],[45,0,45,6],[46,0,46,6],[47,0,47,6],[48,0,48,6],[49,0,49,6],[50,0,50,6],[51,0,51,6],[52,0,52,6],[53,0,53,6],[39,1,39,5],[40,0,40,5],[41,0,41,5],[42,0,42,6],[8,0,8,5],[9,0,9,5],[23,0,23,5],[24,0,24,5],[25,0,25,5],[28,0,28,5],[29,0,29,6],[26,0,26,5],[27,0,27,5],[33,1,33,5],[35,1,35,5],[37,1,37,5],[80,0,80,6],[81,0,81,6],[82,0,82,6],[83,0,83,6],[84,0,84,6],[91,0,91,6],[92,0,92,6],[93,0,93,6],[94,0,94,6],[85,0,85,6],[86,0,86,6],[87,0,87,6],[88,0,88,6],[89,0,89,6],[9,7,103,7],[54,0,54,6],[55,0,55,6],[56,0,56,6],[57,0,57,6],[58,0,58,6],[102,0,102,6],[103,0,103,6],[100,0,100,6],[101,0,101,6],[95,0,95,6],[96,0,96,6],[97,0,97,6],[98,0,98,6],[99,0,99,6],[90,0,90,6]]}
["Search","Search Web"]
[]
[]
[]
[]
[]
[null,"AdvertisementAdvertisement"]
[]
["Competitors",null,null,null,null,null,"Get Competitors for: "]
["Direct Competitor Comparison",null,null,null,null,null,null,null,"AdChoices"]
[null,"GOOG","FB","PVT1","YHOO","Industry",null,null,"Click Here"]
["Market Cap:","292.88B","60.59B","N/A","28.17B","2.07B"]
["Employees:",53891,4900,"N/A",11700,"20.88K"]
["Qtrly Rev Growth (yoy):",0.31,0.38,"N/A",-7.0000000000000007E-2,1.71]
["Revenue (ttm):","53.50B","5.49B","N/A","4.91B","420.42M"]
["Gross Margin (ttm):",0.57999999999999996,0.73,"N/A",0.68,0.72]
["EBITDA (ttm):","16.81B","1.31B","N/A","1.33B","32.31M"]
["Operating Margin (ttm):",0.25,0.1,"N/A",0.16,0.19]
["Net Income (ttm):","11.22B","112.00M","N/A","4.05B","N/A"]
["EPS (ttm):",33.42,0.05,"N/A",3.45,0.37]
["P/E (ttm):",26.41,544.78,"N/A",7.55,21.79]
["PEG (5 yr expected):",1.32,1.57,"N/A",1.46,0.68]
["P/S (ttm):",5.52,11.08,"N/A",5.86,4.8099999999999996]
[]
["FB = Facebook, Inc."]
["Pvt1 = MSN (privately held)"]
["YHOO = Yahoo! Inc."]
["Industry = Internet Information Providers"]
[]
[]
["Internet Content Providers Ranked by Sales"]
["Company","Symbol","Price","Change","Market Cap","P/E"]
["Yahoo! Inc.","YHOO",26.02,-0.02,"28.17B",7.55]
["MSN","Private - View Profile"]
["AOL Inc.","AOL",36.54,0.01,"2.83B",3.12]
["Disney Online","Private - View Profile"]
["Move, Inc.","MOVE",10.88,0.01,"433.80M",90.67]
["Match.com, LLC","Private - View Profile"]
["SINA Corporation","SINA",57.31,-0.02,"3.82B",120.91]
["Daum Communications Corp.","Private - View Profile"]
[]
["View Internet Information Providers Industry Center"]
[]
[]
["News on Direct Competitors"]
[]
[]
[]
["YHOO"]
["Draw Something From This: Yahoo's Design Chief Tim Parsey To Depart at AllThingsD Thu 4:43pm"]
[]
[]
[]
["YHOO"]
["Rue21 Board Under Inquiry and 2 More Heavily Traded Stocks to Follow at Wall St. Cheat Sheet Thu 4:13pm"]
[]
[]
[]
["FB"]
["Facebook Faces Delays With Home App and 2 More Heavily Traded Stocks to Follow at Wall St. Cheat Sheet Thu 4:01pm"]
[]
[]
[]
["YHOO"]
["Google Said to Face New Antitrust Probe Over Display Ads at Bloomberg Thu 3:59pm"]
[]
[]
[]
["YHOO"]
["Hearst Taps Demand Media's Bradford and Yucaipa's Johnson \"Redefine\" the San Francisco Chronicle at AllThingsD Thu 3:49pm"]
[]
[]
[]
["FB"]
["European Parliament Moves to Limit Scope of Eventual U.S. Trade Deal at New York Times Thu 3:34pm"]
[]
[]
[]
["YHOO"]
["3 Signs It Will Be Time To Buy This Well-Known Retailer StreetAuthority Network Thu 3:30pm"]
[]
[]
[]
["FB"]
["Khosla Ventures hires Google veteran Ben Ling at Reuters Thu 3:10pm"]
[]
[]
[]
["FB"]
["Kids: Facebook Means Hanging With Mom and Dad Big Data Download Thu 3:04pm"]
[]
[]
[]
["FB"]
["Another Setback for Facebook Home at The Wall Street Journal Thu 2:56pm"]
[]
[]
[]
["FB"]
["ChannelAdvisor soars in debut Reuters Thu 2:30pm"]
[]
["All Headlines for these symbols..."]
[]
["Currency in USD."]
[]
["Copyright © 2013 Yahoo! Inc. All rights reserved. Privacy Policy - About Our Ads - Terms of Service - Copyright/IP Policy - Send Feedback - Yahoo! - ABC News Network"]
["Quotes are real-time for NASDAQ, NYSE, and NYSE MKT. See also delay times for other exchanges. All information provided \"as is\" for informational purposes only, not intended for trading purposes or advice. Neither Yahoo! nor any of independent providers is liable for any informational errors, incompleteness, or delays, or for any actions taken in reliance on information contained herein. By accessing the Yahoo! site, you agree not to redistribute the information found therein. Real-Time continuous streaming quotes are available through our premium service. You may turn streaming quotes on or off."]
[]
["Fundamental company data provided by Capital IQ. Historical chart data and daily updates provided by Commodity Systems, Inc. (CSI). International historical chart data, daily updates, fund summary, fund performance, dividend data and Morningstar Index data provided by Morningstar, Inc. Competitors selected by Hoover's Inc."]

{"sheet":"Stock - Historical Financials","index":17,"n_rows":72,"n_cols":21,"rows_kept":72,"cut":false,"hidden":false,"merged":[[0,1,0,6],[0,8,0,13],[0,15,0,20]]}
["**Values in Millions USD (except for per share items)**","INCOME STATEMENT - ANNUAL DATA - 5 YEARS",null,null,null,null,null,null,"BALANCE SHEET - ANNUAL DATA - 5 YEARS",null,null,null,null,null,null,"STATEMENT OF CASH FLOWS - ANNUAL DATA - 5 YEARS"]
[]
[null," Annual  Interim",null,null,null,null,null,null," Annual  Interim",null,null,null,null,null,null," Annual  Interim"]
[]
[null,null,2012,2011,2010,2009,2008,null,null,2012,2011,2010,2009,2008,null,null,2012,2011,2010,2009,2008]
[null,"Period End Date","2012-12-31","2011-12-31","2010-12-31","2009-12-31","2008-12-31",null,"Period End Date","2012-12-31","2011-12-31","2010-12-31","2009-12-31","2008-12-31",null,"Period End Date","2012-12-31","2011-12-31","2010-12-31","2009-12-31","2008-12-31"]
[null,"Period Length","12 Months","12 Months","12 Months","12 Months","12 Months",null,"Stmt Source","10-K","10-K","10-K","10-K","10-K",null,"Period Length","12 Months","12 Months","12 Months","12 Months","12 Months"]
[null,"Stmt Source","10-K","10-K","10-K","10-K","10-K",null,"Stmt Source Date","2013-01-29","2013-01-29","2011-02-11","2010-02-12","2009-02-13",null,"Stmt Source","10-K","10-K","10-K","10-K","10-K"]
[null,"Stmt Source Date","2013-01-29","2012-01-26","2011-02-11","2010-02-12","2009-02-13",null,"Stmt Update Type","Updated","Reclassified","Updated","Updated","Updated",null,"Stmt Source Date","2013-01-29","2012-01-26","2011-02-11","2010-02-12","2009-02-13"]
[null,"Stmt Update Type","Updated","Updated","Updated","Updated","Updated",null,null,null,null,null,null,null,null,"Stmt Update Type","Updated","Updated","Updated","Updated","Updated"]
[null,null,null,null,null,null,null,null,"Assets"]
[null,"Revenue",50175,37905,29321,23650.560000000001,21795.55,null,"Cash and Short Term Investments",48088,44626,34975,24484.78,15845.77,null,"Net Income/Starting Line",10737,9737,8505,6520.45,4226.8599999999997]
[null,"Other Revenue, Total",0,0,0,0,0,null,"Cash",6712,4712,4652,4302.58,3330.66,null,"Depreciation/Depletion",1988,1396,1067,1240.03,1212.24]
[null,"Total Revenue",50175,37905,29321,23650.560000000001,21795.55,null,"Cash & Equivalents",8066,5271,8978,5895.01,5326.01,null,"Amortization",974,455,329,284.27999999999997,287.64999999999998]
[null,null,null,null,null,null,null,null,"Short Term Investments",33310,34643,21345,14287.19,7189.1,null,"Deferred Taxes",-266,343,9,-268.06,-224.65]
[null,"Cost of Revenue, Total",20505,13188,10417,8844.1200000000008,8621.51,null,"Total Receivables, Net",8585,6172,5002,3201.72,2642.19,null,"Non-Cash Items",2288,2004,1270,1053.52,2023.53]
[null,"Gross Profit",29670,24717,18904,14806.45,13174.04,null,"Accounts Receivable -Trade, Net",7885,5427,4252,3178.47,2642.19,null,"Accounting Change",0,0,0,0,0]
[null,null,null,null,null,null,null,null,"Accounts Receivable - Trade, Gross",8466,5560,4353,3257.36,2722.28,null,"Unusual Items",-188,110,0,0,1094.76]
[null,"Selling/General/Administrative Expenses, Total",9741,7313,4761,3651.24,3748.88,null,"Provision for Doubtful Accounts",-581,-133,-101,-78.88,-80.09,null,"Other Non Cash Items",2476,1894,1270,1053.52,928.77]
[null,"Research & Development",6593,5162,3762,2843.03,2793.19,null,"Receivables - Other",700,745,750,23.24,0,null,"Changes in Working Capital",898,630,-99,485.99,327.23]
[null,"Depreciation/Amortization",0,0,0,0,0,null,"Total Inventory",505,35,0,0,0,null,"Prepaid Expenses",-833,-262,-414,262.04000000000002,-147.13]
[null,"Interest Expense (Income), Net Operating",0,0,0,0,0,null,"Prepaid Expenses",2132,1710,1326,836.06,1404.11,null,"Accrued Expenses",1061,1054,959,400.81,352.91]
[null,"Unusual Expense (Income)",576,610,0,0,1094.76,null,"Other Current Assets, Total",1144,215,259,644.41,286.11,null,"Accounts Receivable",-787,-1156,-1129,-504.04,-334.46]
[null,"Other Operating Expenses, Total",0,0,0,0,0,null,"Total Current Assets",60454,52758,41562,29166.959999999999,20178.18,null,"Inventories",301,0,0,0,0]
[null,"Operating Income",12760,11632,10381,8312.19,5537.21,null,null,null,null,null,null,null,null,"Payable/Accrued",0,0,0,0,0]
[null,null,null,null,null,null,null,null,"Property/Plant/Equipment, Total - Net",11854,9603,7759,4844.6099999999997,5233.84,null,"Taxes Payable",1492,731,102,217.48,626.03]
[null,"Interest Income (Expense), Net Non-Operating",0,0,0,0,0,null,"Goodwill, Net",10537,7346,6256,4902.57,4839.8500000000004,null,"Accounts Payable",-499,101,272,33.64,-211.54]
[null,"Gain (Loss) on Sale of Assets",188,0,0,0,0,null,"Intangibles, Net",7473,1578,1044,774.94,996.69,null,"Other Liabilities",163,162,111,76.069999999999993,41.43]
[null,"Other, Net",58,65,11,2.37,4.5199999999999996,null,"Long Term Investments",1469,790,523,128.97999999999999,85.16,null,"Cash from Operating Activities",16619,14565,11081,9316.2000000000007,7852.86]
[null,"Income Before Tax",13386,12326,10796,8381.19,5853.6,null,"Note Receivable - Long Term",0,0,0,0,0]
[null,null,null,null,null,null,null,null,"Other Long Term Assets, Total",2011,499,707,678.73,433.85,null,"Capital Expenditures",-3273,-3438,-4018,-809.89,-2358.46]
[null,"Income Tax - Total",2598,2589,2291,1860.74,1626.74,null,"Other Assets, Total",0,0,0,0,0,null,"Purchase/Acquisition of Intangibles",0,0,0,0,0]
[null,"Income After Tax",10788,9737,8505,6520.45,4226.8599999999997,null,"Total Assets",93798,72574,57851,40496.78,31767.58,null,"Purchase of Fixed Assets",-3273,-3438,-4018,-809.89,-2358.46]
[null,null,null,null,null,null,null,null,null,null,null,null,null,null,null,"Other Investing Cash Flow Items, Total",-9783,-15603,-6662,-7209.32,-2960.96]
[null,"Minority Interest",0,0,0,0,0,null,"Liabilities and Shareholders' Equity",null,null,null,null,null,null,"Intangibles, Net",0,0,0,0,0]
[null,"Equity In Affiliates",0,0,0,0,0,null,"Accounts Payable",2012,588,483,215.87,178,null,"Acquisition of Business",-10568,-1900,-1067,-108.02,-3320.3]
[null,"U.S. GAAP Adjustment",0,0,0,0,0,null,"Payable/Accrued",0,0,0,0,0,null,"Sale Maturity of Investment",35180,48746,37099,22102.87,15762.8]
[null,"Net Income Before Extra. Items",10788,9737,8505,6520.45,4226.8599999999997,null,"Accrued Expenses",6968,4356,3256,2246.52,1824.45,null,"Investment, Net",45,5,-750,0,0]
[null,null,null,null,null,null,null,null,"Notes Payable/Short Term Debt",2549,1218,3465,0,0,null,"Purchase of Investments",-34106,-62100,-44305,-29204.16,-15403.46]
[null,"Total Extraordinary Items",-51,0,0,0,0,null,"Current Port. of LT Debt/Capital Leases",0,0,0,0,0,null,"Other Investing Cash Flow",-334,-354,2361,0,0]
[null,"Accounting Change",0,0,0,0,0,null,"Other Current Liabilities, Total",2808,2751,2792,285.08,299.63,null,"Cash from Investing Activities",-13056,-19041,-10680,-8019.21,-5319.42]
[null,"Discontinued Operations",-51,0,0,0,0,null,"Total Current Liabilities",14337,8913,9996,2747.47,2302.09]
[null,"Net Income",10737,9737,8505,6520.45,4226.8599999999997,null,null,null,null,null,null,null,null,"Financing Cash Flow Items",188,86,94,90.27,159.09]
[null,null,null,null,null,null,null,null,"Total Long Term Debt",2988,2986,0,0,0,null,"Other Financing CashFlow",188,86,94,90.27,159.09]
[null,"Total Adjustments to Net Income",0,0,0,0,0,null,"Long Term Debt",2988,2986,0,0,0,null,"Total Cash Dividends Paid",0,0,0,0,0]
[null,"Preferred Dividends",0,0,0,0,0,null,"Capital Lease Obligations",0,0,0,0,0,null,"Issuance (Retirement) of Stock, Net",-287,-5,-507,143.13999999999999,-71.52]
[null,"General Partners Distributions",0,0,0,0,0,null,"Deferred Income Tax",1872,287,0,0,12.52,null,"Issuance (Retirement) of Debt, Net",1328,726,3463,0,0]
[null,null,null,null,null,null,null,null,"Minority Interest",0,0,0,0,0,null,"Cash from Financing Activities",1229,807,3050,233.41,87.57]
[null,"Basic Weighted Average Shares",327.20999999999998,322.77999999999997,318.7,316.22000000000003,313.95999999999998,null,"Other Liabilities, Total",2886,2243,1614,1745.09,1214.1099999999999]
[null,"Basic EPS Excluding Extraordinary Items",32.97,30.17,26.69,20.62,13.46,null,"Total Liabilities",22083,14429,11610,4492.55,3528.71,null,"Foreign Exchange Effects",3,22,-19,10.51,-45.92]
[null,"Basic EPS Including Extraordinary Items",32.81,30.17,26.69,20.62,13.46,null,null,null,null,null,null,null,null,"Net Change in Cash",4795,-3647,3432,1540.92,2575.08]
[null,null,null,null,null,null,null,null,"Redeemable Preferred Stock",0,0,0,0,0]
[null,"Diluted Weighted Average Shares",332.31,327.20999999999998,323.25,319.42,317.51,null,"Preferred Stock - Non Redeemable, Net",0,0,0,0,0,null,"Net Cash - Beginning Balance",9983,13630,10198,8656.67,6081.59]
[null,"Diluted EPS Excluding Extrordinary Items",32.46,29.76,26.31,20.41,13.31,null,"Common Stock",22835,20264,18235,0.32,0.32,null,"Net Cash - Ending Balance",14778,9983,13630,10197.59,8656.67]
[null,"Diluted EPS Including Extraordinary Items",32.31,29.76,26.31,20.41,13.31,null,"Additional Paid-In Capital",0,0,0,15816.74,14450.34]
[null,null,null,null,null,null,null,null,"Retained Earnings (Accumulated Deficit)",48342,37605,27868,20082.080000000002,13561.63]
[null,"Dividends per Share - Common Stock Primary Issue",0,0,0,0,0,null,"Treasury Stock - Common",0,0,0,0,0]
[null,"Dividends per Share - Common Stock Issue 2",0,0,0,0,0,null,"ESOP Debt Guarantee",0,0,0,0,0]
[null,"Gross Dividends - Common Stock",0,0,0,0,0,null,"Unrealized Gain (Loss)",604,327,94,0,0]
[null,"Interest Expense, Supplemental",84,58,5,0,0,null,"Other Equity, Total",-66,-51,44,105.09,226.58]
[null,"Depreciation, Supplemental",1988,1396,1067,1240.03,1212.24,null,"Total Equity",71715,58145,46241,36004.22,28238.86]
[]
[null,"Normalized EBITDA",16208,14079,11762,9818.2199999999993,8123.91,null,"Total Liabilities & Shareholders’ Equity",93798,72574,57851,40496.78,31767.58]
[null,"Normalized EBIT",13336,12242,10381,8312.19,6631.97]
[null,"Normalized Income Before Tax",13774,12936,10796,8381.19,6948.35,null,"Total Common Shares Outstanding",329.98,324.89,321.3,317.77,315.11]
[null,"Normalized Income After Taxes",11100.7,10218.870000000001,8505,6520.45,5017.38,null,"Total Preferred Shares Outstanding",0,0,0,0,0]
[null,"Normalized Income Available to Common",11100.7,10218.870000000001,8505,6520.45,5017.38]
[]
[null,"Basic Normalized EPS",33.92,31.66,26.69,20.62,15.98]
[null,"Diluted Normalized EPS",33.409999999999997,31.23,26.31,20.41,15.8]
[null,"Amortization of Acquisition Cost",0,0,0,0,0]
[null,"Amortization of Intangibles",884,441,314,266,279.7]

{"sheet":"Stock - Sector and Industry","index":18,"n_rows":76,"n_cols":10,"rows_kept":76,"cut":false,"hidden":false,"merged":[[8,0,8,5],[8,6,8,7],[9,0,9,5],[12,0,12,5],[13,0,13,5],[60,6,60,7],[26,0,26,8],[57,0,57,5],[14,0,14,5],[14,6,14,7],[20,0,20,8],[21,0,21,8],[15,0,15,5],[15,6,15,7],[16,0,16,5],[16,6,16,7],[19,0,19,8],[41,0,41,5],[22,0,22,8],[23,0,23,8],[24,0,24,8],[43,1,43,2],[56,0,56,5],[25,0,25,8],[27,0,27,8],[29,0,29,5],[37,0,37,11],[39,0,39,5],[61,0,61,5],[9,13,70,13],[40,0,40,7],[69,0,69,11],[70,0,70,11],[9,12,70,12],[62,0,62,5],[63,0,63,5],[67,0,67,5],[68,0,68,7],[17,0,17,11],[28,0,28,11],[53,0,53,11],[54,0,54,11],[55,0,55,11],[42,0,42,5]]}
["Search","Search Web"]
[]
[]
[]
[]
[]
[null,null,null,"AdvertisementAdvertisement"]
[]
["Industry: Internet Information Providers",null,null,null,null,null,"Get Industry for: "]
["GOOG Sector / Industry Membership"]
["Sector:","Technology"]
["Industry:","Internet Information Providers"]
[]
["Intraday Performance Summary"]
["Name",null,null,null,null,null,"Ticker",null,"Change","Chart for Google Inc. (GOOG)"]
["Google Inc.",null,null,null,null,null,"GOOG",null,"Down0.75%"]
["Internet Information Providers",null,null,null,null,null,"^YHOh908",null,"Down0.43%"]
["View Internet Information Providers Industry Center"]
["Internet Information Providers Industry News"]
[]
["Google faces new FTC antitrust probe: reportat MarketWatch (Thu 4:49PM EDT)"]
["Google Said to Face Display-Ad Antitrust Probeat Bloomberg (Thu 4:47PM EDT)"]
["4 Tech Stock Stories For a Thursday Downloadat Wall St. Cheat Sheet (Thu 4:46PM EDT)"]
["Google faces new federal antitrust probe: sourceReuters (Thu 4:45PM EDT)"]
["Google faces new federal antitrust probe - sourceat Reuters (Thu 4:43PM EDT)"]
[]
["More Industry News..."]
[]
[]
["Top Internet Information Providers Companies by Market Cap"]
["Company","Symbol","Price","Change","Market Cap","P/E"]
["Tencent Holdings Ltd.","0700.HK",292.8,"Down3.37%","541.97B",33.74]
["Baidu, Inc.","BIDUN.MX",1177,0,"411.61B",243.38]
["Yahoo! Inc.","YHOO.MX",324.7,"Down1.13%","351.53B",94.23]
["Google Inc.","GOOG",882.79,"Down0.75%","292.88B",26.41]
["Rightmove plc","RMV.L",2031,"Down3.47%","2.03B",3430.74]
["Moneysupermarket.com Group PLC","MONY.L",211.1,"Down0.98%","1.13B",4491.49]
["Showing 1 - 5 of 125 - View All"]
[]
[]
["More Top Companies: by Performance, by Valuation, by Growth, by Growth"]
[]
["GOOG vs. Industry Leaders"]
["Statistic","Industry Leader",null,"GOOG","GOOG Rank"]
["Market Capitalization","0700.HK","541.97B","292.88B","4 / 125"]
["P/E Ratio (ttm)","RMV.L",3430.74,26.41,"31 / 125"]
["PEG Ratio (ttm, 5 yr expected)","SFLY",9.36,1.32,"23 / 125"]
["Revenue Growth (Qtrly YoY)","8071.HK",-0.57499999999999996,0.312,"23 / 125"]
["EPS Growth (Qtrly YoY)","8006.HK","N/A",0.13500000000000001,"30 / 125"]
["Long-Term Growth Rate (5 yr)","LNKD",0.58430000000000004,0.14949999999999999,"37 / 125"]
["Return on Equity (ttm)","RMV.L",3.8891,0.1636,"28 / 125"]
["Long-Term Debt/Equity (mrq)",null,null,9.7729999999999997,"N/A"]
["Dividend Yield (annual)","SFUN",7.6999999999999999E-2,"N/A","N/A"]
[]
["View Leaders & Laggards"]
[]
["More on Internet Information Providers"]
[]
["•","Industry Summary",null,null,null,null,"•","Company List"]
["•","News",null,null,null,null,"•","Industry Calendar"]
["•","Leaders & Laggards"]
[]
["Related Industries"]
[]
["•","Business Software & Services",null,null,null,null,"•","Internet Service Providers"]
["•","Information & Delivery Services",null,null,null,null,"•","Internet Software & Services"]
["•","Information Technology Services",null,null,null,null,"•","Security Software & Services"]
[]
["Top Performing Industries | Complete Industry List"]
[]
["Currency in USD."]
[]
["Copyright © 2013 Yahoo! Inc. All rights reserved. Privacy Policy - About Our Ads - Terms of Service - Copyright/IP Policy - Send Feedback - Yahoo! - ABC News Network"]
["Quotes are real-time for NASDAQ, NYSE, and NYSE MKT. See also delay times for other exchanges. All information provided \"as is\" for informational purposes only, not intended for trading purposes or advice. Neither Yahoo! nor any of independent providers is liable for any informational errors, incompleteness, or delays, or for any actions taken in reliance on information contained herein. By accessing the Yahoo! site, you agree not to redistribute the information found therein. Real-Time continuous streaming quotes are available through our premium service. You may turn streaming quotes on or off."]
[]
["Fundamental company data provided by Capital IQ. Historical chart data and daily updates provided by Commodity Systems, Inc. (CSI). International historical chart data, daily updates, fund summary, fund performance, dividend data and Morningstar Index data provided by Morningstar, Inc."]

{"sheet":"Stock - Yahoo Profile","index":19,"n_rows":185,"n_cols":7,"rows_kept":185,"cut":false,"hidden":false,"merged":[[175,4,175,7],[175,0,175,1],[158,0,158,2],[171,0,171,2],[168,4,168,6],[169,4,169,6],[170,4,170,6],[174,0,174,1],[173,0,173,1],[173,4,173,7],[174,4,174,7],[165,0,165,2],[172,0,172,2],[151,3,176,3],[176,4,176,7],[151,4,151,6],[152,4,152,6],[172,4,172,7],[171,4,171,6],[155,4,155,7],[153,0,153,2],[150,0,150,1],[160,0,161,0],[166,0,166,1],[176,0,176,1],[151,0,151,2],[152,0,152,2],[155,0,155,2],[156,0,156,2],[170,0,170,2],[159,0,159,1],[157,0,157,2],[169,0,169,2],[167,0,167,2],[168,0,168,2],[154,0,154,2],[153,4,153,6],[156,4,156,6],[158,5,159,5],[158,6,159,6],[160,5,161,5],[160,6,161,6],[154,4,154,7],[162,5,163,5],[162,6,163,6],[164,5,165,5],[164,6,165,6],[166,5,167,5],[166,6,167,6]]}
["Skip to search."]
[]
["New User? Register"]
["Sign In"]
["Help"]
[]
["Get new Yahoo! Mail apps"]
[]
[]
["Notifications Help"]
[]
["Mail"]
["My Y! "]
["Yahoo!"]
[]
["Yahoo! Finance "]
[]
["Search","Search Web"]
[]
["Breaking News Visit Yahoo! News for the latest."]
[]
["×Close this window"]
[]
[]
[]
["HOME"]
["INVESTING"]
[]
["Market Overview"]
["Market Stats"]
["Stocks"]
["Mutual Funds"]
["ETFs"]
["Bonds"]
["Options"]
["Industries"]
["Currencies"]
["Education"]
["Commodities"]
["NEWS"]
[]
["Markets"]
["Investing Ideas"]
["Special Editions"]
["Company Finances"]
["RSS Feeds"]
["Video"]
["Photos & Interactives"]
["PERSONAL FINANCE"]
[]
["Career & Education"]
["Insurance"]
["Lifestyle"]
["Loans"]
["Real Estate"]
["Retirement"]
["Saving & Spending"]
["Taxes"]
["Glossary"]
["Your Money 101"]
["MY PORTFOLIOS"]
[]
["Sign in to access My Portfolios"]
["Free trial of Real-Time Quotes"]
["EXCLUSIVES"]
[]
["Breakout"]
["The Daily Ticker"]
["The Exchange"]
["Unexpected Returns"]
["Financially Fit"]
["Just Explain It"]
["Hot Stock Minute"]
["Cost of Living"]
["CNBC"]
[]
["Big Data Download"]
["Off the Cuff"]
["Talking Numbers"]
["Latest Headlines"]
[]
["Search for share prices"]
[]
["Search for share prices"]
["Finance Search"]
[]
["Thu, May 23, 2013, 5:02PM EDT - U.S. Markets closed"]
[]
[" Dow Down0.08% Nasdaq Down0.11%"]
[]
[]
["More On GOOG"]
[]
["Quotes"]
[]
["Summary"]
["Order Book"]
["Options"]
["Historical Prices"]
[]
["Charts"]
[]
["Interactive"]
["Basic Chart"]
["Basic Tech. Analysis"]
[]
["News & Info"]
[]
["Headlines"]
["Press Releases"]
["Company Events"]
["Message Boards"]
["Market Pulse"]
[]
["Company"]
[]
["Profile"]
["Key Statistics"]
["SEC Filings"]
["Competitors"]
["Industry"]
["Components"]
[]
["Analyst Coverage"]
[]
["Analyst Opinion"]
["Analyst Estimates"]
["Research Reports"]
[]
["Ownership"]
[]
["Major Holders"]
["Insider Transactions"]
["Insider Roster"]
[]
["Financials"]
[]
["Income Statement"]
["Balance Sheet"]
["Cash Flow"]
[]
[null,"AdvertisementAdvertisement"]
[]
["Google Inc. (GOOG)"]
[]
["-NasdaqGS "]
[]
["882.79 Down6.63(0.75%) 4:00PM EDT|After Hours : 885.20 Up2.41 (0.27%) 5:00PM EDT - Nasdaq Real Time Price"]
[]
["Add to Portfolio"]
["Profile",null,"Get Profile for: "]
["Google Inc.",null,null,null,"Corporate Governance"]
["1600 Amphitheatre Parkway",null,null,null,"Google Inc.’s ISS Governance QuickScore as of May 1, 2013 is 8. The pillar scores are Audit: 1; Board: 8; Shareholder Rights: 10; Compensation: 5."]
["Mountain View, CA 94043",null,null,null,"Brought to you by Institutional Shareholder Services (ISS)"]
["United States - Map",null,null,null,"View Financials"]
["Phone: 650-253-0000"]
["Fax: 650-253-0001",null,null,null,"Key Executives"]
["Website: http://www.google.com",null,null,null,null,"Pay","Exercised"]
[null,null,null,null,"Dr. Eric E. Schmidt Ph.D., 58","7.59M",0]
["Details",null,null,null,"Exec. Chairman, Chairman of Exec. Committee and Chairman of Acquisition Committee"]
["Index Membership:","Nasdaq 100",null,null,"Dr. Lawrence Page , 40",0,0]
[null,"AMEX Internet",null,null,"Co-Founder, Chief Exec. officer, Director, Member of Acquisition Committee and Member of Exec. Committee"]
["Sector:","Technology",null,null,"Mr. Sergey Brin , 39",0,0]
["Industry:","Internet Information Providers",null,null,"Co-Founder, Assistant Sec., Director, Member of Acquisition Committee and Member of Exec. Committee"]
["Full Time Employees:",53891,null,null,"Mr. Patrick Pichette , 50","3.46M","8.64M"]
[null,null,null,null,"Chief Financial Officer, Principal Accounting Officer and Sr. VP"]
["Business Summary",null,null,null,"Mr. David C. Drummond , 50","3.96M",0]
[null,null,null,null,"Chief Legal Officer, Sr. VP of Corp. Devel. and Sec."]
["Google Inc., a technology company, builds products and provides services to organize the information and make it universally accessible and useful. It provides Search, a service that delivers relevant search results in response to user queries; Product Listing Ads that offer product information; Search plus Your World; Google Now, a predictive search feature; and Google Knowledge Graph, which enhances Search service. The company also offers AdWords, an auction-based advertising program; AdSense, a program which enables Websites that are part of the Google Network to deliver ads; Google Display, a display advertising network; DoubleClick Ad Exchange, a marketplace for the trading display ad space; and YouTube that provides video, interactive, and other ad formats. In addition, it provides Google Mobile that extends its products and services to mobile device users; Google Local, which provides local information; Android, an open source mobile software platform; Google Chrome OS, an open source operating system; Google Chrome, a Web browser; Google+ for sharing various things online with different people; Google Play, a cloud-based digital entertainment destination; Google Drive, a place for users to create, share, collaborate, and keep their stuff; and Google Wallet, a virtual wallet for in-store contactless payments. Further, the company offers Google TV, a platform for consumers to use television and the Internet on a single screen; Google Apps, a cloud computing suite of message and collaboration tools; Search Appliance, a search technology for use within enterprises; Google Site Search, a custom search engine; Google Commerce Search for online retail enterprises; Google Maps Application Programming Interface; and Google Earth Enterprise, a software solution for imagery and data visualization. Additionally, it offers mobile wireless devices, and related products and services. Google Inc. was founded in 1998 and is headquartered in Mountain View, California."]
[null,null,null,null,"Amounts are as of Dec 30, 2012 and compensation values are for the last fiscal year ending on that date. Pay is salary, bonuses, etc.Exercised is the value of options exercised during the fiscal year."]
["Key Statistics",null,null,null,"Currency in USD."]
[null,null,null,null,"View Insiders"]
[]
["Company Websites"]
["Home Page"]
["Search Yahoo! for: "]
["More on Google Inc."]
[]
[]
["Copyright © 2013 Yahoo! Inc. All rights reserved. Privacy Policy - About Our Ads - Terms of Service - Copyright/IP Policy - Send Feedback - Yahoo! - ABC News Network"]
["Quotes are real-time for NASDAQ, NYSE, and NYSE MKT. See also delay times for other exchanges. All information provided \"as is\" for informational purposes only, not intended for trading purposes or advice. Neither Yahoo! nor any of independent providers is liable for any informational errors, incompleteness, or delays, or for any actions taken in reliance on information contained herein. By accessing the Yahoo! site, you agree not to redistribute the information found therein. Real-Time continuous streaming quotes are available through our premium service. You may turn streaming quotes on or off."]
[]
["Fundamental company data provided by Capital IQ. Historical chart data and daily updates provided by Commodity Systems, Inc. (CSI). International historical chart data, daily updates, fund summary, fund performance, dividend data and Morningstar Index data provided by Morningstar, Inc."]
[]
[95941563]

{"sheet":"Stock - FinViz Profile","index":20,"n_rows":257,"n_cols":32,"rows_kept":257,"cut":false,"hidden":false,"merged":[[177,0,177,4],[178,0,178,4],[179,0,179,4],[180,0,180,4],[181,0,181,4],[182,0,182,4],[192,0,192,4],[194,0,194,4],[183,0,183,4],[184,0,184,4],[185,0,185,4],[186,0,186,4],[187,0,187,4],[188,0,188,4],[189,0,189,4],[190,0,190,4],[191,0,191,4],[193,0,193,4],[168,0,168,4],[169,0,169,4],[170,0,170,4],[171,0,171,4],[172,0,172,4],[173,0,173,4],[174,0,174,4],[175,0,175,4],[176,0,176,4],[160,0,160,4],[161,0,161,4],[162,0,162,4],[163,0,163,4],[164,0,164,4],[156,0,156,4],[165,0,165,4],[166,0,166,4],[167,0,167,4],[123,0,123,4],[124,0,124,4],[125,0,125,4],[126,0,126,4],[155,0,155,4],[157,0,157,4],[158,0,158,4],[159,0,159,4],[132,0,132,4],[133,0,133,4],[134,0,134,4],[135,0,135,4],[136,0,136,4],[127,0,127,4],[128,0,128,4],[129,0,129,4],[130,0,130,4],[131,0,131,4],[154,0,154,4],[142,0,142,4],[143,0,143,4],[144,0,144,4],[145,0,145,4],[152,0,152,4],[153,0,153,4],[117,0,117,4],[118,0,118,4],[119,0,119,4],[120,0,120,4],[121,0,121,4],[112,0,112,4],[113,0,113,4],[114,0,114,4],[115,0,115,4],[116,0,116,4],[146,0,146,4],[137,0,137,4],[138,0,138,4],[139,0,139,4],[140,0,140,4],[141,0,141,4],[149,0,149,12],[150,0,150,12],[151,0,151,12],[147,0,147,4],[148,0,148,4],[122,0,122,4],[107,0,107,4],[108,0,108,4],[109,0,109,4],[110,0,110,4],[111,0,111,4],[102,0,102,4],[103,0,103,4],[104,0,104,4],[105,0,105,4],[106,0,106,4],[97,0,97,4],[98,0,98,4],[99,0,99,4],[100,0,100,4],[101,0,101,4],[92,0,92,4],[93,0,93,4],[94,0,94,4],[95,0,95,4],[96,0,96,4],[88,0,88,4],[89,0,89,4],[90,0,90,4],[91,0,91,4],[82,0,82,4],[83,0,83,4],[84,0,84,4],[85,0,85,4],[86,0,86,4],[79,0,79,4],[80,0,80,4],[81,0,81,4],[72,0,72,4],[73,0,73,4],[74,0,74,4],[75,0,75,4],[76,0,76,4],[87,0,87,4],[70,0,70,4],[71,0,71,4],[62,0,62,4],[63,0,63,4],[64,0,64,4],[65,0,65,4],[66,0,66,4],[77,0,77,4],[78,0,78,4],[3,26,3,31],[5,26,5,31],[8,0,8,1],[10,0,10,1],[6,0,6,12],[7,0,7,12],[9,0,9,12],[2,18,5,18],[2,19,5,19],[2,20,5,20],[2,21,5,21],[2,22,5,22],[2,23,5,23],[2,12,5,12],[2,13,5,13],[2,14,5,14],[2,10,5,10],[2,11,5,11],[15,0,15,1],[2,0,5,0],[2,1,5,1],[25,0,25,1],[26,0,26,1],[2,24,5,24],[2,25,5,25],[2,16,5,16],[2,17,5,17],[2,6,5,6],[2,7,5,7],[2,8,5,8],[2,9,5,9],[2,2,5,2],[2,3,5,3],[2,4,5,4],[2,5,5,5],[24,0,24,1],[2,15,5,15],[16,0,16,1],[17,0,17,1],[18,0,18,1],[19,0,19,1],[20,0,20,1],[21,0,21,1],[22,0,22,1],[23,0,23,1],[49,0,49,4],[50,0,50,4],[51,0,51,4],[52,0,52,4],[53,0,53,4],[54,0,54,4],[27,0,27,12],[48,0,48,12],[55,0,55,4],[56,0,56,4],[202,0,202,4],[203,0,203,4],[204,0,204,4],[205,0,205,4],[206,0,206,4],[207,0,207,4],[208,0,208,4],[195,0,195,4],[196,0,196,4],[197,0,197,4],[198,0,198,4],[199,0,199,4],[200,0,200,4],[201,0,201,4],[58,0,58,4],[59,0,59,4],[60,0,60,4],[61,0,61,4],[57,0,57,4],[67,0,67,4],[68,0,68,4],[69,0,69,4],[209,0,209,4],[210,0,210,4],[211,0,211,4],[212,0,212,4],[213,0,213,4],[214,0,214,4],[215,0,215,4],[216,0,216,4],[217,0,217,4],[218,0,218,4],[219,0,219,4],[220,0,220,4],[221,0,221,4],[222,0,222,4],[223,0,223,4],[224,0,224,4],[225,0,225,4],[226,0,226,4],[227,0,227,4],[228,0,228,4],[229,0,229,4],[230,0,230,4],[231,0,231,4],[232,0,232,4],[233,0,233,4],[234,0,234,4],[235,0,235,4],[236,0,236,4],[237,0,237,4],[238,0,238,4],[239,0,239,4],[240,0,240,4],[241,0,241,4],[242,0,242,4],[243,0,243,4],[244,0,244,4],[255,0,255,12],[245,0,245,4],[246,0,246,4],[247,0,247,4],[248,0,248,4],[249,0,249,4],[250,0,250,4],[251,0,251,4],[252,0,252,4],[254,0,254,4],[253,0,253,12]]}
[null,null,null,"Welcome Guest!  Login | Register | Help"]
[]
[null,"Home",null,"News",null,"Screener",null,"Maps",null,"Groups",null,"Portfolio",null,"Insider",null,"Futures",null,"Forex",null,"Collaborate",null,"Store",null,null,"Elite"]
[]
[null,null,null,null,null,null,null,null,null,null,null,null,null,null,null,null,null,null,null,null,null,null,null,null,null,null,null,"Ticker",null,"Company",null,"Profile"]
[]
[]
[]
["publish chart | backtests Type: candle | line | advanced    Timeframe: intraday | daily | weekly | monthly  ",null,"Settings"]
[]
[]
["GOOG [NASD]"]
["Google Inc."]
["Technology | Internet Information Providers | USA"]
[null,"financial highlights | statements"]
["Index",null,"S&P 500","P/E",26.28,"EPS (ttm)",33.590000000000003,"Insider Own",6.9999999999999999E-4,"Shs Outstand","331.77M","Perf Week",-2.3300000000000001E-2]
["Market Cap",null,"292.88B","Forward P/E",16.61,"EPS next Y",53.16,"Insider Trans",-0.39240000000000003,"Shs Float","270.52M","Perf Month",8.5199999999999998E-2]
["Income",null,"11.22B","PEG",1.69,"EPS next Q",10.8,"Inst Own",0.86660000000000004,"Short Float",1.52E-2,"Perf Quarter",0.10390000000000001]
["Sales",null,"53.50B","P/S",5.47,"EPS this Y",9.0999999999999998E-2,"Inst Trans",1.9599999999999999E-2,"Short Ratio",1.81,"Perf Half Y",0.31769999999999998]
["Book/sh",null,228,"P/B",3.87,"EPS next Y",0.16039999999999999,"ROA",0.12909999999999999,"Target Price",918.27,"Perf Year",0.4375]
["Cash/sh",null,151,"P/C",5.85,"EPS next 5Y",0.15540000000000001,"ROE",0.1636,"52W Range","556.52 - 920.60","Perf YTD",0.248]
["Dividend",null,"-","P/FCF",23.08,"EPS past 5Y",0.19550000000000001,"ROI",0.14879999999999999,"52W High",-4.1099999999999998E-2,"Beta",0.95]
["Dividend %",null,"-","Quick Ratio",4.6900000000000004,"Sales past 5Y",0.2477,"Gross Margin",0.57399999999999995,"52W Low",0.58630000000000004,"ATR",16.37]
["Employees",null,53861,"Current Ratio",4.74,"Sales Q/Q",0.31230000000000002,"Oper. Margin",0.2402,"RSI (14)",58.09,"Volatility","1.82% 1.63%"]
["Optionable",null,"Yes","Debt/Eq",7.0000000000000007E-2,"EPS Q/Q",0.12790000000000001,"Profit Margin",0.20979999999999999,"Rel Volume",1,"Prev Close",889.42]
["Shortable",null,"Yes","LT Debt/Eq",0.04,"Earnings","Apr 18 AMC","Payout",0,"Avg Volume","2.28M","Price",882.79]
["Recom",null,2.1,"SMA20",2.1000000000000001E-2,"SMA50",6.8900000000000003E-2,"SMA200",0.1827,"Volume",2273578,"Change",-7.4999999999999997E-3]
[]
["2013-05-20","Reiterated","Barclays","Overweight","$875 → $1000"]
["2013-04-19","Reiterated","Oppenheimer","Perform","$765 → $820"]
["2013-04-19","Reiterated","Needham","Buy","$850 → $900"]
["2013-04-19","Reiterated","Deutsche Bank","Buy","$935 → $930"]
["2013-04-19","Reiterated","Canaccord Genuity","Buy","$830 → $890"]
["2013-04-19","Reiterated","Barclays","Overweight","$850 → $875"]
["2013-04-02","Initiated","UBS","Buy",945]
["2013-03-11","Reiterated","RBC Capital Mkts","Outperform","$840 → $950"]
["2013-02-21","Reiterated","Deutsche Bank","Buy","$850 → $935"]
["2013-01-23","Reiterated","Cantor Fitzgerald","Buy","$820 → $900"]
["2013-01-23","Reiterated","Barclays","Overweight","$800 → $850"]
["2013-01-02","Reiterated","Oppenheimer","Perform","$765 → $715"]
["2012-11-30","Reiterated","Barclays","Overweight","$780 → $800"]
["2012-10-19","Reiterated","Cantor Fitzgerald","Buy","$830 → $820"]
["2012-10-19","Downgrade","Oppenheimer","Outperform → Perform","$800 → $765"]
["2012-10-15","Reiterated","Oppenheimer","Outperform","$752 → $800"]
["2012-09-27","Reiterated","Argus","Buy","$730 → $875"]
["2012-09-26","Reiterated","Canaccord Genuity","Buy","$700 → $850"]
["2012-09-25","Reiterated","Capstone Investments","Buy","$830 → $910"]
["2012-09-21","Initiated","Cantor Fitzgerald","Buy",830]
[]
["23-May-13 04:50PM  ",null,null,null,null,"Apartment Guide App for Kindle Fire HD Zacks"]
["04:49PM  ",null,null,null,null,"Google faces new FTC antitrust probe: report at MarketWatch"]
["04:47PM  ",null,null,null,null,"Google Said to Face Display-Ad Antitrust Probe at Bloomberg"]
["04:46PM  ",null,null,null,null,"4 Tech Stock Stories For a Thursday Download at Wall St. Cheat Sheet"]
["04:45PM  ",null,null,null,null,"Google faces new federal antitrust probe: source Reuters"]
["04:43PM  ",null,null,null,null,"Google faces new federal antitrust probe - source at Reuters"]
["04:41PM  ",null,null,null,null,"Xbox One might not be the game changer Microsoft claims at Investor's Business Daily"]
["04:40PM  ",null,null,null,null,"Deconstructing Google's Strategy: Will Google Eat Your Business Next? at Forbes"]
["04:30PM  ",null,null,null,null,"Tax Protest in Britain Focuses on Google at New York Times"]
["04:28PM  ",null,null,null,null,"Pandora Quarterly Loss Widens as Costs Outpace Ad Sales at Bloomberg"]
["04:07PM  ",null,null,null,null,"The FTC Is Probing Whether Google Hurts Competitors In Web Display Advertising Business Insider"]
["04:00PM  ",null,null,null,null,"Don't Invest in Apple Before You Read This at Motley Fool"]
["03:53PM  ",null,null,null,null,"Hewlett-Packard: Successful Turnarounds 101 at Seeking Alpha"]
["03:50PM  ",null,null,null,null,"Google and NASA Make Quantum Leap With New Computer at Minyanville"]
["03:34PM  ",null,null,null,null,"European Parliament Moves to Limit Scope of Eventual U.S. Trade Deal at New York Times"]
["03:30PM  ",null,null,null,null,"Can This Company Keep Growing and Growing? at Motley Fool"]
["03:13PM  ",null,null,null,null,"3 Tech Titans Making Noise: Apples Bondholders Lose Value, Google Saves HP, and Ciscos Leverage at Wall St. Cheat Sheet"]
["03:10PM  ",null,null,null,null,"Khosla Ventures hires Google veteran Ben Ling at Reuters"]
["03:04PM  ",null,null,null,null,"Apple, Android and a truckload of watermelons at Fortune"]
["02:35PM  ",null,null,null,null,"Baidu: Is China's Search Giant Transitioning To A Slower Growth Period? at Seeking Alpha"]
["02:30PM  ",null,null,null,null,"ChannelAdvisor soars in debut Reuters"]
["02:28PM  ",null,null,null,null,"Stick With Microsoft, It Will Pay at Motley Fool"]
["02:12PM  ",null,null,null,null,"Deconstructing Google's Strategy: Will Google Eat Your Business Next? at Forbes"]
["02:11PM  ",null,null,null,null,"Former Google, Facebook Executive Joins Khosla Ventures at The Wall Street Journal"]
["02:10PM  ",null,null,null,null,"The 5 Most Important Company Perks at Motley Fool"]
["02:06PM  ",null,null,null,null,"Aptly-Named Contrarius Investment Making Some Contrarian Moves at Motley Fool"]
["02:06PM  ",null,null,null,null,"How Google Didn't `Screw Up' YouTube at Bloomberg"]
["02:00PM  ",null,null,null,null,"Another VC Is Born: Longtime Internet Exec Ben Ling Joins Khosla Ventures at AllThingsD"]
["02:00PM  ",null,null,null,null,"Kass: Apple Is Ripe for a Buy at TheStreet"]
["01:57PM  ",null,null,null,null,"Is Amazon A Good Short? Talking Numbers"]
["01:57PM  ",null,null,null,null,"Is Amazon a good short? Talking Numbers"]
["01:25PM  ",null,null,null,null,"Google Revamps Adsense Tool for Publishers at Motley Fool"]
["01:23PM  ",null,null,null,null,"Google to add Galapagos Islands to Street View AP"]
["01:20PM  ",null,null,null,null,"Which Advertisement Giant Will Win in Mobile? at Motley Fool"]
["01:18PM  ",null,null,null,null,"How much lower for the Google tell? at MarketWatch"]
["01:15PM  ",null,null,null,null,"Windows Ad Turns The Table On Apple at TheStreet"]
["12:44PM  ",null,null,null,null,"Google Names Another City: Raytown, Mo. at Motley Fool"]
["12:44PM  ",null,null,null,null,"Mailbox comes to the iPad at Fortune"]
["12:43PM  ",null,null,null,null,"Microsoft Pushes Windows Azure In Japan and 2 Other Hot Stocks to Watch at Wall St. Cheat Sheet"]
["12:40PM  ",null,null,null,null,"Review: Google music plan solid, serendipitous AP"]
["12:32PM  ",null,null,null,null,"E-commerce software maker ChannelAdvisor soars in debut Reuters"]
["12:23PM  ",null,null,null,null,"Is Yahoo! Set to Take a Tumble? at Motley Fool"]
["12:20PM  ",null,null,null,null,"What I learned working for Martha Stewart at Fortune"]
["12:19PM  ",null,null,null,null,"Google to add Galapagos Islands to Street View AP"]
["12:15PM  ",null,null,null,null,"Amazon's Cloud Drive Now in Canada Zacks"]
["12:04PM  ",null,null,null,null,"Microsoft: Wheres the Mojo? at Motley Fool"]
["12:01PM  ",null,null,null,null,"Updates, advisories and surprises at MarketWatch"]
["11:58AM  ",null,null,null,null,"Like That TV Ad You Just Saw? Twitter Wants to Show You Another One at AllThingsD"]
["11:58AM  ",null,null,null,null,"Like That TV Ad You Just Saw? Twitter Wants to Show You Another One. at AllThingsD"]
["11:50AM  ",null,null,null,null,"[video] Songza Takes on Music Streaming Titans at CNBC"]
["11:30AM  ",null,null,null,null,"Investment News Flash: California Teen Invents Super-Battery at Motley Fool"]
["11:30AM  ",null,null,null,null,"HP rallies 14%, trouncing broader sell-off at CNNMoney.com"]
["11:28AM  ",null,null,null,null,"[video] From Google to FedEx: Less Offshore Holdings? Maybe Not at MarketWatch"]
["11:27AM  ",null,null,null,null,"[video] From Google to FedEx: Less Offshore Holdings? Maybe Not at MarketWatch"]
["11:11AM  ",null,null,null,null,"AAPL, BBRY, NOK To Suffer Android Smartphone Surge, Says Nomura at Barrons.com"]
["11:06AM  ",null,null,null,null,"Billionaire Kerr Neilson's Top Stock Picks at Seeking Alpha"]
["11:06AM  ",null,null,null,null,"A Professional Viewpoint on Apple Versus Google at Motley Fool"]
["10:57AM  ",null,null,null,null,"Who Will Own the Future? at Forbes"]
["10:22AM  ",null,null,null,null,"Google Saves HPs Quarter and 3 More Hot Stocks at Wall St. Cheat Sheet"]
["10:08AM  ",null,null,null,null,"What Is Google? at Forbes"]
["10:00AM  ",null,null,null,null,"Q&A: \"The Internship\" Director Shawn Levy on Making a Feel-Good Movie About Google at AllThingsD"]
["09:57AM  ",null,null,null,null,"This stock is a threat to Apple, Google, & Sirius (And, Justin Bieber) Talking Numbers"]
["09:57AM  ",null,null,null,null,"This stock is a threat to Apple, Google, & Sirius (And, Justin Bieber) "]
["09:56AM  ",null,null,null,null,"Why I Still Buy Apple at Forbes"]
["09:50AM  ",null,null,null,null,"Can Baidu Get Rich the Youku Way? at Motley Fool"]
["09:39AM  ",null,null,null,null,"The Corporate Cash Hoarding Syndrome at Seeking Alpha"]
["09:38AM  ",null,null,null,null,"H-P a rare gainer as most tech stocks slump early at MarketWatch"]
["09:33AM  ",null,null,null,null,"Mother of All Fed Cha Cha Days or Last Tango on Wall Street? at Minyanville"]
["09:30AM  ",null,null,null,null,"Not One, But Two Perfect Storms Could Be Brewing at CNBC"]
["08:50AM  ",null,null,null,null,"Google Acquires Makani Power Zacks"]
["08:37AM  ",null,null,null,null,"Minn. teen whose farewell song became web hit dies AP"]
["08:34AM  ",null,null,null,null,"Tech Titans Are the New Masters of the Universe, Be Afraid: Kotkin The Daily Ticker"]
["08:30AM  ",null,null,null,null,"Workday's Loss Narrows in 1Q Zacks"]
["08:15AM  ",null,null,null,null,"EU Seeks Country-by-Country Tax Disclosure for Large Companies at Bloomberg"]
["08:10AM  ",null,null,null,null,"Google's Schmidt defends taxes in U.K., FT reports theflyonthewall.com"]
["08:07AM  ",null,null,null,null,"EU eyes bank secrecy in tax evasion push at MarketWatch"]
["08:03AM  ",null,null,null,null,"The Zacks Analyst Blog Highlights: j2 Global, Google, Apple, News Corp. and Safeway Zacks"]
["08:00AM  ",null,null,null,null,"Pandora expected to report sales gains at MarketWatch"]
["07:51AM  ",null,null,null,null,"Google's Long List of Subsidiaries Gets Much Shorter at The Wall Street Journal"]
["07:37AM  ",null,null,null,null,"The War for Online Video Is Heating Up at Motley Fool"]
["07:07AM  ",null,null,null,null,"Shazam launches completely overhauled iPad and iPhone app at CNNMoney.com"]
["02:17AM  ",null,null,null,null,"Review: Google music plan solid, serendipitous AP"]
["01:11AM  ",null,null,null,null,"Samsung Galaxy S4 Sales Hit 10 Million in Half the Time of S3 at Bloomberg"]
["12:22AM  ",null,null,null,null,"Apple Thinks Google Now Is Guilty at Motley Fool"]
["12:18AM  ",null,null,null,null,"Review: Google music plan solid, serendipitous AP"]
["12:01AM  ",null,null,null,null,"Wall Street, Power Women Meet on Fifth Avenue for Water at Bloomberg"]
["22-May-13 11:59PM  ",null,null,null,null,"Heres Why Apple and Google Love Irish Tax Laws at Wall St. Cheat Sheet"]
["11:07PM  ",null,null,null,null,"Google Voice Can Prevent Twitter's New Security System From Locking You Out at Forbes"]
["09:02PM  ",null,null,null,null,"What Does Intel Have Up Its Sleeve? at Motley Fool"]
["08:41PM  ",null,null,null,null,"Q&A With HP CEO Meg Whitman and CFO Cathie Lesjak: The Turnaround Is on Schedule at AllThingsD"]
["08:18PM  ",null,null,null,null,"Yahoo! Stock Is Hitting New Highs at Motley Fool"]
["08:02PM  ",null,null,null,null,"Did Intel Just Score a Big Mobile Win? at Motley Fool"]
["07:48PM  ",null,null,null,null,"Ireland says will not be U.S. 'whipping boy' on tax Reuters"]
["07:09PM  ",null,null,null,null,"HP's 2Q offers hope even as revenue slump deepens AP"]
["06:43PM  ",null,null,null,null,"[video] Oklahoma Tornado Disaster: As It Happened at MarketWatch"]
["06:30PM  ",null,null,null,null,"Inside Google's Top-Secret Research Lab at Bloomberg"]
["06:00PM  ",null,null,null,null,"Pandora and Spotify Respond to Google at Motley Fool"]
["06:00PM  ",null,null,null,null,"Google to Acquire Airborne Wind Turbine Maker Makani Power at Motley Fool"]
["05:45PM  ",null,null,null,null,"Twitter beefs up security after hacking spree on media Reuters"]
["05:40PM  ",null,null,null,null,"Apple Tops Customer Satisfaction Again, Samsung Gains at Motley Fool"]
[]
["Google Inc., a technology company, builds products and provides services to organize the information and make it universally accessible and useful. It provides Search, a service that delivers relevant search results in response to user queries; Product Listing Ads that offer product information; Search plus Your World; Google Now, a predictive search feature; and Google Knowledge Graph, which enhances Search service. The company also offers AdWords, an auction-based advertising program; AdSense, a program which enables Websites that are part of the Google Network to deliver ads; Google Display, a display advertising network; DoubleClick Ad Exchange, a marketplace for the trading display ad space; and YouTube that provides video, interactive, and other ad formats. In addition, it provides Google Mobile that extends its products and services to mobile device users; Google Local, which provides local information; Android, an open source mobile software platform; Google Chrome OS, an open source operating system; Google Chrome, a Web browser; Google+ for sharing various things online with different people; Google Play, a cloud-based digital entertainment destination; Google Drive, a place for users to create, share, collaborate, and keep their stuff; and Google Wallet, a virtual wallet for in-store contactless payments. Further, the company offers Google TV, a platform for consumers to use television and the Internet on a single screen; Google Apps, a cloud computing suite of message and collaboration tools; Search Appliance, a search technology for use within enterprises; Google Site Search, a custom search engine; Google Commerce Search for online retail enterprises; Google Maps Application Programming Interface; and Google Earth Enterprise, a software solution for imagery and data visualization. Additionally, it offers mobile wireless devices, and related products and services. Google Inc. was founded in 1998 and is headquartered in Mountain View, California."]
[]
["Insider Trading",null,null,null,null,"Relationship","Date","Transaction","Cost","#Shares","Value ($)","#Shares Total","SEC Form 4"]
["Page Lawrence",null,null,null,null,"Chief Executive Officer","2013-05-16","Sale",908.07,20835,18919564,10000,"2013-05-16T19:28:00"]
["DOERR L JOHN",null,null,null,null,"Director","2013-05-15","Sale",905.52,4602,4167190,0,"2013-05-15T18:48:00"]
["Page Lawrence",null,null,null,null,"Chief Executive Officer","2013-05-15","Sale",906.7,20833,18889271,10000,"2013-05-16T11:57:00"]
["Page Lawrence",null,null,null,null,"Chief Executive Officer","2013-05-14","Sale",885.17,20833,18440708,10000,"2013-05-14T17:03:00"]
["PICHETTE PATRICK",null,null,null,null,"SVP & Chief Financial Officer","2013-05-13","Sale",878.89,145,127439,3906,"2013-05-13T16:41:00"]
["Page Lawrence",null,null,null,null,"Chief Executive Officer","2013-05-13","Sale",878.92,20833,18310503,10000,"2013-05-14T17:03:00"]
["Brin Sergey",null,null,null,null,"Co-Founder","2013-05-07","Sale",857.07,83334,71423289,83420,"2013-05-09T12:34:00"]
["HENNESSY JOHN L",null,null,null,null,"Director","2013-05-02","Sale",825,200,165000,2308,"2013-05-02T19:09:00"]
["Drummond David C",null,null,null,null,"SVP, Corporate Development","2013-05-01","Sale",823.26,55,45279,4221,"2013-05-01T12:56:00"]
["HENNESSY JOHN L",null,null,null,null,"Director","2013-04-30","Sale",825,200,165000,3308,"2013-04-30T17:22:00"]
["SCHMIDT ERIC E",null,null,null,null,"Executive Chairman of Board","2013-04-26","Sale",801.53,89963,72107825,0,"2013-04-29T16:49:00"]
["SCHMIDT ERIC E",null,null,null,null,"Executive Chairman of Board","2013-04-26","Sale",801.82,15286,12256553,0,"2013-04-29T16:53:00"]
["SCHMIDT ERIC E",null,null,null,null,"Executive Chairman of Board","2013-04-25","Sale",811.56,68550,55632565,0,"2013-04-26T20:10:00"]
["SCHMIDT ERIC E",null,null,null,null,"Executive Chairman of Board","2013-04-24","Sale",815.18,83700,68230951,0,"2013-04-24T18:06:00"]
["HENNESSY JOHN L",null,null,null,null,"Director","2013-04-22","Sale",796.33,800,637061,3508,"2013-04-22T19:57:00"]
["Arora Nikesh",null,null,null,null,"SVP and Chief Business Officer","2013-04-22","Sale",800.6,805,644483,194,"2013-04-22T15:49:00"]
["DOERR L JOHN",null,null,null,null,"Director","2013-04-15","Sale",785.57,5305,4167437,0,"2013-04-16T15:02:00"]
["PICHETTE PATRICK",null,null,null,null,"SVP & Chief Financial Officer","2013-04-12","Sale",789.27,145,114444,3906,"2013-04-12T13:13:00"]
["Page Lawrence",null,null,null,null,"Chief Executive Officer","2013-04-11","Sale",788.22,20835,16422640,85000,"2013-04-12T12:49:00"]
["Page Lawrence",null,null,null,null,"Chief Executive Officer","2013-04-10","Sale",787.65,20833,16409097,85000,"2013-04-12T12:49:00"]
["Page Lawrence",null,null,null,null,"Chief Executive Officer","2013-04-09","Sale",780,20833,16249718,85000,"2013-04-10T13:09:00"]
["Page Lawrence",null,null,null,null,"Chief Executive Officer","2013-04-08","Sale",772.27,20833,16088767,85000,"2013-04-08T18:54:00"]
["Brin Sergey",null,null,null,null,"Co-Founder","2013-04-02","Sale",809.99,83334,67499575,8420,"2013-04-03T16:52:00"]
["Drummond David C",null,null,null,null,"SVP, Corporate Development","2013-04-01","Sale",795.01,55,43726,4131,"2013-04-01T17:06:00"]
["SCHMIDT ERIC E",null,null,null,null,"Executive Chairman of Board","2013-03-26","Sale",811.21,18619,15103890,0,"2013-03-26T20:14:00"]
["SCHMIDT ERIC E",null,null,null,null,"Executive Chairman of Board","2013-03-26","Sale",811.04,90330,73261577,0,"2013-03-26T19:51:00"]
["SCHMIDT ERIC E",null,null,null,null,"Executive Chairman of Board","2013-03-25","Sale",811.95,65118,52872421,0,"2013-03-26T13:15:00"]
["SCHMIDT ERIC E",null,null,null,null,"Executive Chairman of Board","2013-03-25","Sale",815.46,6132,5000374,0,"2013-03-26T13:30:00"]
["SCHMIDT ERIC E",null,null,null,null,"Executive Chairman of Board","2013-03-25","Sale",812.25,3750,3045943,154695,"2013-03-26T16:10:00"]
["DOERR L JOHN",null,null,null,null,"Director","2013-03-15","Sale",816.11,5106,4167075,0,"2013-03-15T20:20:00"]
["Page Lawrence",null,null,null,null,"Chief Executive Officer","2013-03-14","Sale",821.42,20835,17114347,85000,"2013-03-14T18:12:00"]
["Page Lawrence",null,null,null,null,"Chief Executive Officer","2013-03-13","Sale",824.43,20833,17175377,85000,"2013-03-13T18:34:00"]
["PICHETTE PATRICK",null,null,null,null,"SVP & Chief Financial Officer","2013-03-12","Sale",828.47,145,120128,3906,"2013-03-12T11:56:00"]
["Page Lawrence",null,null,null,null,"Chief Executive Officer","2013-03-12","Sale",826.37,20833,17215840,85000,"2013-03-13T13:15:00"]
["Page Lawrence",null,null,null,null,"Chief Executive Officer","2013-03-11","Sale",835.64,20833,17408876,85000,"2013-03-12T12:21:00"]
["Arora Nikesh",null,null,null,null,"SVP and Chief Business Officer","2013-03-11","Sale",836.37,1735,1451094,0,"2013-03-11T14:45:00"]
["Drummond David C",null,null,null,null,"SVP, Corporate Development","2013-03-01","Sale",797.8,56,44677,3285,"2013-03-01T12:54:00"]
["MATHER ANN",null,null,null,null,"Director","2013-02-27","Sale",800,300,240000,385,"2013-02-27T13:32:00"]
["SCHMIDT ERIC E",null,null,null,null,"Executive Chairman of Board","2013-02-26","Sale",790.65,68823,54415179,0,"2013-02-26T21:26:00"]
["SCHMIDT ERIC E",null,null,null,null,"Executive Chairman of Board","2013-02-26","Sale",790.88,25367,20062303,0,"2013-02-26T21:47:00"]
["SCHMIDT ERIC E",null,null,null,null,"Executive Chairman of Board","2013-02-25","Sale",801.18,59246,47466484,0,"2013-02-25T20:26:00"]
["SCHMIDT ERIC E",null,null,null,null,"Executive Chairman of Board","2013-02-25","Sale",802.56,16685,13390677,0,"2013-02-25T20:37:00"]
["SCHMIDT ERIC E",null,null,null,null,"Executive Chairman of Board","2013-02-25","Sale",802.9,4309,3459707,0,"2013-02-25T20:44:00"]
["SCHMIDT ERIC E",null,null,null,null,"Executive Chairman of Board","2013-02-22","Sale",798.9,86296,68942220,0,"2013-02-22T19:02:00"]
["SCHMIDT ERIC E",null,null,null,null,"Executive Chairman of Board","2013-02-22","Sale",798.9,3223,2574867,0,"2013-02-22T19:12:00"]
["Shriram Kavitark Ram",null,null,null,null,"Director","2013-02-15","Sale",790,12000,9480000,61725,"2013-02-15T16:33:00"]
["Shriram Kavitark Ram",null,null,null,null,"Director","2013-02-15","Sale",790,12000,9480000,63041,"2013-02-15T16:33:00"]
["DOERR L JOHN",null,null,null,null,"Director","2013-02-15","Sale",790.41,5272,4167031,0,"2013-02-15T16:55:00"]
["Page Lawrence",null,null,null,null,"Chief Executive Officer","2013-02-14","Sale",784.33,20835,16341570,10000,"2013-02-14T17:23:00"]
["Page Lawrence",null,null,null,null,"Chief Executive Officer","2013-02-13","Sale",782.32,20833,16298054,10000,"2013-02-13T19:06:00"]
["Page Lawrence",null,null,null,null,"Chief Executive Officer","2013-02-12","Sale",783.43,20833,16321239,10000,"2013-02-13T14:05:00"]
["PICHETTE PATRICK",null,null,null,null,"SVP & Chief Financial Officer","2013-02-12","Sale",781.16,145,113268,2289,"2013-02-12T14:24:00"]
["Page Lawrence",null,null,null,null,"Chief Executive Officer","2013-02-11","Sale",778.76,20833,16223992,10000,"2013-02-12T15:22:00"]
["Tilghman Shirley M",null,null,null,null,"Director","2013-02-08","Option Exercise",0,2500,0,7490,"2013-02-08T17:24:00"]
["Tilghman Shirley M",null,null,null,null,"Director","2013-02-08","Sale",782.84,2500,1957108,4990,"2013-02-08T17:24:00"]
["Brin Sergey",null,null,null,null,"Co-Founder","2013-02-05","Sale",767.43,83334,63952688,8420,"2013-02-06T11:28:00"]
["Drummond David C",null,null,null,null,"SVP, Corporate Development","2013-02-01","Sale",758.2,190,144058,3151,"2013-02-01T12:19:00"]
["Arora Nikesh",null,null,null,null,"SVP and Chief Business Officer","2013-02-01","Sale",758.2,1300,985660,248,"2013-02-01T13:33:00"]
["Shriram Kavitark Ram",null,null,null,null,"Director","2013-02-01","Sale",760,10002,7601520,73725,"2013-02-01T13:44:00"]
["Shriram Kavitark Ram",null,null,null,null,"Director","2013-02-01","Sale",760,10002,7601520,75041,"2013-02-01T13:44:00"]
["Shriram Kavitark Ram",null,null,null,null,"Director","2013-01-30","Sale",760.4,998,758883,83727,"2013-01-30T20:20:00"]
["Shriram Kavitark Ram",null,null,null,null,"Director","2013-01-30","Sale",760.4,998,758883,85043,"2013-01-30T20:20:00"]
["SCHMIDT ERIC E",null,null,null,null,"Executive Chairman of Board","2013-01-29","Sale",752.6,56233,42321173,0,"2013-01-31T13:25:00"]
["SCHMIDT ERIC E",null,null,null,null,"Executive Chairman of Board","2013-01-29","Sale",752.58,14960,11258547,0,"2013-01-31T13:36:00"]
["SCHMIDT ERIC E",null,null,null,null,"Executive Chairman of Board","2013-01-28","Sale",751.63,44340,33327053,0,"2013-01-30T19:39:00"]
["SCHMIDT ERIC E",null,null,null,null,"Executive Chairman of Board","2013-01-28","Sale",751.62,21660,16280197,0,"2013-01-30T19:48:00"]
["SCHMIDT ERIC E",null,null,null,null,"Executive Chairman of Board","2013-01-25","Sale",754.02,2950,2224362,0,"2013-01-29T17:13:00"]
["SCHMIDT ERIC E",null,null,null,null,"Executive Chairman of Board","2013-01-25","Sale",754.02,63050,47541033,0,"2013-01-28T10:09:00"]
["Page Lawrence",null,null,null,null,"Chief Executive Officer","2013-01-17","Sale",714.68,20835,14890407,10000,"2013-01-17T20:49:00"]
["Page Lawrence",null,null,null,null,"Chief Executive Officer","2013-01-16","Sale",716.7,20833,14931115,10000,"2013-01-16T17:27:00"]
["DOERR L JOHN",null,null,null,null,"Director","2013-01-15","Sale",721.33,5777,4167148,0,"2013-01-16T16:56:00"]
["Page Lawrence",null,null,null,null,"Chief Executive Officer","2013-01-15","Sale",721.47,20833,15030282,10000,"2013-01-16T16:25:00"]
["Page Lawrence",null,null,null,null,"Chief Executive Officer","2013-01-14","Sale",728.56,20833,15178162,10000,"2013-01-15T12:49:00"]
["PICHETTE PATRICK",null,null,null,null,"SVP & Chief Financial Officer","2013-01-10","Sale",736.99,184,135605,2289,"2013-01-10T12:43:00"]
["Shriram Kavitark Ram",null,null,null,null,"Director","2013-01-03","Sale",730,10000,7300000,74699,"2013-01-03T12:37:00"]
["Shriram Kavitark Ram",null,null,null,null,"Director","2013-01-03","Sale",730,10000,7300000,71041,"2013-01-03T12:37:00"]
["Drummond David C",null,null,null,null,"SVP, Corporate Development","2013-01-02","Sale",719.46,189,135977,3157,"2013-01-02T16:01:00"]
["Brin Sergey",null,null,null,null,"Co-Founder","2013-01-02","Sale",720.36,83334,60030676,8420,"2013-01-03T11:21:00"]
["DOERR L JOHN",null,null,null,null,"Director","2013-12-31","Sale",703.16,7111,5000167,14375,"2013-01-02T12:48:00"]
["SCHMIDT ERIC E",null,null,null,null,"Executive Chairman of Board","2013-12-28","Sale",703.25,22693,15958857,0,"2013-12-28T19:21:00"]
["SCHMIDT ERIC E",null,null,null,null,"Executive Chairman of Board","2013-12-28","Sale",703.26,5500,3867920,0,"2013-12-28T19:25:00"]
["SCHMIDT ERIC E",null,null,null,null,"Executive Chairman of Board","2013-12-27","Sale",704.45,47250,33285269,0,"2013-12-28T16:13:00"]
["SCHMIDT ERIC E",null,null,null,null,"Executive Chairman of Board","2013-12-27","Sale",704.45,2750,1937239,0,"2013-12-28T16:20:00"]
["SCHMIDT ERIC E",null,null,null,null,"Executive Chairman of Board","2013-12-26","Sale",708.43,46375,32853559,0,"2013-12-27T17:50:00"]
["SCHMIDT ERIC E",null,null,null,null,"Executive Chairman of Board","2013-12-26","Sale",708.43,3625,2568070,0,"2013-12-27T18:02:00"]
["SCHMIDT ERIC E",null,null,null,null,"Executive Chairman of Board","2013-12-24","Sale",709.98,24250,17216918,0,"2013-12-26T19:09:00"]
["SCHMIDT ERIC E",null,null,null,null,"Executive Chairman of Board","2013-12-24","Sale",709.97,750,532480,0,"2013-12-26T19:14:00"]
["DOERR L JOHN",null,null,null,null,"Director","2013-12-24","Sale",710.19,7041,5000465,14375,"2013-12-26T14:44:00"]
["DOERR L JOHN",null,null,null,null,"Director","2013-12-17","Sale",714.95,6994,5000385,14375,"2013-12-17T18:02:00"]
["Arora Nikesh",null,null,null,null,"SVP and Chief Business Officer","2013-12-14","Sale",699.92,2972,2080162,360,"2013-12-14T12:38:00"]
["Shriram Kavitark Ram",null,null,null,null,"Director","2013-12-13","Sale",710.4,9000,6393592,87172,"2013-12-13T14:55:00"]
["Shriram Kavitark Ram",null,null,null,null,"Director","2013-12-13","Sale",710.4,9000,6393592,98541,"2013-12-13T14:55:00"]
["Page Lawrence",null,null,null,null,"Chief Executive Officer","2013-12-12","Sale",698.25,27778,19396115,10000,"2013-12-12T16:19:00"]
["Page Lawrence",null,null,null,null,"Chief Executive Officer","2013-12-11","Sale",697.59,27778,19377673,10000,"2013-12-11T16:25:00"]
["DOERR L JOHN",null,null,null,null,"Director","2013-12-10","Sale",686.91,7280,5000708,14375,"2013-12-10T17:19:00"]
["Page Lawrence",null,null,null,null,"Chief Executive Officer","2013-12-10","Sale",686.89,27778,19080548,10000,"2013-12-10T17:38:00"]
["Brin Sergey",null,null,null,null,"Co-Founder","2013-12-04","Sale",690.08,83334,57507080,8420,"2013-12-04T20:31:00"]
["Drummond David C",null,null,null,null,"SVP, Corporate Development","2013-12-03","Sale",702.17,189,132710,2450,"2013-12-04T17:10:00"]
["DOERR L JOHN",null,null,null,null,"Director","2013-12-03","Sale",698.22,19097,13333899,14375,"2013-12-03T18:29:00"]
["Shriram Kavitark Ram",null,null,null,null,"Director","2013-11-29","Sale",690,8000,5520000,96172,"2013-11-29T12:37:00"]
[]
["open in yahoo | open in reuters | open in google"]
[]
["Quantcast"]